Workbook

Sheet Run Merge

Sheet Sys. De-Scope!
A1: De-Scope Options
A2: Scope ID | B2: Title | C2: Scientific Impact | D2: Technical Impact | E2: Budget Impact | F2: Schedule Interactions | G2: Value Potential ($K) | H2: Profile (flat or tapered) | I2: Early Date (when value decline starts) | J2: Latest Date (when value=0) | K2: Status | L2: Comment | M2: Early FY | N2: Late FY
A3: SY1 | B3: 6-Month Reduction in Commissioning Period | C3: The impact of the reduced commissioning is primarily in the final optimization of the data reduction pipelines. The system will enter operations without fully demonstrated science ready capabilities. There is added risk that the processing pipelines in this first year of the survey will require further system optimization from additional characterization. This refinement of the algorithms will impact the early data releases and result in partial loss of time domain alerts (e.g. super novae, variable stars and time domain discoveries) during the first year of operations. Algorithm performance would be recovered in subsequent data releases. | D3: The LSST baseline plan now includes a commissioning camera to support early integration and test. In addition to enabling an optimized commissioning period with the full camera, as already established in the baseline plan, the early pixel data from this single raft camera supports reducing the commissioning period by 6 months. This descope will be a reduction in the science verification and science algorithm optimization. The commissioning will continue to verify the full technical performance of the telescope and camera system along with the minimal key performance parameters. The science verification part effort will be reduced but the entire commissioning effort will be planned to optimize the reduced effort. | E3: This removes 6 months of effort budgeted at $8.3M with activity based risk scoring of $2.3M for a total of $10.6M reduction. | F3: The full commissioning effort, starting with the early integration and test, will be adjusted to optimize the shortened time. The detailed commissioning planning would be impacted in FY17 but the actual work may be changed in 2018 as early integration and test begins. The bulk of the removed tasks are in 2021. The Operational Readiness Review and the start of the full survey will be 6-months earlier on March 31, 2022. This will impact the scheduled early operations phase and the start of the full operations phase. This descope has the least impact if included in the detailed planning beginning in 2017 but can be implemented or restored if decided in late 2020. | G3: 10600 | H3: Flat | J3: 2018-10-01 | K3: Implemented | M3: =IF(I3="","",YEAR(EDATE(I3,3))) ->  | N3: =IF(J3="","",YEAR(EDATE(J3,3))) -> 2019
A4: SY2 | B4: Reduce System Process and Storage to SRD Minimum Specifications | C4: The full science impact is dependent on how the data volume is reduced or what data is in the 10% left unprocessed. A reduction of visits per unit area to the SRD minimum spec would result in a depth reduction of ~0.1 magnitudes in the final stack, assuming the main survey area is preserved. However, the decreased number of visits has a larger impact on weak lens systematics reduction and some types of transient object detection and monitoring depends on a higher power of the number of visits. The temporal impact is un-recoverable but the number of visits can be restored through another year of survey operation. | D4: This descope is the reduction of the data management capacity to process and store data coming off the telescope. The reduction of data volume is the result of either fewer images, fewer sensors or, dropped data. The visits per unit area of sky design point is 825 (SRD design spec) and the minimum is 750 (SRD minimum spec.) Reducing the number of visits to the minimum spec reduces the data volume. The data volume may be reduced by eliminating 20 sensors from the focal plane array or, if there are no changes to the focal plane or cadence, 10% of the data coming off the telescope is not stored or processed. This descope is a 10% reduction in the DM hardware to process and store data. Less equipment will be purchased and setup to provide the savings. To preserve full recovery, the network bandwidth is maintained. | E4: The Data Management Subsystem would reduce its data volume sizing by ~10%, both in single image size and in the total number of epochs processed (affecting the size of the database). Analysis from the DM sizing model shows that this descope would result in a cost reduction of ~$1.2M in the construction phase of the project. | F4: The Data Management Procurement strategy purchases hardware as late as possible therefore this descope can be realized or restored up until 6 months prior to the start of integration and test in 2019. | G4: 1200 | H4: Flat | I4: 2020-01-01 | J4: 2020-10-01 | K4: Available | M4: =IF(I4="","",YEAR(EDATE(I4,3))) -> 2020 | N4: =IF(J4="","",YEAR(EDATE(J4,3))) -> 2021
A5: SY3 | B5: Reduce EPO System Capability and Reach | C5: Depending on the depth of the cut, education, science center and citizen science would be eliminated as well as formal curriculum development for STEM. | D5: This descope eliminates the technical infrastructure planned for dedicated EPO data center and citizen science programs. | E5: Budget impact is based on when this descope decision is made versus have far into planned activity the EPO effort has gotten during construction. Nearly the entire budget is assumed for the maximum value. | F5: EPO effort builds a team beginning in 2015/2016. Major expenditures do not ramp up until later in 2016. | G5: 9069 | H5: Taper | I5: 2017-10-01 | J5: 2021-10-01 | K5: Unavailable | L5: EPO scoping options are covered in the EPO spreadsheet | M5: 2018 | N5: 2022
A6: SY4 | B6: Eliminate Component Spares | C6: No immediate scientific impact, but can lead to excessive down time when repair or replacement of critical components is needed. | D6: This de-scope eliminates component spares from DM Eliminating such spares increases the risk of schedule overruns during commissioning should a component suffer early life failure and will impact system up-time requirements. | E6: Budget impact is based on estimated sparing costs from Data Management. This amount to ~3% of purchased hardware and capitol expenses related items spared (see LSE-170). For DM: 3% of $12.54M = $376K | F6: No Budget impact | G6: 376 | H6: Taper | I6: 2017-01-01 | J6: 2021-10-01 | K6: Available | M6: 2017 | N6: 2022
A7: SY5 | B7: Reduce System Verification Close Out Documentation | C7: No immediate scientific impact, but can lead to excessive down time when failures occur and root cause analsysis and repairs take longer than they would otherwise due to lack of complete verification documentation. | D7: Increases risk of not completely understanding if requirements have been fully verified when verification of requirements spans multiple Test Cases/Verification Events. This increases the risk to Operations that unexpected or unintended behavior may emerge over time, and some of the documentation that would help with root cause(s) investigations will not be available. | E7: Budget impact is based on assuming the effort of System Verification Team can be reduced by 1 FTE for 1 year in the Commissioning Phase. 1 Sr. Systems Engineeering, fully burdened for 1 year in FY2021 is $210,024. | F7: No impact on schedule. | G7: 210 | H7: Taper | I7: 2020-01-01 | J7: 2021-01-01 | K7: Available | M7: 2020 | N7: 2021 | O7: =M7-N7 -> -1
A8: SY6 | B8: Eliminate System-Level FMECA scope | C8: No immediate scientific impact, but can lead to excessive down time when failures occur and root cause analsysis and repairs take longer than they would otherwise due to lack of complete Failure Modes, Effects and Causality Analysis. | D8: Increases risk to Operations that root cause and corrective actiion investigations will take much longer after a failure than they would if FMECAs have been completed. | E8: Budget impact is based on the assumption that 1 SE will be working on this effort half time for two years. 1 Sr. Systems Engineeering, fully burdened at 1/2 time for FY2020 and 1/2 time FR2021 is $207,000 | G8: 207 | H8: Taper | I8: 2019-01-01 | J8: 2021-01-01 | K8: Available | M8: 2019 | N8: 2021
M9: =IF(I9="","",YEAR(EDATE(I9,3))) ->  | N9: =IF(J9="","",YEAR(EDATE(J9,3))) -> 
M73: =IF(I73="","",YEAR(EDATE(I73,3))) ->  | N73: =IF(J73="","",YEAR(EDATE(J73,3))) -> 
M137: =IF(I137="","",YEAR(EDATE(I137,3))) ->  | N137: =IF(J137="","",YEAR(EDATE(J137,3))) -> 
M201: =IF(I201="","",YEAR(EDATE(I201,3))) ->  | N201: =IF(J201="","",YEAR(EDATE(J201,3))) -> 
M265: =IF(I265="","",YEAR(EDATE(I265,3))) ->  | N265: =IF(J265="","",YEAR(EDATE(J265,3))) -> 
M329: =IF(I329="","",YEAR(EDATE(I329,3))) ->  | N329: =IF(J329="","",YEAR(EDATE(J329,3))) -> 
M393: =IF(I393="","",YEAR(EDATE(I393,3))) ->  | N393: =IF(J393="","",YEAR(EDATE(J393,3))) -> 
M457: =IF(I457="","",YEAR(EDATE(I457,3))) ->  | N457: =IF(J457="","",YEAR(EDATE(J457,3))) -> 
M521: =IF(I521="","",YEAR(EDATE(I521,3))) ->  | N521: =IF(J521="","",YEAR(EDATE(J521,3))) -> 
M585: =IF(I585="","",YEAR(EDATE(I585,3))) ->  | N585: =IF(J585="","",YEAR(EDATE(J585,3))) -> 

Sheet Sys. Opportunities#
A1: Performance Opportunities
A2: Scope ID | B2: Title | C2: Scientific Impact | D2: Technical Impact | E2: Budget Impact | F2: Schedule Interactions | G2: Cost Potential | H2: Profile (flat or tapered) | I2: Early Date (when value decline starts) | J2: Latest Date (when value=0) | K2: Status | L2: Comment | M2: Early FY | N2: Late FY
A3: SY1-U | B3: Extend Early Integration and Test Activities | C3: A more robust observatory system will reduce risk in completing the Operational Readiness Review and will improve the efficiency of science operations through higher reliability, more effective troubleshooting, and more mature operating procedures implemented earlier. | D3: Extending the time available for integrating and testing the subsystems (telescope, commissioning and full size camera, and data management software) on the summit will result in a more robust system, with lower risk to success through improved knowledge of its behavior and fixes of its potential shortcomings. | E3: The budget impact is the "marching army" cost of the project staff during extended integration and test. The estimate is based on an expected $1,800k/month "marching army" cost. | F3: Schedule impact is a 2.5 month effort before starting science commissioning activities. This opportunity would offset the risk exposure identified in LSST Risk Item SE-274. This option can be implemented in smaller than 2.5 month increment, resulting in smaller schedule and budget impacts. | G3: 4500 | H3: Flat | J3: 2021-01-01 | K3: Unavailable | L3: Moved to the Commissioning scope options spreadsheet as CO8.RG - not in Commissioning spreadsheet | M3: =IF(TRIM(I3)="","",YEAR(EDATE(I3,3))) ->  | N3: =IF(TRIM(J3)="","",YEAR(EDATE(J3,3))) -> 2021
A4: SY2-U | B4: Extend ORR Mini-Survey by 1-2 Months and Generate an Early Data Release | C4: By extending the "mini-survey" conducted during the final stages of science verification we can jump start the communities' involvement in science analysis and incorporate feedback earlier in Commissioning. | D4: This opportunity would also further advance the refinement of the data analysis algorithms used to process both Level-1 and Level-2 data products. This opportunity also provides a better verification of the scheduler algorithms and the resulting survey cadence to allow for better feedback earlier in Commissioning. | E4: The budget implication is based only on the "marching army" of the project staff over the extension period. | F4: The schedule implication is a 2 month effort before formal declaration of operations readiness. | G4: 3600 | H4: Flat | J4: 2022-01-01 | K4: Unavailable | L4: Moved to the Commissioning scope options spreadsheet as CO1-U | M4: =IF(TRIM(I4)="","",YEAR(EDATE(I4,3))) ->  | N4: =IF(TRIM(J4)="","",YEAR(EDATE(J4,3))) -> 2022
A5: SY3-U | B5: Early Shutdown to Address Improvements Developed out of Commissioning | C5: By programming a complete maintenance effort at the end of Commissioning, the Project can fully address improvements and issues discovered during commissioning. By doing so, the risk to completion is reduced and the risk to quality of the LSST survey will be reduced at the start than if these actions were avoided and the system was accepted into full operations. | D5: The risk of successful completion is reduced and the system would end up having high performance and reliability at the conclusion of commissioning than would otherwise be expected. | E5: There are capital expensing for improvements along with "marching army" costs of the project staff. Two months of staff costs are used for the impact. | F5: Implementing this work would require two months of effort to be included in the program prior to the formal declaration of operations readiness. | G5: 3600 | H5: Flat | J5: 2022-01-01 | K5: Unavailable | L5: ZI: I don’t understand that one. It’s also amusing to see the statement "The risk of successful completion is reduced…” Moved to the Commissioning scope options spreadsheet as CO2-U | N5: 2022
A6: SY4-U | B6: Comprehensive Construction All-Risk Insurance | C6: No Science Impact | D6: The baseline approach to the LSST construction is for each contractor working on the site to provide its own Construction All-Risk insurance to protect against the financial impact of damage to property on site. A single policy held by LSST would reduce the financial risk and would dramatically reduce the schedule and complication of any claims. With the distributed insurance approach, an incident will likely cause significant schedule delay as issues of responsibility and costs are clarified. A single LSST policy will allow the contractors to remove the cost of this insurance from contract prices and will greatly improve the risk posture of the site program. | E6: The cost of a single policy held by AURA for all LSST activity is estimated at $1.5M. The direct savings for removal of the individually held policies is roughly $500K for a net cost to the project of $1M. | F6: There is no direct schedule impact other than the reduced risk to the schedule with a single policy in the event of a loss. | G6: 1000 | H6: Flat | J6: 1905-07-08 | K6: Unavailable | N6: 1905
A7: SY5-U | B7: EPO Technology Enhancement | C7: Enhanced citizen science. | D7: The scope of the EPO capabilities is based on technologies available circa 2014. It may be that new technologies emerge that significantly enhance the EPO impact beginning with survey operations in 2022. | E7: 5% of the total EPO $12M scope is estimated for leveraging new technologies that emerge during the construction period. | F7: None | G7: 600 | H7: Flat | J7: 2020 | K7: Unavailable | L7: Now Covered in EPO Tab | N7: 1905
A8: SY6-U | B8: Bootstrap Image Differencing Templates | C8: Early generation of Level 1 Alert events at the start of opperations. | D8: Currently templates are generated as part of the LEvel 2 Data Release process, DR1 is planned to be done with the first 6 months of data and will be completed 1 year after operations start. Completion of the commissiopning effort on schedule would allow time for the observations needed to deliver the first set of image difference template ahead of the release of DR1. However, the computing infrastructure needed to process images to produce the baseline image differencing templates is required in advance of current plans. | E8: Extended commissioning activities to conduct template observations reqquires ~$1800K of "marching army" costs. There will be an additional $250K for the early procurement of computing hardware to support the template production. | F8: This up-scope would utilize up to the 11 months of schedule contingency currently projected. Cost estimate based on utilizing 6 months, which is enough for the first set of observations to precess from behind the sun and be usable at the start of operations. | G8: 11050 | H8: Flat | J8: 2022-01-01 | K8: Unavailable | L8: Moved to the Commissioning scope options spreadsheet as CO3-U. | N8: 2022
M65: =IF(TRIM(I65)="","",YEAR(EDATE(I65,3))) ->  | N65: =IF(TRIM(J65)="","",YEAR(EDATE(J65,3))) -> 
M129: =IF(TRIM(I129)="","",YEAR(EDATE(I129,3))) ->  | N129: =IF(TRIM(J129)="","",YEAR(EDATE(J129,3))) -> 
M193: =IF(TRIM(I193)="","",YEAR(EDATE(I193,3))) ->  | N193: =IF(TRIM(J193)="","",YEAR(EDATE(J193,3))) -> 
M257: =IF(TRIM(I257)="","",YEAR(EDATE(I257,3))) ->  | N257: =IF(TRIM(J257)="","",YEAR(EDATE(J257,3))) -> 
M321: =IF(TRIM(I321)="","",YEAR(EDATE(I321,3))) ->  | N321: =IF(TRIM(J321)="","",YEAR(EDATE(J321,3))) -> 
M385: =IF(TRIM(I385)="","",YEAR(EDATE(I385,3))) ->  | N385: =IF(TRIM(J385)="","",YEAR(EDATE(J385,3))) -> 
M449: =IF(TRIM(I449)="","",YEAR(EDATE(I449,3))) ->  | N449: =IF(TRIM(J449)="","",YEAR(EDATE(J449,3))) -> 
M513: =IF(TRIM(I513)="","",YEAR(EDATE(I513,3))) ->  | N513: =IF(TRIM(J513)="","",YEAR(EDATE(J513,3))) -> 
M577: =IF(TRIM(I577)="","",YEAR(EDATE(I577,3))) ->  | N577: =IF(TRIM(J577)="","",YEAR(EDATE(J577,3))) -> 

Sheet DM De-Scope!
A1: De-Scope Options
A2: Scope ID | B2: Title | C2: Scientific Impact | D2: Technical Impact | E2: Budget Impact | F2: Schedule Interactions | G2: Value Potential ($K) | H2: Profile (flat or tapered) | I2: Early Date (when value decline starts) | J2: Latest Date (when value=0) | K2: Status | L2: Comment | M2: Early FY | N2: Late FY
A3: DM1 | B3: Eliminate Real-Time Data Products | C3: Eliminates all time-domain science dependent on real-time alerts. Eliminates image differencing data products and software. The transient alerts would have to be genreated by a third party in the vicinity of the Base Facility in La Serena, Chile, using non-LSST software. Violates SRD requirements. | D3: This descope would eliminate the infrastructure for the alert production processing, distribution, and archiving. It would also reduce the Base to Archive network bandwidth requirements to roughly 5 Gbps. | E3: Eliminating the real-time alerts would result in a reduction of $25,300K in then-year dollars from reduced hardware and network costs ($18,300k) and labor ($7,000k). This includes labor saved by not developing those portions of the Alert Production software not also needed for Level 2 processing. | F3: While several scheduled elements and milestones would be eliminated, the project critical path would be unaffected. There would be ~2 months less integration time required during Construction/Commissioning as the Archive Center would be smaller and simpler. | G3: 25300 | H3: Tapered | I3: 2015-01-01 | J3: 2022-01-01 | K3: Available | L3: Changed the Scientific Impact text to make it clear this de-scope would violate one or more SRD-level requirements. 2019-07-11: Changed the title and impact to make clear that this refers to alerts not including other prompt data processing (MOPS), and to avoid the outdated “Level 1” terminology. Changed latest date to reflect current understanding of procurement. | M3: =IF(I3="","",YEAR(EDATE(I3,3))) -> 2015 | N3: =IF(J3="","",YEAR(EDATE(J3,3))) -> 2022
A4: DM2 | B4: Eliminate Support for non prject staff and User-Generated Data Products | C4: Eliminates capability to perform science analyses at LSST archive center. Eliminates support to use LSST software to build end-user science analysis tools. Violates SRD requirements. | D4: The current DAC design includes extensive support for user analysis, including hosting datasets that are not of LSST origin. The current model of operation of the DAC requires long-term storage of user-created data. This option would constrain the role of the DAC such that user storage is ephemeral. This would eliminate the infrastructure required to support user generated data products at the Data Access Centers. It might also require a re-negotiation of at least the intent, if not the letter, of the AURA - Chile agreement regarding LSST, since while that agreement only calls for a copy of a portion of the data to resided in Chile, there have been communications and expectations of a Data Access Center in Chile. User DB and user file systems would be smaller along. Qserv requirements would be simplified since no joins with user tables would be required. There would be a reduction in the LSP nodes/and compute requirements | E4: Eliminating the user generated data product support would result in a reduction of $2240K in then-year dollars from reduced hardware ($1500K) and labor ($740K) that includes labor removed by not developing the Science Pipeline Toolkit. There are on going operations savings here as well. | F4: There would be ~2 months less integration time required during Construction/Commissioning as the DACs would be smaller and simpler. | G4: 2240 | H4: Tapered | I4: 2015-01-01 | J4: 2021-10-01 | K4: Available | L4: Changed the Scientific Impact text to make it clear this de-scope would violate one or more SRD-level requirements. 2019-07-11: Changed title and impact to avoid the outdated “level 3” terminology. Changed latest date to reflect current understanding of procurement. | M4: =IF(I4="","",YEAR(EDATE(I4,3))) -> 2015 | N4: =IF(J4="","",YEAR(EDATE(J4,3))) -> 2022
A5: DM3 | B5: Eliminate or Defer Forced Source Catalog | C5: Eliminates ability to study low-level variability using LSST catalog data products. Scientists would not be able to analyze time-dependent behavior of faint objects. This would particularly impact time domain science for faint objects, including AGN. This science could be done with L3 resources, but at greatly reduced efficiency compared to that of the Data Release Production. | D5: This descope would eliminate infrastructure for performing forced source measurement and storage of the catalog. | E5: Eliminating the ForcedSource Catalog would result in a reduction of $4800K then-year dollars from reduced hardware and removed integration activity at the Archive. | F5: There would be ~1 month less integration time required during Construction/Commissioning as the Archive Center would be slightly smaller. | G5: 4800 | H5: Tapered | I5: 2015-01-01 | J5: 2021-10-01 | K5: Available | L5: 2019-07-11: Changed latest date to reflect current understanding of procurement. | M5: 2015 | N5: 2022
A6: DM4 | B6: Reduce Data Release Hardware by 10% (DR 1) | C6: There is a higher risk to the schedule of processing the first data release. The time required for processing the first data release will cause a 10% delay in DR1 and DR2 and a corresponding offset to subsequent releases. | D6: There is no engineering impact. | E6: This reduces the hardware and configuration costs for the initial DM hardware system put in place for the data processing for data release 1 by $650K. (LDM-144-v147, SiteRollup tab, cell M8). But at some future point this will need to purchased so at best we may be putting off to ops - at worst cause cascading delay in releases. | F6: There is no impact on the schedule of construviton - the data release schedule could be impacted. This impact would roll on to at least DR2. | G6: 650 | H6: Tapered | I6: 2018-01-01 | J6: 2021-10-01 | K6: Available | L6: Potential saving was reassed by KT with latest Cost model. 2019-07-11: Changed latest date to reflect current understanding of procurement. | M6: 2018 | N6: 2022
A7: DM6 | B7: Remove MultiFit Hardware and Test Processing in DR1 and DR2 | C7: Strongly degrades systematics-limited science (e.g. weak lensing) enabled by first two LSST Data Releases. No measurements of proper motions at low SNR in DR1 and DR2. Expect reduced quality in these areas in DR3. Does not formally violate the normative portions of the SRD, but changes the Project-Community boundary on weak lensing science (or delays the weak lensing science). We are currently studying the possibility to do lensing science on coadds using better algorithms - this may mitigate te use of MultiFit but may not bring the processor load significantly below the original envelope for multifit. | D7: This would eliminate a portion of the infrastructure needed for the first 18 months of operations, as compute-intensive measurements would not be made in Data Releases 1 and 2. There is a second order risk here in the uncertainty built into the entire processing need which incorporates MultiFit. Reducing the MultiFit hardware may exacerbate any shortcoming/under sizing of the remaining DRP hardware causing an unforeseen delay in regular release. | E7: $2,800K reduction due to reduced infrastructure at Archive Center. | F7: 2021 / can restore if not implemented or anytime thereafter. | G7: 2800 | H7: Tapered | I7: 2020-01-01 | J7: 2021-01-01 | K7: Available | L7: Added second order risk text (paraphrase RHL) and potential/parital mitigation of using Coadds. 2019-07-11: Changed latest date to reflect current understanding of procurement. | M7: 2020 | N7: 2021 | P7: =DATEDIF(I7,J7,"m")/3 -> 4
A8: DM7 | B8: Defer MultiFit Software Development | C8: Strongly degrades systematics-limited science (e.g. weak lensing) until deferred work is completed. Little long-term damage to end-of-survey LSST science goals if deferred work is completed by DR4 or DR5. Does not formally violate the normative portions of the SRD, but changes the Project-Community boundary on weak lensing science (or delays the weak lensing science). We are currently studying the possibility to do lensing science on coadds using better algorithms - this may mitigate te use of MultiFit but may not bring the processor load significantly below the original envelope for multifit. | D8: This eliminates software development for significant science pipelines and middleware components from the construction plan, allowing experts in these areas to focus on other tasks in the short- or medium-term. MultiFit could be added to the existing software stack during Operations. There is a second order risk here in the uncertainty built into the entire processing need which incorporates MultiFit. Reducing the MultiFit hardware may exacerbate any shortcoming/under sizing of the remaining DRP hardware causing an unforeseen delay in regular release. | E8: Labor cost saving of $500k in 02C.04. This scope option is likely to automatically trigger DM6. | F8: Science Pipeline work could be completed earlier | G8: 500 | H8: Tapered | I8: 2018-01-01 | J8: 2022-10-01 | K8: Available | L8: Added second order risk text (paraphrase RHL) and potential/parital mitigation of using Coadds. 2019-07-11: Changed latest date to reflect current understanding of development timeline. | M8: 2018 | N8: 2023
A9: DM9 | B9: Do not observe/process crowded stellar fields at all. | C9: Galactic science (Stellar Populations and Milky Way and Local Volume Structure) would be severely impacted. It would not be possible to conduct the research described in Chapters 7.3, 7.4, 7.5 of the LSST Science Book. Though no normative SRD requirement would be violated, the SRD states that "the full avoidance of the Galactic plane would have a severe impact on the Galactic structure studies". Recent analysis suggests not observing crowded fields would not allow us to complete 18K degrees survey by a large extent. This would be a major violation of the SRD. | D9: Being able to assume the sky is uncrowded makes the algorithmic problems in image differencing and image characterization significantly easier, reducing software development costs. Integration and testing for high-level processing is also reduced, as crowded fields represent a qualitatively different testing regime even for algorithms that are not any more difficult in crowded fields. | E9: Saving is due to labor costs in Science Pipelines. | F9: Science Pipeline work could be completed earlier | G9: 600 | H9: Tapered | I9: 2018-01-01 | J9: 2021-10-01 | K9: Available | L9: Added comment on new analysis suggestomg this may violate SRD. 2019-07-11: Changed latest date to reflect current understanding of development timeline. | M9: 2018 | N9: 2022
A10: DM10 | B10: Eliminate the Portal Aspect of the Science Platform | C10: Descoping the Portal aspect is prefered as JupyterLab is key to comissioning. Would result in an extremely poor support of the broad science community, especially the less capable and casual users. Would force users to use JupyterLab aspect for all LSST data access, or perform analysis and downloads via remote analysis tools (e.g., TOPCAT). | D10: Reduce development effort significantly on user interface and data acccess. A single aspect platform i.e. only one of DAX, JupyterLap or Portal is not really possible, or if it were to be one it woul have to be the Data Access Services (DAX). The portal then could could be very simple layer on DAX to discover data - no MYDB, no next-to-the-data processing. | E10: Considerable savings if done now - less as each year passes. Significant effort has already been invested in the Science Platform. | F10: If done early not much impact on schedule. Considerable user expectation mangmeent would need to be done. | G10: 4000 | H10: Tapered | I10: 2017-01-01 | J10: 2021-01-01 | K10: Available | M10: 2017 | N10: 2021
A11: DM11 | B11: Relax Alert Completeness or Purity Requirements | C11: Relaxes OSS-REQ-0353. Greater numbers of false positives are allowed in the alert stream, or less completeness is tolerated. It may become more difficult to discover some classes of transients, or transient samples may be more contaminated by false detections. | D11: Reduced development effort would be possible on some aspects of the L1 pipeline, such as image characterization, crowded field processing, correction of Differential Chromatic Refraction, or spuriousness measures. More storage might be required to accomodate the increased number of false detections. | E11: Savings due to labor costs in science pipelines. | F11: Science Pipeline work could be completed earlier | G11: 400 | H11: Tapered | I11: 2018-01-01 | J11: 2021-10-01 | K11: Available | L11: 2019-07-11: Changed latest date to reflect current understanding of development timeline.. | M11: 2018 | N11: 2022
A12: DM12 | B12: Relax MOPS Completeness Requirements | C12: Relaxes OSS-REQ-0354. Less completeness is allowed for asteroid discoveries within the Solar System. While it does not violate the normative aspects of the SRD, it may compromise some SRD science goals describedin "Taking an Inventory of the Solar System". | D12: This permits less work developing and tuning MOPS algorithms. | E12: Savings due to labor costs in science pipelines. | F12: Science Pipeline work could be completed earlier | G12: 400 | H12: Tapered | I12: 2019-01-01 | J12: 2021-10-01 | K12: Available | L12: 2019-07-11: Changed latest date to reflect current understanding of development timeline. | M12: 2019 | N12: 2022
A13: DM13 | B13: Store only frequently accessed data in the Chilean DAC; size DAC strictly according to MOU. | C13: Reduces the amout of resources to Chilean science but maintains consistency with the LSST MOU with Chilean scientists. | D13: Primarily substitutes access at NCSA for infrequently used datasets, for datastes being present at the Base DAC. Candidate datasets are estimated to include template files and less accessed relational tables, for example the reformatted EFD. Computational resources available to Chilean scientists would be reduced in size according to 10% of the US DAC standard in the MOU. | E13: LDM_144 V145 indicated expense of about $1.3M, in hardware. Subject to a change control analysis, I estimate saving at $500K, +- $200K. (There an absolute pedestal for a full QSERV and the raw data) | F13: Minimal. | G13: 500 | H13: Tapered | I13: 2019-01-01 | J13: 2021-07-01 | K13: Available | L13: 2019-07-11: Changed latest date to reflect current understanding of procurement. | M13: 2019 | N13: 2021
A14: DM14 | B14: Don't provide notebook templates and other advanced usability aids | C14: We currently plan to provide a tested template library of notebooks performing common LSST data analysis tasks (in order to bootstrap commissioning and general science user notebook development; and as tutorials of the capabilities of the platform) and an easy way to enable users to use them by starting from the templates and adapting them to their own use. Eliminating this work will be detrimental to the user experience, and will provide a significant barrier to JupyterLab adoption by project engineers and science users who are not fluent python programmers. | D14: Users may create notebooks that use L3 resources inefficiently or require increased post-facto helpdesk support | E14: Saving is due to labor costs in SQuaRE | F14: SQuaRE effort could be reduced before start of operations | G14: 360 | H14: Tapered | I14: 2020-01-01 | J14: 2021-10-01 | K14: Available | L14: 2019-07-11: Changed latest date to reflect current understanding of development timeline. | M14: 2020 | N14: 2022
A15: DM15 | B15: Reduce Prompt Processing Ingest Service availability and reliability | C15: higher latency for raw image to NCSA and hence slower alert publication | D15: data distribution environment minimized image can be sent as 1 file normally, and only send 1 copy of the file, cross talk from the camera not required and can be computed. | E15: Maintaining a 99.8% realiability requires failover/maintenance systems, non-interruptible environments (network, power, filesystems, transfer mechanisms...) , reduce redundant provisioning; not requiring a specialized enviornment; isolation enclave (requires redundant enviornments for failover) Reduced costs here come from reducing the requirements on these systems at NCSA and in Chile, and lowering the level of wide area network support. | F15: This is not on the critical path, and would reduce overall work required. | G15: 500 | H15: Flat | I15: 2019-10-01 | J15: 2021-10-01 | K15: Available | L15: 2019-07-12: Created | M15: 2020 | N15: 2022
A16: DM16 | B16: Relax the Prompt Processing Ingest Service latency to several minutes | C16: higher latency for raw image to NCSA and hence slower alert publication | D16: data distribution environment minimized image can be sent as 1 file normally, and only send 1 copy of the file, cross talk from the camera not required and can be computed. | E16: Data arrive at NCSA on the order of minutes after camera readout. That data is then available for batch processing. Relaxing the latency requirement to use normal routed networks and very prompt batch processing reduces system complexity very substantially. | F16: Not on the critical path | G16: 1000 | H16: Flat | I16: 2019-10-01 | J16: 2021-10-01 | K16: Available | L16: 2019-07-12: Created | M16: 2020 | N16: 2022
A17: DM17 | B17: Provide only notebook aspect and portal aspect of LSP at Chile: serve data from the Data Facility only | C17: Chilean scientists (100) would need to retireve data from NCSA instead of Chile. | D17: All Chilean scientists need to get resources from LDF. US DAC becomes LSST DAC. | E17: Reduce costs by eliminating the DAC in Chile. Qserv + Kubernetes notebook infrastructure could still be provided for 100 Chilean scientists. | F17: Not on the critical path | G17: 1000 | H17: Flat | I17: 2019-10-01 | J17: 2021-10-01 | K17: Available | L17: 2019-07-12: Created | M17: =IF(I17="","",YEAR(EDATE(I17,3))) -> 2020 | N17: =IF(J17="","",YEAR(EDATE(J17,3))) -> 2022
A18: DM18 | B18: Delete Data Backbone and Data Access Center in Chile: serve data from NCSA only. Only have commissioning cluster and other smaller systems required at Base Data Center for staff | C18: Chilean scientists (100) would need to retieve data from NCSA instead of Chile. | D18: A secondary disk copy of all the raw data would not be managed by the project. IN2P3 is supposed to contain the entire RAW set of data also, but the 2nd copy would not be transferred and managed by tools at LDF. It woudl be delivered to IN2P3. If there was a problem with the data at IN2P3, it would not be known by tools at LDF. This woudl impact disaster recovery in that restore of data would require from tape, and a purchase of media to cover that cost. To mitigate this risk: a copy of the data stored into the “deep freeze” cloud never to really be retrieved. This does need to be studied to see if the cost savings is really that. Need rainyday fund to prepare incase we ever need to get data out of deep freeze storage. Extremely human intense process to get data from deep freeze. | E18: No Data Access Center or Data Backbone environments in Chile. This is a substantial saving, but runs the risk of a large operational human and operational cost to restore lost files in a disaster recovery scenario. | F18: Not on the critical path | G18: 1500 | H18: Flat | I18: 2019-10-01 | J18: 2021-10-01 | K18: Available | L18: 2019-07-12: Created | M18: 2020 | N18: 2022

Sheet DM Opportunities#
A1: Performance Opportunities
A2: Scope ID | B2: Title | C2: Scientific Impact | D2: Technical Impact | E2: Budget Impact | F2: Schedule Interactions | G2: Cost Potential | H2: Profile (flat or tapered) | I2: Early Date (when value decline starts) | J2: Latest Date (when value=0) | K2: Status | L2: Comment | M2: Early FY | N2: Late FY
A3: DM1-U | B3: Store Multi-fit Likelihood Samples for All Six Bands | C3: Currently, the likelihoods are sampled and stored only for g, r, I, and z bands, while only the associated and derived quantities (e.g., maximum likelihood values or means) are stored for u and y. This option would enable science cases dependant on accurate knowledge of extended object shapes in u and y bands. | D3: This would require deployment of additional database hardware to store and query the u and y band likelihood chains. | E3: $603,764, with $125,315 in Construction and an average of $47,845 per year in Operations. | F3: Optimal if executed in time for the purchase of database hardware, but also possible afterwards. | G3: 125 | H3: Flat | I3: 2017-10-01 | J3: 2019-01-01 | K3: Available
A4: DM2-U | B4: Store All Raw Data on Disk Rather than Tape | C4: Enables real-time generation of forced photometry for transient alerts, going back to the beginning of the survey. Makes it feasible to generate image differencing templates on the fly, if needed, rather than from the annual co-adds. | D4: Additional disk storage capacity would need to be added to the LSST processing cluster. The tape archive would need to be removed from the design, and the appropriate middleware redirected to fetch the data from disks instead. Any tape-archive related middleware would not have to be written. Potential additional storage/monitoring middleware may need to be written to oversee the increased disk capacity. The Chilean tape library has been eliminated with the replan. We have sized the pre-operations facility to store most data on disk (in addition to tape at NCSA) to support commissioning, since interaction with data products is expected to be more intense during the commissioning period. | E4: Eliminating the tape library as a primary storage source does simplify the production workflow system. However, the NCSA tape library is seen as a diverse media disaster recovery resource, so eliminating it altogether is a risk. The upscope is minimal during the construction period, but would be more substantial during the operations period. Estimate ~$1.5M extra for Year 1 provisioning to add disk. | F4: Cost savings due to the tape archive would be lost if this option is implemented after the tape archive is deployed. | G4: 1500 | H4: Flat | I4: 2017-10-01 | J4: 2019-01-01 | K4: Available | L4: Update from NCSA about tape at NCSA and cost potential.
A5: DM3-U | B5: Develop Specialized Codes for Crowded Field Processing | C5: The planned LSST data processing codes, though expected to yield acceptable results in areas of moderately high crowding, are not guaranteed to reach the accuracy or completeness of purpose-built crowded field photometry codes. Specifically, they are not required to work well in regions such as dense clusters or the Galactic plane. Developing specialized codes for crowded fields would enable science cases dependant on processing of dense stellar fields. | D5: Implementation will require research and development of additional software, on the level of ~1 FTE/yr for 3-4 years. Possible deployment of additional hardware to support new, more computationally intensive, algorithms may be needed. | E5: Estimating operational hardware impact is unknown, would require analysis and benchmarks, assessing changes to object detection, deblending, measurement in galactic plane. Presumably, impact would be bounded, i.e. we would not do multi-fit there, could use those cycles thus saved. $0.5M labor | F5: Can be implemented at any point in construction and operations. | G5: 500 | H5: Flat | I5: 2017-10-01 | J5: 2019-01-01 | K5: Available | L5: Update from Colin/Zeljko - on cost estimate for this.
A6: DM4-U | B6: Diverse Network Path from Summit to Base | C6: In the event of a primary path failure, e.g Fiber cut on the primary route, camera images would no longer flow to the Base, which would cease alerts for the time of the outage. Other operational functions in Chile would also be affected, although we should be able to maintain voice and vital safety-related communications over Microwave radio. Estimated 4-6 hours to repair and restore scientific flows. | D6: As this was never in the baseline plan it does not have any real impact on the Engineering Implementation of the link. Time and minimal funding has been spent exploring the options. There are two options with varying degrees of protection addressing two areas of risk. We can exercise one or both of these options. Risk areas: 1. Fiber in trenches along road from Gate to CP Summit (cut in the fiber) 2. Public highway from Gate to Base.(posts felled by vehicles) | E6: Option 1 ($285k) 1. Install a fiber bundle on poles from Pachón summit to San Carlos Valley floor 2. Splice existing fiber bundle on road to connect to new bundle on poles 3. Add two optical switches Option 2 ($350k) 1.Install second Optical card in Pachón 2.Utilize spare Telefonica fiber pair to reach Vicuna 3.Install DWDM chassis in Vicuna along with Optical card 4.Configure Layer 2 in Vicuna to tap into REUNA 100G and 40Gb in Santiago for return path | F6: If there are still available funds by 2019 and all other related expenditures are completed we may revisit this issue to install partial diverse paths. This was in essence the recommendation of the Network Design Review panel in Tucson on 24 February 2015. | G6: 350 | H6: Flat | I6: 2017-10-01 | J6: 2019-01-01 | K6: Available
A7: DM5-U | B7: Develop Additional Software for Special Programs | C7: At the moment, the only special program proposals that will be considered for execution on the LSST system will be those that can be processed by reconfiguring the software developed for Level 1 and 2. Committing to developing additional software for special programs expands the variety of scientific use-cases that they can pursue. | D7: Development of additional software, on the level of ~2 FTE/yr for 3-4 years. | E7: Not yet estimated. | F7: Can be implemented at any point in construction and operations. | K7: Study
A8: DM6-U | B8: Keep Processed Images (Calibrated Exposures) | C8: Enhances the reproducibility of LSST catalogs as measurements can be (re)derived from calibrated exposures guaranteed to be bitwise-identical to those used for data release production. Enables Level-3 use-cases requiring access to significant number of calibrated exposures. | D8: Additional disk storage capacity and/or tape archive capacity would need to be added to the LSST processing cluster. The data access middleware would need to be modified to fetch stored exposures, instead of regenerating them on the fly. | E8: This is ~2.5 PB per year stored on disk or tape. For MREFC this cost would be expensed in the last year of construction/commissioning when provisioning for Y1. Extra disk to store for Year 1 would be ~$500K; extra tape would be ~$200K. | F8: 2021 | G8: 700 | H8: flat | I8: 2021-01-01 | J8: 2021-07-01 | K8: Available | L8: Assesed by NCSA, Cost potential added
A9: DM7-U | B9: Develop MOPS Algorithms that do not Need Pair Observations | C9: Eliminates the need to return to the same field within 30-90 minutes to establish linkages between moving objects, thus removing that constraint from the scheduler. Enables observations of 2x the area in a single night than would otherwise be possible. | D9: This would require deployment of additional researchers and software engineers to investigate and implement the necessary algorithms, at a level of 2-3FTE for 3 years. While a detailed study has not been conducted, based on early ideas for a potential algorithms on order of ~1PB of temporary fast storage (either RAM or Flash-based) and approximately ~250 PFLOPS of computational power may be required. | E9: Note that this option carries a risk of the appropriate algorithms not being developed within the assumed budgetary envelope. Not yet estimated. | F9: 2018 or any time afterwards. | K9: Study
A10: DM8-U | B10: Additional Hardware Resources for User Products | C10: Increases the amount of computational and storage resources available to the community, enabling more complex community-driven processing to take place at the U.S. Data Access Center. | D10: Deployment and maintenance of additional hardware to support Level 3 use cases. | E10: Not yet estimated. | F10: Can be implemented at any point in construction and operations. | K10: Study | L10: the title of this was changed to User Products from Level 3
A11: DM9-U | B11: Develop Complex Alert Broker for Transient Science | C11: Develop and deploy at the LSST Archive center an event broker to enable complex variable object event processing, including classification and cross-matching to large external catalogs. This may be more cost-effective to the funding agencies and less carry less risk wrt. all components needed for LSST science being in place for operations, than the assumption that the community will develop the same capability externally. It may also allow an increased number of end-users to access the full event stream (or more simultaneous users accessing portions of the stream). | D11: Research and development of additional software, on the level of ~2 FTE/yr for 3-4 years. Purchase of additional computing hardware, network equipment, and bandwidth. | E11: Not yet estimated. | F11: Can be implemented at any point in construction and operations, most effective if implemented before operations begin. | K11: Study
A12: DM10-U | B12: Increase bandwidth Tucson Miami | C12: Increased bandwidth on the link between Tucson and Miami would allow for more reliable and faster transfer of data. This would improve the QA activities and could increase the overall quality of the science products. | D12: Purchase of additional bandwidth, improved network. A better connection may reduce need to travel. | E12: $500K should cover the increase from 10 Gbps to 40 Gbps. | F12: Can be implmented at anytime. | G12: 500 | H12: FLAT | I12: 2022-01-01 | J12: 2031-01-01 | K12: Available | L12: New from Jeff. Can be done anytime.

Sheet T&S De-Scope!
A1: De-Scope Options
A2: Scope ID | B2: Title | C2: Scientific Impact | D2: Technical Impact | E2: Budget Impact | F2: Schedule Interactions | G2: Value Potential ($K) | H2: Profile (flat or tapered) | I2: Early Date (when value decline starts) | J2: Latest Date (when value=0) | K2: Status | L2: Comment | M2: Early FY | N2: Late FY
A3: TS1 | B3: Reduced Summit Facility Functionality | C3: Negligible. | D3: The Summit Facility Design requirements are driven primarily by safe and efficient construction and operation. The Summit Facility contractor has subtantially completed the construction project. Descope adjustments from this point forward can be addressed in the post-construction improvements that are required to meet subsytem requirements and to fully complete the Facility itself. Technical impact regarding subsytem improvements will vary and are best addressed by the related technical team. Technical impact regarding available Facility descope would be minor. | E3: The value engineering phase at the beginning of the construction contract reduced the budget by ~$350K (approx. 1.5% of the original contract value). During construction further savings of ~1% were implemented, however, change orders due to site conditions new requirements and to correct for missing scope in the design increased costs by over $5M (~20%). Descope during post-construction could reduce expentitures. This will be important to realize wherever possible, as much of the post-construction budget is not budgeted and will require contingency application to fund. | F3: Any scope reductions in post-construction Facility work should not impact schedule. | G3: 0 (could reduce contingency draw but no identified opportunity to reduce baseline budget) | H3: flat | I3: 2017-01-01 | J3: 2018-07-01 | K3: Un-Available | L3: Minor descopes on "operational" items likely would likekly impact baseline plans.
A4: TS2 | B4: Reduced Base Facility Functionality | C4: Negligible. | D4: The Base Facility scope is derived from the use cases to support the Operations Phase as well as the support of the construction and commissioning. The design of the facility is complete. Construction bidding resulted in ~25% overbudget condition which was reduced to ~15% by descope, which had no significant technical impact. Construction is now substantially complete. Any available scope options that reamin at this point would be relatively minor, related to post construction improvements for intended use, (e.g. Remote Operations room outfitting, furnishings budget, reduction in computing rack utilities). | E4: Reduction of approximately 1% of the budget is considered to be available. | F4: Negligible | G4: 100 | H4: Taper | I4: 2017-01-01 | J4: 2020-01-01 | K4: Available
A5: TS3 | B5: Reduced Telescope Mount Performance and Functionality | C5: If the descope is related to vibration damping, there is impact on the image quality. If the descope is related to speed of telescope or the settle time the impact will be on the completeness of the survey. | D5: The Fabrication contract includes a design phase to finalize the details of the design, adapt designs to vendor specific solutions and work out the interface details with the facility. Scoping options may be available during that time but owner directed changes to an firm fixed price contract nearing the completed design will have no net change at this time. | E5: Costs would be removed from contract. | F5: Negligible | G5: 3373 | H5: Flat | I5: 2016-01-01 | J5: 2017-01-01 | K5: Un-Available
A6: TS6 | B6: Reduce Summit Lodging Expansion | C6: There is no measurable science impact perceived from this descope. More intangible impact on science could result if adequate lodging is not available on Pachon for night crew. | D6: The element includes the construction of the summit lodging facilities to support LSST integration, commissioning, and operations teams. The facility is an addition to the existing Pachón lodging and dining building. Facilities on Pachón are highly beneficial to support the operations team and the large teams of engineers, scientists, and workers who will be performing time-critical integration, assembly, test, commissioning activities. Utilization of facilities on the adjacent summit are significant safety concerns and will require additional travel resources, and increased wear on roads and equipment. | E6: The original overall project budget for a permanent lodging addition was $857 K. The implemented descoped option budget is $535 K which is currently under construction. There is a need for ~$200 K in other temporary lodging provisions during peak occupancy of AIV to compensate for the descoped lodging addition. Given these anticipated expenditures there is a potential for ~$120K potentially available descope. | F6: The summit lodging room addition is under construction with anticipated completion in September 2019. This activity will not impact overall project schedule. | G6: 120 | H6: Flat | I6: 2018-01-01 | J6: 2020-01-01 | K6: Available | L6: Currently moving forward with reduced scope increase in lodging desribed in TS6.
A7: TS5 | B7: Eliminate the Calibration Telescope | C7: Without the Auxiliary Telescope, but with co-pointed microwave radiometer for accurate PWV, a barometer for Rayleigh scattering, and access to satellite data for season Ozone variations, the effects from aerosols would be left uncorrected. The largest impact would be in the blue filters (e.g. u and g). The u-band and g-band photometry would fall below SRD minimum specifications by more than a factor of 4 over the full span of stellar spectral indices. The r-band and i-band photometry would also come close to SRD minimum spec limits. | D7: The 1.2m diameter Calibration telescope is independent of the main telescope in a separate building on the site. This telescope is a key part of the full calibration plan and also serves as the initial test bed for the telescope control and observatory control software. This instrument also serves as a test bed for the development of the TCS and OCS. Without it the commissioning on the full facility will have higher risk of schedule delay. | E7: The cost of the Calibration telescope, instrumentation and support building is $5.4M. | F7: The refurbishment effort of the 1.2-m telescope begins in Oct 2015. This is an “in-house” effort and thus can be stopped after that but the savings and schedule impact changes after the effort as begun. | G7: 2000 | H7: Tapered | I7: 2016-10-01 | J7: 2018-01-01 | K7: Un-Available | L7: Total reduced to $2M for estimate of remaining work.
A8: TS9 | B8: Eliminate M1M3 Optical Assembly and Test | C8: The ability to control the mirror surfaces is paramount to providing good image quality. Verification of the M1M3 active optics system is necessary to confirm the telescope system is performing to specification to enable science requirements to be achieved. Eliminating the Interferometric testing in the lab will increase the risk of decreased performance early in the commissioning. | D8: The current plan includes trial assembly and factory test of the M1M3 mirror and mirror cell assembly in Tucson prior to shipment to Chile. This contracted effort with the University of Arizona will confirm the performance of the active optics control system. The impact of descope of this activity will be increased schedule on the summit to confirm integration of the systems and increased risk since several support system tests are also performed in this factory testing. | E8: The phase 4 trial assembly and factory test effort is budgeted at $1.6M. This can be reduced by 25% ($400k) to remove the redundant testing. If this effort is removed from the scope, regular integration must still be performed and testing effort will move to the summit. | F8: The M1M3 integration task is scheduled for February 2018 and is planned for 6 months. The schedule will be affected by the need to complete fit-check testing with the telescope mount vendor prior to shipment to Tucson. | G8: 400 | H8: Flat | I8: 2017-01-01 | J8: 2018-10-01 | K8: Un-Available | L8: Planning to be at UofA for optical testing in October 2018.
A9: TS10 | B9: Eliminate ComCam | C9: ComCam was designed as a pathfinder for the DM and Camera interfaces as well as validatng the mirror support systems. Eliminating this scope could severely diminish the commissioining effort and cause signficant delays in transition to operations. | D9: The impact will significantly slow the understanding of the telescope/camera performance and could prevent the successful integration of them in the worst scenario. | E9: The ComCam budget is approx $1.3M (about $400k has already been spent). | F9: This descope could also be selected if the T&S completion is later and the camera arrives early. | G9: 100 | H9: Taper | I9: 2016-07-01 | J9: 2020-01-01 | K9: Available | L9: Integration in AZ is planned before shipment to Chile.
A10: TS11 | B10: Eliminate M3 Interferometer Testing | C10: The ability to control the mirror surfaces is paramount to providing good image quality. Verification of the M1M3 active optics system (by measuring M3) is necessary to confirm the telescope system is performing to specification to enable science requirements to be achieved. Eliminating the Interferometric testing of M3 on the telescope will increase the risk of decreased performance early in the commissioning. | D10: The impact will significantly slow the understanding of the telescope/camera performance and could prevent the successful integration of them in the worst scenario. | E10: The M3 interferometer budget is approx $230k (about $30k has already been spent). | F10: This descope could be selected if the M1M3 system is substantially late to Chile and is impacting the overall schedule. | G10: 180 | H10: Flat | I10: 2017-01-01 | J10: 2019-10-01 | K10: Available | L10: Should be considered along with TS9 for full impact. Partial de-scope per LCR-1577? This was partially descoped to use a Shack Hartmann instead of the interferometer. More tests in the lab are planned for Aug 2019 to see its feasability
A11: TS12 | B11: OCS gui interface | C11: Possible increase of downtime due to inability to access to the information quickly | D11: More difficult to inability to solve problems in a timely fashion | E11: Some visualisation would still be needed so only ~$250K of the remaining ~$400K would be saved. | F11: This descope would not have much impact on the schedule since some of the functionality would still need to be developed | G11: 250 | H11: Flat | I11: 2017-01-01 | J11: 2020-01-01 | K11: Available | L11: INRIA control room effort should consider this option.
A12: TS13 | B12: Operations from Summit Only | C12: Potential for slower troubleshooting responses. More frequent trips for people to Chile. | D12: Reduction in the hardware, software and safety oversight needed to be able to operate from remote locations. | E12: Significant, not sure the scope of this work has been addressed in the first place, which requires much more monitoring equipment and safety considerations. But the control room could reduce the number of trips from the Tucson and SLAC staff to the site | F12: More remote operations centers it will negatively impact the schedule. | G12: 150 | H12: Flat | I12: 2018-01-01 | J12: 2020-01-01 | K12: Available | L12: INRIA control room effort should consider this option.
A13: TS14 | B13: Reduce Environmental Awareness System's "Awareness" | C13: Could impact the scheduler's decision making if some functionality is missing from the EAS. It would also impact the image quality diagnostics | D13: Would limit our baseline environmental data that will help characterize the dome + telescope environment. | E13: Save $ on weather sensors and labor costs. | F13: Save time on development, testing and verification of EAS. | G13: 50 | H13: Flat | I13: 2018-01-01 | J13: 2020-01-01 | K13: Available | L13: INRIA control room effort should consider this option.
A14: TS15 | B14: M1M3 15 degree Zenith Angle Mirror Support Test | C14: Although deleting this test will make it more difficult to debug the M1M3 mirror support system, since this test is not conducted under the interferometer it does not improve image qualified, and should not affect scientific impact. | D14: It will be more difficult to resolve any deficiencies in the M1M3 mirror support system since they will first be determined at the summit. | E14: This will requirer 1 FTE Mechanical test lead, 1 FTE Optical, 1 FTE Software, 1 FTE tech and 1 FTE to analyze data set | F14: Removing this test will save 30 working days (6 weeks) at CAID. However, the off axis performance of the support system will not be verified before deployment to the summit. If deficiencies are determined at the summit they will be more difficult and time consuming to mediate. | G14: 100 | H14: Flat | I14: 2018-04-01 | J14: 2018-07-01 | K14: Un-Available | L14: We have already invested $96k in the production of the test fixture required for this test.
A15: TS16 | B15: Scheduler Release versions 1.4, 1.5, 2.0, 2.1 and 2.2 have been put on hold. Scheduler v1.3 has enough functionality and flexibility to meet current studies and integration to the control system. | C15: Current scientific performance, demonstrated in the survey baseline 2018a (LCR-1348) will be optimized only through parameters space exploration and no additional functionality. | D15: Current technical performance, demonstrated in the survey baseline 2018a (LCR-1348) already complies with T&S requirements and constraints. | E15: This descope reduces 7200 junior software engineer hours in a period of 24 months (2 FTE during 24 months). | F15: Reassigning these 2 FTE accelerates the development of TCS control interfaces and Active Optics software. | G15: 600 | H15: flat | I15: 2018-07-01 | J15: 2020-06-30 | K15: Implemented | L15: Already incorporated into T&S SW ETC -- The scope of work has been moved to the University of Seattle
A16: TS17 | B16: Remove M1M3 cart and mirror cell integrated testing at CAID before shipping to Chile | C16: Negligible. | D16: There is a risk additional machining could be required to verify the M1M3 cell assembly properly connects to M1M3 cart and all performance is reached. | E16: Minor savings due to reduced time at CAID. | F16: Possible 1 week savings in total CAID integration. | G16: 50 | H16: Flat | I16: 2018-04-01 | J16: 2018-07-01 | K16: Un-Available | L16: This option to be considered along with TS15
A17: TS18 | B17: Guider | C17: Negligible if we have a tracking system that meets requirement for the 30s exposure. The guider show also lower performance and some have glowing issues which ould impact the performance of the actual science camera. | D17: Put more pressure on the TMA requirements. | E17: Software development saving | G17: 23 | H17: Taper | I17: 2019-07-01 | J17: 2020-07-01 | K17: Available | L17: Right now the plan is to ask John Pareljko from DM to help with the development. Some of the development can also help the Active Optics System.
A18: TS19 | B18: GPS | C18: Essentially none so long as the AT is operational. Also recent DES analyses have shown the water data can be determined (to first order) from photometery | D18: Will reduce the number of systems to install/commission | E18: About 60k in hardware, then software dev time as well (but you'll have to ask Andy how much) | F18: Minor amount of savings in time. No hugely significant | G18: 52 | H18: flat | I18: 2020-01-01 | J18: 2020-07-01 | K18: Available
A19: TS20 | B19: AT Primary mirror recoating | C19: Will result in a ~10% decrease in throughput and more scattered light. | D19: Delays any modifications required to the coating chamber (or one of the adjacent coating chambers that could do it e.g. Gemini). The mirror will one day need recoating, and delaying the building up of the capability increases the risk of signficant schedule hits should the coating start to degrade or be damaged | E19: 60k for coating, but again the recoating capability is still required, so the gain in cost is essentially zero unless the recoating becomes an operations activity. | F19: This is an easily parallelized activity. Don't expect any significant schedule gain. | G19: 67 | H19: Flat | I19: 2019-09-01 | J19: 2022-07-01 | K19: Available

Sheet T&S Opportunities#
A1: Performance Opportunities
A2: Scope ID | B2: Title | C2: Scientific Impact | D2: Technical Impact | E2: Budget Impact | F2: Schedule Interactions | G2: Cost Potential | H2: Profile (flat or tapered) | I2: Early Date (when value decline starts) | J2: Latest Date (when value=0) | K2: Status | L2: Comment | M2: Early FY | N2: Late FY
A3: TS1-U | B3: Linear Drives for the Dome | C3: Negligible | D3: This option would be to upgrade the current dome drive system to a magnetic direct drive system. This upgrade would improve the commissioning effort and lower the performance risks to have the dome and telescope mount driven using the same technology. | E3: Current estimate for a 30-meter diameter track is $1.3M (minus credit from removing the baseline approach). | F3: No schedule impact | G3: 1100 | H3: Flat | I3: 2014 | J3: 2015 | K3: Un-Available | L3: Dome has identical capacitor bank system, but traditional pinon gear drives.
A4: TS2-U | B4: TMA Shipping from Vendor | C4: Negligible | D4: This option would transfer shipping/summit delivery scope of the Telescope Mount Assembly from LSST to GHESA. Currently LSST has budgeted $560k to insure and transport the hardware. Scope transfer to GHESA would mitigate potential warranty/performance issues in between factory test and summit integration. | E4: GHESA has the experience and capability to complete the shipping but the additional responsibility is estimated to come at a cost of 30 to 50% greater than the LSST estimate. | F4: There is no schedule impact to this option | G4: 280 | H4: Flat | I4: 2016 | J4: 2017 | K4: Un-Available | L4: Partially implemmented but LSST is now staffed to complete the logistics more efficiently than the contractor
A5: TS3-U | B5: Enhanced Summit Infrastructure | C5: Negligible | D5: The baseline plan was to utilize the minimal infrastructure In place to support current Project efforts with only new infrastructure being the actual summit support building and the base facility. Opportunity was identified and implemented to provide office and staff support space on the summit to reduce the logistical complexity of the telescope and site integration and project wide commissioning phase. Contractor's on-site dining facility was also purchased allowing for more efficient, flexible meal service and less lost crew time in transit. | E5: Infrastructure purchased from Besalco (general construction contractor) at a cost of $245K. Additional ~50 K of outfitting will be required | F5: This option allows for more efficient integration and commissioning efforts that would improve schedule - No quantification of the benefit can be determined at this time. | G5: 300 | H5: Flat | I5: 2016 | J5: 2017 | K5: Implemented
A6: TS4-U | B6: Summit Fuel Storage | C6: Negligible | D6: This option would increase the summit fuel storage from 3 days to 7 days. The baseline capacity was determined for an average ability to get fuel trucks to the summit in the event that long term generator use is required for back-up power. Recent examples of weather related problems and an increase in grid power problems indicate the Program risk for the construction effort has increased and would be significantly reduced with 7 to 8 days of fuel on hand. | E6: The cost of a larger tank is estimated to increase cost by $10K. There is an estimated $10K in additional construction labor to install the tank and there is $30K in design, permitting, and other implementation tasks for the larger capacity system. | F6: No schedule impact | G6: 50 | H6: Flat | I6: 2016 | J6: 2016 | K6: Implemented
A7: TS5-U | B7: M1M3 Thermal Control System Testbed | C7: Negligible | D7: This option would establish a work package to build a M1M3 testbed with surrogate section of a mirror for thermal control system testing. The current plan is to deploy the thermal management system on the operational mirror cell and debug and commission the system on the real mirror. A testbed would significantly reduce the risk of development and allow work to be completed early and decoupled from the mirror system development. | E7: An M1M3 thermal testbed is estimated at $150K in hardware for glass and sensors and the development and test program is estimated at 1 FTE. | F7: This option would be executed in parallel with M1M3 system construction and would reduce M1M3 commissioning time by 2 months. Completing this option would significantly reduce schedule risk as well. | G7: 300 | H7: Flat | I7: 2017-10-01 | J7: 2019-12-01 | K7: Available | L7: Reduced - Absolute temperature sensor + fan coil units on a testbed
A8: TS6-U | B8: Photovoltaic System for the Base | C8: Negligible | D8: This option would provide for electricity for the base facility office building and data center. The A&E firm developed the necessary design features needed to support the facility needs | E8: The A&E firm targeted $300-400k to implement this system. During Phase 2 constrution bid soliciation, a vendor did submit a proposal for $400k to implement this option. Estimated payback period is ~12 years, so savings in electrical costs would not recover investment until approximately the end of the LSST project survey period. Benefit would be via investment of contingency during constuction to help defray future costs fduring operations | F8: No schedule impact | G8: 300 | H8: Flat | I8: 2017-10-01 | J8: 2021-10-01 | K8: Available
A9: TS6-U | B9: Electrical Cabinet testing at CAID | C9: Negligible | D9: Option: Install the test cRIO from the lab to use at CAID. Feeding subnets A to E. This will allow M1M3 to start testing hard points and pneumatic actuators together. (Communication, timing, lift the Surrogate Mirror, characterization for hardpoint off loading system) | E9: This will requirer 1 FTE eletrical, 0.5 software FTE, 0.5 mechanical FTE Approx. $8K in purchased materials. | F9: Moving this test to CAID would save 20 workings day of schedule slip. This will allow bulkhead panel assembly to continue assembly until B3 can deliver the Electrical Cabinet needed for integration into cell. | G9: 10 | H9: Flat | I9: 2018 | J9: 2018 | K9: Implemented | L9: We should buy more cRIO as back ups.
A10: TS7-U | B10: M2 Hexapod Installation on TEA Before TMA Integration | C10: Negligible | D10: Will reduce time and risk involved in installing M2 hexapod on telescope | E10: Reduces cost of developing M2 hexapod on telescope installation fixtures | F10: Eliminates time budgeted for M2 hexapod installation since M2 hexapod would be installed on Top End Assembly concurent with TMA assembly. | G10: 50 | H10: Flat | I10: 2018-10-01 | J10: 2020-03-31 | K10: Available | L10: Working with TMA vendor to understand support equipment to be delivered to site
A11: TS8-U | B11: Testing of the effect of thermal control system Fan vibrations on the image quality, @ Uof A | C11: The purpose of this test is to directly correlate image quality with Fan induced vibrations, consequently, it is conducted under the interferometer. These effect can be investigated through wave front measurements and accelerometers, however not as accurately. Consequently, there may be some reduction in image quality. | D11: Since the effect of Fan induced vibrations on the image quality it will not be directly measured, they will have to be investigated with less accurate methods. These include image quality analysis and the mirror vibrations measured through the accelerometers. Without early discovery of a problem, engineering a solution will be delayed until summit testing possibly adding schedule delay to summit commisioning. | E11: This will require 2 FTEs mechanical & electrical plus 1 tech FTE | F11: Removing this test would require 20 workings days at the U@A mirror lap. However, it will shorten calibrating the thermal control system at the summit. | G11: 50 | H11: Flat | I11: 2018-10-01 | J11: 2018-10-01 | K11: Un-Available | L11: Currently not part of baseline M1M3 plan
A12: TS9-U | B12: Development of M1M3 transportation support system, air pressure preservation system. | C12: If the mirror support system malfunctions during shipping the mirror could be damaged which would preventing the survey. | D12: The air bags that support the M1M3 could deflate during shipping. The M1M3 would no longer be safely supported during shipping. | E12: This will requirer 1 FTE mechanical, 0.5 electrical FTE, 1 tech FTE & 0.5 Software FTE Approx. $10K in purchased materials. | F12: Design and development of this system will require 30 working days (6 weeks) of effort. Plus material and fabrication | G12: 25 | H12: Flat | I12: 2018-10-01 | J12: 2019-10-01 | K12: Implemented | L12: Design new system
A13: TS10-U | B13: Purchase scaffolding to increase dome assembly efficiency | C13: None | D13: Additional scaffolding onsite will enable better access to the dome for integration and assembly activities. Could also be configured to enable TMA pier work in parallel. | E13: $200k | F13: Could enable more efficient simultaneous work on the summit for both dome and TMA vendors. | G13: 200 | H13: Flat | I13: 2018-04-01 | J13: 2020-01-01 | K13: Available

Sheet EPO De-Scope!
A1: De-Scope Options
A2: Scope ID | B2: Title | C2: Scientific Impact | D2: Technical Impact | E2: Budget Impact | F2: Schedule Interactions | G2: Value Potential ($K) | H2: Profile (flat or tapered) | I2: Early Date (when value decline starts) | J2: Latest Date (when value=0) | K2: Status | L2: Comment | M2: Early FY | N2: Late FY
A3: EP1 | B3: classroom loaner tablet sets | C3: The bulk of EPO deliverables require an online compute device (laptop, tablet, etc.) Many underserved communities which EPO is targeting to meet our diversity requirements are financially disadvantaged and don't have the monetary resources to provide these prerequisite devices to their students. To offer an equal opportunity to schools that would otherwise not be able to participate, LSST EPO is planning to purchase a number of tablet devices and loan sets of them to schools that participate in our professional development program and have demonstrated strong committment and sincere need. | D3: Without Internet-enabled devices, schools cannot participate in our science notebook-powered education program. | E3: $566,381 is allocated in FY21 for the purchase of modern tablets, storage, and shipping containers. Existing EPO staff will absorb the administrative overhead of managing the distribution and tracking. | F3: Purchase occurs in FY21 to avoid technology outdating if a large hardware investment was made earlier in construction. | G3: 566 | H3: flat | I3: 2020-10-01 | J3: 2021-10-01 | K3: Available
A4: EP2 | B4: real-time telescope status | C4: Field research has shown that our EPO audiences are strongly interested in what's happening real-time with the telescope -- what's the current weather, what is it viewing right now, what is happening inside the dome, etc. LSST EPO would like to purchase a number of devices that offer real-time metrics for the public: an infrared (night-vision) camera for the dome, fisheye webcam for the dome (including timelapse capability), small (~16") telescope to (ideally) mount on the LSST support frame or (alternatively) the rotating pier base. | D4: The are technical advantages that go beyond EPO public interest. Chuck Claver has long advocated for a brighter-magnitude telescope mounted in the dome to offer a secondary perspective of the telescope activity (direction telescope is pointing with more recognizable sky objects) as well as capture brighter magnitude events if desired. These devices could also help alleviate some of the summit monitoring burden that would otherwise require additional staff or night driving. | E4: $300,000 is allocated in FY21 for the purchase, installation, and configuration of the desired hardware. | F4: Timing coincides with commissioning to also assist with that effort. | G4: 300 | H4: flat | I4: 2020-10-01 | J4: 2021-10-01 | K4: Implemented | L4: the hardware aspect of this deliverable has been descoped and funds have been reallocated. OK
A5: EP3 | B5: EPO custom alert stream classification broker | C5: EPO requirements related to alert stream filtering and winnowed display of alert stream information in the EPO Portal, citizen science projects, and planetarium deliverables assume the availability of LSST alert stream classification (i.e. distinguishing if the alert object is an asteroid, comet, supernova, etc.). However, the raw LSST alert stream will not provide classification of objects. Therefore, EPO must either develop a classification engine (e.g. broker) in-house or leverage a broker developed by the scientific community. Currently, the only community broker that might offer this capability is ANTARES. However, their funding model is uncertain and would introduce risk to EPO delivery success if EPO relied on that third-party product. | D5: It would be less expensive but more risky to partner with ANTARES to obtain LSST alert stream classification. Therefore LSST EPO is currently allocating funds to develop an in-house classification broker. | E5: By committing to using ANTARES (a more risky approach), LSST EPO could save an estimated $200,000 in development costs. | F5: Tapered reduction in effort over four years. Some funds would still be required to modify and configure ANTARES for LSST EPO's specific use case (format, interface, training sets, etc) | G5: 200 | H5: tapered | I5: 2017-10-01 | J5: 2021-10-01 | K5: Implemented | L5: this deliverable has been descoped and funds have been reallocated
A6: EP4 | B6: Solar System 3D model | C6: A 3D model of the solar system will be a powerful tool for non-specialists to vizualize the distances, sizes, and sheer number of new solar system objects LSST will uncover. This will also help people explore where the near-flying asteroids are relative to Earth, which is a major science goal of LSST. | D6: LSST EPO would likely contract this work since the required development skills are specialized. | E6: $80K is allocated (combined) in FY19 and FY20 for the contractual development of this deliverable. | G6: 80 | H6: flat | I6: 2018-10-01 | J6: 2020-10-01 | K6: Available
A7: EP5 | B7: 3D tour of the LSST facility | C7: Since people will not visit the site at Cerro Pachon, a 3D tour allows everyone to understand the immensity of the telescope, the size of the camera, and how quickly the telescope can move to new positions. The personalized experience of being on the mountain top with the telescope makes the science more relatable to EPO audiences. | D7: LSST EPO would likely contract this work since the required development skills are specialized. | E7: $150K is allocated in FY20 for the contractual development of this deliverable. | G7: 15 | H7: flat | I7: 2019-10-01 | J7: 2020-10-01 | K7: Available
A8: EP6 | B8: Planetarium sky view with alert overlay | C8: Public use and awareness of the LSST alert stream will be significantly reduced. Planetariums support one of the largest and most diverse audiences for EPO. | D8: LSST EPO would likely contract this work since the required development skills are specialized. | E8: $300K is allocated in FY19 for the contractual development of this deliverable. | G8: 300 | H8: flat | I8: 2018-10-01 | J8: 2019-10-01 | K8: Unavailable
A9: EP7 | B9: De-scope citizen science as an EPO deliverable | C9: Citizen Science is a pillar of the EPO program and offers tremendous value to the scientific community (crowdsourcing data analysis when machine learning automation isn't available) as well as engaging the general public and raising awareness of LSST data. | D9: LSST EPO would likely contract this work since the required development skills are specialized. | E9: $280K is allocated for the contractual development of this deliverable. | G9: 280 | H9: tapered | I9: 2018-07-01 | J9: 2020-10-01 | K9: Available

Sheet EPO Opportunities#
A1: Performance Opportunities
A2: Scope ID | B2: Title | C2: Scientific Impact | D2: Technical Impact | E2: Budget Impact | F2: Schedule Interactions | G2: Cost Potential | H2: Profile (flat or tapered) | I2: Early Date (when value decline starts) | J2: Latest Date (when value=0) | K2: Status | L2: Comment | M2: Early FY | N2: Late FY
A3: EP1-U | B3: virtual/augmented reality | C3: Research studies have demonstrated improved learning comprehension and retention with 3D visualization (http://www.astronomycenter.org/items/detail.cfm?ID=13750). In addition, there is strong interest by the general public (as evidenced by Pokemon Go! and the book/movie Ready Player One), planetarium community (https://www.linkedin.com/pulse/virtual-reality-planetarium-patrick-mcpike), and formal education (https://edu.google.com/expeditions/#about). LSST would like to evaluate this technology to see if it holds promise for our program. | D3: LSST EPO would likely contract this work since the required development skills are specialized. | E3: According to the May 2016 report "Augmented Reality and Virtual Reality Market - Global Forecast to 2022", the global augmented reality and virtual reality market is expected to reach USD 151.30 Billion by 2022 (source: http://www.marketsandmarkets.com/PressReleases/augmented-reality-virtual-reality.asp). Since this technology is in high-demand, hiring or contracting the necessary developers will be expensive. As a rough guide, Kristina Llewellyn, a professor at the University of Waterloo and faculty member at The Games Institute, is working on a $500,000 dollar VR project for Nova Scotia high school students — dubbed the Digital Oral Histories for Reconciliation (DOHR) project (http://www.cbc.ca/news/entertainment/virtual-reality-education-1.4152384). | F3: Best to begin as early as possible due to the development complexity and current competition for resources. | G3: 500 | H3: flat | I3: 2017-10-01 | J3: 2021-01-01 | K3: Available

Sheet CO De-Scope!
A1: De-Scope Options
A2: Scope ID | B2: Title | C2: Scientific Impact | D2: Technical Impact | E2: Budget Impact | F2: Schedule Interactions | G2: Value Potential ($K) | H2: Profile (flat or tapered) | I2: Early Date (when value decline starts) | J2: Latest Date (when value=0) | K2: Status | L2: Comment | M2: Early FY | N2: Late FY
A3: CO1 | B3: Eliminate Early System AI&T with ComCam | C3: Eliminates science algorithm and pipeline testing with ComCam. This will reduce feedback to the ongoing Data Management development effort and result in under developed algotithms and reduced pipeline performance at the start of operations. | D3: Risk of schedule delays for Full System AI&T with LSSTCam increases substantially. Late verification of system ICDs exposes schedule risk when these are tested for the 1st time with LSSTCam. Refrigeration startup is pushed to Full System AI&T resulting in the startup time with LSSTCam on the TMA taking much longer than currently planned. Active Optics System performance verification is not understood and leads to software development delays, extended unplanned testing and/or reduced system performance impacting image quality and science value of the survey data. Science pipeline algorithms do not achieve desired performance without early ComCam data leading to lower performance in early phases of operations affecting science quality of early data releases. Delays in Full AI&T with LSSTCam schedule would put Science Validation mini-Surveys at risk increasing likelihood of lower science pipeline performance at start of operations. Early interface verification between OCS, T&S, LSSTCam and DM is eliminated increasing risk durng Full System AI&T. | E3: Depending on when and how this scope option is exercised the budget impact will be different than the maximum potential indicated. Most of the budget potential is labor. ~$2000K in capital budget reduction can only be realized if this scope option is exercised before the end of FY18, otherwise the non-labor components will have been procured. | F3: Maximum potential of 6 months in schedule savings. | G3: 5000 | H3: tapered | I3: 2020-07-01 | J3: 2021-01-01 | K3: Available
A4: CO2 | B4: Eliminate Refrigeration Pathfinder | C4: Creates a schedule risk for the integration of LSSTCam on the telescope. More time will be needed for this phase of commissioning time will be taken from pipeline testing and science validation surveys. | D4: Refrigeration startup is pushed to Full system AI&T which will result in longer time required to integrate LSSTCam on the telescope using time allocated for science pipeline verification/validation and science validation mini-surveys. | E4: Labor required for refrigeration statup will still be needed, but at a later date. | F4: Full System AI&T will require more time than currently estimated to account for time needed to clean, purge and startup the refrigeration system. | G4: 0 | H4: tapered | I4: 2018-01-01 | J4: 2020-10-01 | K4: Unavailable
A5: CO3 | B5: Reduce extended observing and Science Pipeline Testing with ComCam | C5: Reduces early testing of science pipeline with LSST data reducing feedback to ongoing Data Management development efforts. This will cause reduced refinements in science algorithms and reduced pipeline performance in the early years of operations. | D5: If 1st, 2nd and 3rd observing blocks are eliminated then the science pipeline algorithms may not achieve desired performance without early ComCam data for algorithm development and corrections leading to lower performance in early phases of operations affecting science quality of early data releases. All items below are in play. If the 2nd and 3rd observing blocks are eliminated exploration of systematics in the science algorithms is limited resulting in reduced development and initial performance. All items below are in play. If 3rd observing block is eliminated then verification of scheduling algorithms will be delayed reducing time to modify scheduler software prior to the start of operations | E5: The observing block + associated punch list allocations are each 1 month long. Much of the associated cost with this descope would be used to cover shedule delay in the subsystems and reduce potential draw on MREFC contingency. The budget estimate is derived from the budgeted labor during these observing blocks plus the data services running at NCSA during this time period. | F5: Maximum potential of 3 months of schedule. | G5: 2700 | H5: tapered | I5: 2020-10-01 | J5: 2021-01-01 | K5: Available
A6: CO4 | B6: Reduce Extended Observing and Science Pipeline Testing with LSSTCam | C6: Reduces testing of science pipeline with full scale LSST data reducing feedback to ongoing Data Management development efforts. This will cause reduced refinements in science algorithms and reduced pipeline performance in the early years of operations. There is a risk that science pipeline efficiency is initially inadequate to handle full scale LSST data and production of data products is delayed until solution can be found. | D6: If the 1st and 2nd observing blocks from LSSTCam are eliminated then the science pipeline algorithms may not achieve desired performance for algorithm development and their corrections over the full 3.5 degree field-of-view leading to lower performance in early phases of operations affecting science quality of early data releases. All items below are in play. If the 2nd observing block from LSSTCam is eliminated exploration of systematics in the science algorithms over the full 3.5 degree field-of-view will result in reduced algorithm development and initial performance prior to the start of operations. This will result in lower performance of early alert production and data releases. | E6: The observing block + associated punch list allocations are each 1 month long. Much of the associated cost with this descope would be used to cover shedule delay in the subsystems and reduce potential draw on MREFC contingency. The budget estimate is derived from the budgeted labor during these observing blocks plus the data services running at NCSA during this time period. | F6: Maximum potential of 2 months of schedule. | G6: 2100 | H6: tapered | I6: 2021-07-01 | J6: 2021-10-01 | K6: Available
A7: CO5 | B7: Eliminate Both Science Validation Surveys | C7: Unable to verify/validate prompt processing of alerts and data release processing. Inreases risk that production of LSST data products in the early years of operations will be at a reduced efficiency. | D7: Without conducting SV mini-surveys the full demonstrations of operations readiness will not be achieved thereby increasing the risk of system level deficiencies that would impact early operational effectiveness. Full SRD / LSR compliance would not be demonstrated, particularly the ability to keep up with alert production and demonstrate 10-year survey performance on a limited number of field. Lack of full bandwidth, in survey type mode, will limit the ability to test and verify the system wide data processing infrastructure and capabilities. This exposes significant risks to the efficiencies and cost of operations. | E7: Science validation spans 3.5 months including observations for the mini-surveys and subsequent data processing. Much of the associated cost with this descope would be used to cover shedule delay in the subsystems and reduce potential draw on MREFC contingency. The budget estimate is derived from the budgeted labor during these observing blocks plus the data services running at NCSA during this time period. | F7: Maximum potential of 3.5 months of schedule. | G7: 4300 | H7: tapered | I7: 2021-10-01 | J7: 2022-01-01 | K7: Available
A8: CO6 | B8: Eliminate SV Survey for Alert Production | C8: Without conducting SV mini-survey for alert production the full demonstrations of differencing template will not be achieved increasing the risk of system level deficiencies that would impact early operational effectiveness. This would also affect the ability to bootstrap the production of differencing templates for early operational alert production potentially delaying alert production by at least 1-year affecting LSST’s early science footprint. | D8: Final development of DM final Alert Products Production algorithms for operational readiness would be reduced. | E8: Alert production mini-survey spans 1.5 months including observations and subsequent data processing. Much of the associated cost with this descope would be used to cover shedule delay in the subsystems and reduce potential draw on MREFC contingency. The budget estimate is derived from the budgeted labor during these observing blocks plus the data services running at NCSA during this time period. | F8: 1.5 months of schedule potential. | G8: 1600 | H8: tapered | I8: 2021-10-01 | J8: 2022-01-01 | K8: Available
A9: CO7 | B9: Eliminate SV Survey for Date Release Processing | C9: Without conducting SV mini-survey for 10-year performance the full demonstrations of system performance will not be achieved increasing the risk of system level deficiencies that would impact early operational effectiveness. | D9: Final development of DM final Data Release Production algorithms for operational readiness would be reduced. | E9: Data Release Production mini-survey spans 1.5 months including observations and subsequent data processing. Much of the associated cost with this descope would be used to cover shedule delay in the subsystems and reduce potential draw on MREFC contingency. The budget estimate is derived from the budgeted labor during these observing blocks plus the data services running at NCSA during this time period. | F9: 1.5 months of schedule potential. | G9: 1000 | H9: tapered | I9: 2021-10-01 | J9: 2022-01-01 | K9: Available
A10: CO8 | B10: Eliminate Calibration AI&T | C10: The calibration data products needed by the science pipeline validation would not be vaialable. This would compromise the general science validation effort. | D10: Without the auxiliary telescope generating atmospheric transmissioning maps the DM development relying on them would not be implemented and could compromise the early DRP data quality from first year data. | E10: Budget savings is estimated on the cost to operate the Auxiliary Telescope to support calibration prodcuts for validating the science pipelines. | F10: No real schedule impact since the integration of the Auxiliary Telescope occures in parallel with other planned activities that are not port of this de-scope option. | G10: 2170 | H10: tapered | I10: 2019-07-01 | J10: 2022-01-01 | K10: Available

Sheet CO Opportunities#
A1: Performance Opportunities
A2: Scope ID | B2: Title | C2: Scientific Impact | D2: Technical Impact | E2: Budget Impact | F2: Schedule Interactions | G2: Cost Potential | H2: Profile (flat or tapered) | I2: Early Date (when value decline starts) | J2: Latest Date (when value=0) | K2: Status | L2: Comment | M2: Early FY | N2: Late FY
A3: CO1-U | B3: Extend ORR Mini-Survey by 1-2 Months and Generate an Early Data Release | C3: By extending the "mini-survey" conducted during the final stages of science verification we can jump start the communities' involvement in science analysis and incorporate feedback earlier in Commissioning. | D3: This opportunity would also further advance the refinement of the data analysis algorithms used to process both Level-1 and Level-2 data products. This opportunity also provides a better verification of the scheduler algorithms and the resulting survey cadence to allow for better feedback earlier in Commissioning. | E3: The budget implication is based only on the "marching army" of the project staff over the extension period. | F3: The schedule implication is a 2 month effort before formal declaration of operations readiness. | G3: 3600 | H3: Flat | J3: 2022-01-01 | K3: Available
A4: CO2-U | B4: Early Shutdown to Address Improvements Developed out of Commissioning | C4: By programming a complete maintenance effort at the end of Commissioning, the Project can fully address improvements and issues discovered during commissioning. By doing so, the risk to completion is reduced and the risk to quality of the LSST survey will be reduced at the start than if these actions were avoided and the system was accepted into full operations. | D4: The risk of successful completion is reduced and the system would end up having high performance and reliability at the conclusion of commissioning than would otherwise be expected. | E4: There are capital expensing for improvements along with "marching army" costs of the project staff. Two months of staff costs are used for the impact. | F4: Implementing this work would require two months of effort to be included in the program prior to the formal declaration of operations readiness. | G4: 3600 | H4: Flat | J4: 2022-01-01 | K4: Available
A5: CO3-U | B5: Bootstrap Image Differencing Templates | C5: Early generation of Level 1 Alert events at the start of opperations. | D5: Currently templates are generated as part of the LEvel 2 Data Release process, DR1 is planned to be done with the first 6 months of data and will be completed 1 year after operations start. Completion of the commissiopning effort on schedule would allow time for the observations needed to deliver the first set of image difference template ahead of the release of DR1. However, the computing infrastructure needed to process images to produce the baseline image differencing templates is required in advance of current plans. | E5: Extended commissioning activities to conduct template observations reqquires ~$1800K of "marching army" costs. There will be an additional $250K for the early procurement of computing hardware to support the template production. | F5: This up-scope would utilize up to the 11 months of schedule contingency currently projected. Cost estimate based on utilizing 6 months, which is enough for the first set of observations to precess from behind the sun and be usable at the start of operations. | G5: 11050 | H5: Flat | J5: 2022-01-01 | K5: Available

Sheet All De-SCope
A1: De-Scope Options
A2: Scope ID | B2: Title | C2: Scientific Imapct | D2: Technical Impact | E2: Budget Impact | F2: Schedule Interactions | G2: Value Potential ($K) | H2: Profile (flat or tapered) | I2: Early Date (when value decline starts) | J2: Latest Date (when value=0) | K2: Status | L2: Comment | M2: Early FY | N2: Late FY
A3: SY2 | B3: Reduce System Process and Storage to SRD Minimum Specifications | C3: The full science impact is dependent on how the data volume is reduced or what data is in the 10% left unprocessed. A reduction of visits per unit area to the SRD minimum spec would result in a depth reduction of ~0.1 magnitudes in the final stack, assuming the main survey area is preserved. However, the decreased number of visits has a larger impact on weak lens systematics reduction and some types of transient object detection and monitoring depends on a higher power of the number of visits. The temporal impact is un-recoverable but the number of visits can be restored through another year of survey operation. | D3: This descope is the reduction of the data management capacity to process and store data coming off the telescope. The reduction of data volume is the result of either fewer images, fewer sensors or, dropped data. The visits per unit area of sky design point is 825 (SRD design spec) and the minimum is 750 (SRD minimum spec.) Reducing the number of visits to the minimum spec reduces the data volume. The data volume may be reduced by eliminating 20 sensors from the focal plane array or, if there are no changes to the focal plane or cadence, 10% of the data coming off the telescope is not stored or processed. This descope is a 10% reduction in the DM hardware to process and store data. Less equipment will be purchased and setup to provide the savings. To preserve full recovery, the network bandwidth is maintained. | E3: The Data Management Subsystem would reduce its data volume sizing by ~10%, both in single image size and in the total number of epochs processed (affecting the size of the database). Analysis from the DM sizing model shows that this descope would result in a cost reduction of ~$1.2M in the construction phase of the project. | F3: The Data Management Procurement strategy purchases hardware as late as possible therefore this descope can be realized or restored up until 6 months prior to the start of integration and test in 2019. | G3: 1200 | H3: Flat | I3: 2020-01-01 | J3: 2020-10-01 | K3: Available | M3: =IF(I3="","",YEAR(EDATE(I3,3))) -> 2020 | N3: 2021
A4: SY4 | B4: Eliminate Component Spares | C4: No immediate scientific impact, but can lead to excessive down time when repair or replacement of critical components is needed. | D4: This de-scope eliminates component spares from DM Eliminating such spares increases the risk of schedule overruns during commissioning should a component suffer early life failure and will impact system up-time requirements. | E4: Budget impact is based on estimated sparing costs from Data Management. This amount to ~3% of purchased hardware and capitol expenses related items spared (see LSE-170). For DM: 3% of $12.54M = $376K | F4: No Budget impact | G4: 376 | H4: Taper | I4: 2017-01-01 | J4: 2021-10-01 | K4: Available | M4: =IF(I4="","",YEAR(EDATE(I4,3))) -> 2017 | N4: =IF(J4="","",YEAR(EDATE(J4,3))) -> 2022
A5: SY5 | B5: Reduce System Verification Close Out Documentation | C5: No immediate scientific impact, but can lead to excessive down time when failures occur and root cause analsysis and repairs take longer than they would otherwise due to lack of complete verification documentation. | D5: Increases risk of not completely understanding if requirements have been fully verified when verification of requirements spans multiple Test Cases/Verification Events. This increases the risk to Operations that unexpected or unintended behavior may emerge over time, and some of the documentation that would help with root cause(s) investigations will not be available. | E5: Budget impact is based on assuming the effort of System Verification Team can be reduced by 1 FTE for 1 year in the Commissioning Phase. 1 Sr. Systems Engineeering, fully burdened for 1 year in FY2021 is $210,024. | F5: No impact on schedule. | G5: 210 | H5: Taper | I5: 2020-01-01 | J5: 2021-01-01 | K5: Available | M5: 2020 | N5: 2021
A6: SY6 | B6: Eliminate System-Level FMECA scope | C6: No immediate scientific impact, but can lead to excessive down time when failures occur and root cause analsysis and repairs take longer than they would otherwise due to lack of complete Failure Modes, Effects and Causality Analysis. | D6: Increases risk to Operations that root cause and corrective actiion investigations will take much longer after a failure than they would if FMECAs have been completed. | E6: Budget impact is based on the assumption that 1 SE will be working on this effort half time for two years. 1 Sr. Systems Engineeering, fully burdened at 1/2 time for FY2020 and 1/2 time FR2021 is $207,000 | G6: 207 | H6: Taper | I6: 2019-01-01 | J6: 2021-01-01 | K6: Available | M6: 2019 | N6: 2021
A7: DM1 | B7: Eliminate Real-Time Data Products | C7: Eliminates all time-domain science dependent on real-time alerts. Eliminates image differencing data products and software. The transient alerts would have to be genreated by a third party in the vicinity of the Base Facility in La Serena, Chile, using non-LSST software. Violates SRD requirements. | D7: This descope would eliminate the infrastructure for the alert production processing, distribution, and archiving. It would also reduce the Base to Archive network bandwidth requirements to roughly 5 Gbps. | E7: Eliminating the real-time alerts would result in a reduction of $25,300K in then-year dollars from reduced hardware and network costs ($18,300k) and labor ($7,000k). This includes labor saved by not developing those portions of the Alert Production software not also needed for Level 2 processing. | F7: While several scheduled elements and milestones would be eliminated, the project critical path would be unaffected. There would be ~2 months less integration time required during Construction/Commissioning as the Archive Center would be smaller and simpler. | G7: 25300 | H7: Tapered | I7: 2015-01-01 | J7: 2022-01-01 | K7: Available | L7: Changed the Scientific Impact text to make it clear this de-scope would violate one or more SRD-level requirements. 2019-07-11: Changed the title and impact to make clear that this refers to alerts not including other prompt data processing (MOPS), and to avoid the outdated “Level 1” terminology. Changed latest date to reflect current understanding of procurement. | M7: 2015 | N7: 2022
A8: DM2 | B8: Eliminate Support for non prject staff and User-Generated Data Products | C8: Eliminates capability to perform science analyses at LSST archive center. Eliminates support to use LSST software to build end-user science analysis tools. Violates SRD requirements. | D8: The current DAC design includes extensive support for user analysis, including hosting datasets that are not of LSST origin. The current model of operation of the DAC requires long-term storage of user-created data. This option would constrain the role of the DAC such that user storage is ephemeral. This would eliminate the infrastructure required to support user generated data products at the Data Access Centers. It might also require a re-negotiation of at least the intent, if not the letter, of the AURA - Chile agreement regarding LSST, since while that agreement only calls for a copy of a portion of the data to resided in Chile, there have been communications and expectations of a Data Access Center in Chile. User DB and user file systems would be smaller along. Qserv requirements would be simplified since no joins with user tables would be required. There would be a reduction in the LSP nodes/and compute requirements | E8: Eliminating the user generated data product support would result in a reduction of $2240K in then-year dollars from reduced hardware ($1500K) and labor ($740K) that includes labor removed by not developing the Science Pipeline Toolkit. There are on going operations savings here as well. | F8: There would be ~2 months less integration time required during Construction/Commissioning as the DACs would be smaller and simpler. | G8: 2240 | H8: Tapered | I8: 2015-01-01 | J8: 2021-10-01 | K8: Available | L8: Changed the Scientific Impact text to make it clear this de-scope would violate one or more SRD-level requirements. 2019-07-11: Changed title and impact to avoid the outdated “level 3” terminology. Changed latest date to reflect current understanding of procurement. | M8: 2015 | N8: 2022
A9: DM3 | B9: Eliminate or Defer Forced Source Catalog | C9: Eliminates ability to study low-level variability using LSST catalog data products. Scientists would not be able to analyze time-dependent behavior of faint objects. This would particularly impact time domain science for faint objects, including AGN. This science could be done with L3 resources, but at greatly reduced efficiency compared to that of the Data Release Production. | D9: This descope would eliminate infrastructure for performing forced source measurement and storage of the catalog. | E9: Eliminating the ForcedSource Catalog would result in a reduction of $4800K then-year dollars from reduced hardware and removed integration activity at the Archive. | F9: There would be ~1 month less integration time required during Construction/Commissioning as the Archive Center would be slightly smaller. | G9: 4800 | H9: Tapered | I9: 2015-01-01 | J9: 2021-10-01 | K9: Available | L9: 2019-07-11: Changed latest date to reflect current understanding of procurement. | M9: 2015 | N9: 2022
A10: DM4 | B10: Reduce Data Release Hardware by 10% (DR 1) | C10: There is a higher risk to the schedule of processing the first data release. The time required for processing the first data release will cause a 10% delay in DR1 and DR2 and a corresponding offset to subsequent releases. | D10: There is no engineering impact. | E10: This reduces the hardware and configuration costs for the initial DM hardware system put in place for the data processing for data release 1 by $650K. (LDM-144-v147, SiteRollup tab, cell M8). But at some future point this will need to purchased so at best we may be putting off to ops - at worst cause cascading delay in releases. | F10: There is no impact on the schedule of construviton - the data release schedule could be impacted. This impact would roll on to at least DR2. | G10: 650 | H10: Tapered | I10: 2018-01-01 | J10: 2021-10-01 | K10: Available | L10: Potential saving was reassed by KT with latest Cost model. 2019-07-11: Changed latest date to reflect current understanding of procurement. | M10: 2018 | N10: 2022
A11: DM6 | B11: Remove MultiFit Hardware and Test Processing in DR1 and DR2 | C11: Strongly degrades systematics-limited science (e.g. weak lensing) enabled by first two LSST Data Releases. No measurements of proper motions at low SNR in DR1 and DR2. Expect reduced quality in these areas in DR3. Does not formally violate the normative portions of the SRD, but changes the Project-Community boundary on weak lensing science (or delays the weak lensing science). We are currently studying the possibility to do lensing science on coadds using better algorithms - this may mitigate te use of MultiFit but may not bring the processor load significantly below the original envelope for multifit. | D11: This would eliminate a portion of the infrastructure needed for the first 18 months of operations, as compute-intensive measurements would not be made in Data Releases 1 and 2. There is a second order risk here in the uncertainty built into the entire processing need which incorporates MultiFit. Reducing the MultiFit hardware may exacerbate any shortcoming/under sizing of the remaining DRP hardware causing an unforeseen delay in regular release. | E11: $2,800K reduction due to reduced infrastructure at Archive Center. | F11: 2021 / can restore if not implemented or anytime thereafter. | G11: 2800 | H11: Tapered | I11: 2020-01-01 | J11: 2021-01-01 | K11: Available | L11: Added second order risk text (paraphrase RHL) and potential/parital mitigation of using Coadds. 2019-07-11: Changed latest date to reflect current understanding of procurement. | M11: 2020 | N11: 2021
A12: DM7 | B12: Defer MultiFit Software Development | C12: Strongly degrades systematics-limited science (e.g. weak lensing) until deferred work is completed. Little long-term damage to end-of-survey LSST science goals if deferred work is completed by DR4 or DR5. Does not formally violate the normative portions of the SRD, but changes the Project-Community boundary on weak lensing science (or delays the weak lensing science). We are currently studying the possibility to do lensing science on coadds using better algorithms - this may mitigate te use of MultiFit but may not bring the processor load significantly below the original envelope for multifit. | D12: This eliminates software development for significant science pipelines and middleware components from the construction plan, allowing experts in these areas to focus on other tasks in the short- or medium-term. MultiFit could be added to the existing software stack during Operations. There is a second order risk here in the uncertainty built into the entire processing need which incorporates MultiFit. Reducing the MultiFit hardware may exacerbate any shortcoming/under sizing of the remaining DRP hardware causing an unforeseen delay in regular release. | E12: Labor cost saving of $500k in 02C.04. This scope option is likely to automatically trigger DM6. | F12: Science Pipeline work could be completed earlier | G12: 500 | H12: Tapered | I12: 2018-01-01 | J12: 2022-10-01 | K12: Available | L12: Added second order risk text (paraphrase RHL) and potential/parital mitigation of using Coadds. 2019-07-11: Changed latest date to reflect current understanding of development timeline. | M12: 2018 | N12: 2023
A13: DM9 | B13: Do not observe/process crowded stellar fields at all. | C13: Galactic science (Stellar Populations and Milky Way and Local Volume Structure) would be severely impacted. It would not be possible to conduct the research described in Chapters 7.3, 7.4, 7.5 of the LSST Science Book. Though no normative SRD requirement would be violated, the SRD states that "the full avoidance of the Galactic plane would have a severe impact on the Galactic structure studies". Recent analysis suggests not observing crowded fields would not allow us to complete 18K degrees survey by a large extent. This would be a major violation of the SRD. | D13: Being able to assume the sky is uncrowded makes the algorithmic problems in image differencing and image characterization significantly easier, reducing software development costs. Integration and testing for high-level processing is also reduced, as crowded fields represent a qualitatively different testing regime even for algorithms that are not any more difficult in crowded fields. | E13: Saving is due to labor costs in Science Pipelines. | F13: Science Pipeline work could be completed earlier | G13: 600 | H13: Tapered | I13: 2018-01-01 | J13: 2021-10-01 | K13: Available | L13: Added comment on new analysis suggestomg this may violate SRD. 2019-07-11: Changed latest date to reflect current understanding of development timeline. | M13: 2018 | N13: 2022
A14: DM10 | B14: Eliminate the Portal Aspect of the Science Platform | C14: Descoping the Portal aspect is prefered as JupyterLab is key to comissioning. Would result in an extremely poor support of the broad science community, especially the less capable and casual users. Would force users to use JupyterLab aspect for all LSST data access, or perform analysis and downloads via remote analysis tools (e.g., TOPCAT). | D14: Reduce development effort significantly on user interface and data acccess. A single aspect platform i.e. only one of DAX, JupyterLap or Portal is not really possible, or if it were to be one it woul have to be the Data Access Services (DAX). The portal then could could be very simple layer on DAX to discover data - no MYDB, no next-to-the-data processing. | E14: Considerable savings if done now - less as each year passes. Significant effort has already been invested in the Science Platform. | F14: If done early not much impact on schedule. Considerable user expectation mangmeent would need to be done. | G14: 4000 | H14: Tapered | I14: 2017-01-01 | J14: 2021-01-01 | K14: Available | M14: 2017 | N14: 2021
A15: DM11 | B15: Relax Alert Completeness or Purity Requirements | C15: Relaxes OSS-REQ-0353. Greater numbers of false positives are allowed in the alert stream, or less completeness is tolerated. It may become more difficult to discover some classes of transients, or transient samples may be more contaminated by false detections. | D15: Reduced development effort would be possible on some aspects of the L1 pipeline, such as image characterization, crowded field processing, correction of Differential Chromatic Refraction, or spuriousness measures. More storage might be required to accomodate the increased number of false detections. | E15: Savings due to labor costs in science pipelines. | F15: Science Pipeline work could be completed earlier | G15: 400 | H15: Tapered | I15: 2018-01-01 | J15: 2021-10-01 | K15: Available | L15: 2019-07-11: Changed latest date to reflect current understanding of development timeline.. | M15: 2018 | N15: 2022
A16: DM12 | B16: Relax MOPS Completeness Requirements | C16: Relaxes OSS-REQ-0354. Less completeness is allowed for asteroid discoveries within the Solar System. While it does not violate the normative aspects of the SRD, it may compromise some SRD science goals describedin "Taking an Inventory of the Solar System". | D16: This permits less work developing and tuning MOPS algorithms. | E16: Savings due to labor costs in science pipelines. | F16: Science Pipeline work could be completed earlier | G16: 400 | H16: Tapered | I16: 2019-01-01 | J16: 2021-10-01 | K16: Available | L16: 2019-07-11: Changed latest date to reflect current understanding of development timeline. | M16: 2019 | N16: 2022
A17: DM13 | B17: Store only frequently accessed data in the Chilean DAC; size DAC strictly according to MOU. | C17: Reduces the amout of resources to Chilean science but maintains consistency with the LSST MOU with Chilean scientists. | D17: Primarily substitutes access at NCSA for infrequently used datasets, for datastes being present at the Base DAC. Candidate datasets are estimated to include template files and less accessed relational tables, for example the reformatted EFD. Computational resources available to Chilean scientists would be reduced in size according to 10% of the US DAC standard in the MOU. | E17: LDM_144 V145 indicated expense of about $1.3M, in hardware. Subject to a change control analysis, I estimate saving at $500K, +- $200K. (There an absolute pedestal for a full QSERV and the raw data) | F17: Minimal. | G17: 500 | H17: Tapered | I17: 2019-01-01 | J17: 2021-07-01 | K17: Available | L17: 2019-07-11: Changed latest date to reflect current understanding of procurement. | M17: 2019 | N17: 2021
A18: DM14 | B18: Don't provide notebook templates and other advanced usability aids | C18: We currently plan to provide a tested template library of notebooks performing common LSST data analysis tasks (in order to bootstrap commissioning and general science user notebook development; and as tutorials of the capabilities of the platform) and an easy way to enable users to use them by starting from the templates and adapting them to their own use. Eliminating this work will be detrimental to the user experience, and will provide a significant barrier to JupyterLab adoption by project engineers and science users who are not fluent python programmers. | D18: Users may create notebooks that use L3 resources inefficiently or require increased post-facto helpdesk support | E18: Saving is due to labor costs in SQuaRE | F18: SQuaRE effort could be reduced before start of operations | G18: 360 | H18: Tapered | I18: 2020-01-01 | J18: 2021-10-01 | K18: Available | L18: 2019-07-11: Changed latest date to reflect current understanding of development timeline. | M18: 2020 | N18: 2022
A19: DM15 | B19: Reduce Prompt Processing Ingest Service availability and reliability | C19: higher latency for raw image to NCSA and hence slower alert publication | D19: data distribution environment minimized image can be sent as 1 file normally, and only send 1 copy of the file, cross talk from the camera not required and can be computed. | E19: Maintaining a 99.8% realiability requires failover/maintenance systems, non-interruptible environments (network, power, filesystems, transfer mechanisms...) , reduce redundant provisioning; not requiring a specialized enviornment; isolation enclave (requires redundant enviornments for failover) Reduced costs here come from reducing the requirements on these systems at NCSA and in Chile, and lowering the level of wide area network support. | F19: This is not on the critical path, and would reduce overall work required. | G19: 500 | H19: Flat | I19: 2019-10-01 | J19: 2021-10-01 | K19: Available | L19: 2019-07-12: Created | M19: 2020 | N19: 2022
A20: DM16 | B20: Relax the Prompt Processing Ingest Service latency to several minutes | C20: higher latency for raw image to NCSA and hence slower alert publication | D20: data distribution environment minimized image can be sent as 1 file normally, and only send 1 copy of the file, cross talk from the camera not required and can be computed. | E20: Data arrive at NCSA on the order of minutes after camera readout. That data is then available for batch processing. Relaxing the latency requirement to use normal routed networks and very prompt batch processing reduces system complexity very substantially. | F20: Not on the critical path | G20: 1000 | H20: Flat | I20: 2019-10-01 | J20: 2021-10-01 | K20: Available | L20: 2019-07-12: Created | M20: 2020 | N20: 2022
A21: DM17 | B21: Provide only notebook aspect and portal aspect of LSP at Chile: serve data from the Data Facility only | C21: Chilean scientists (100) would need to retireve data from NCSA instead of Chile. | D21: All Chilean scientists need to get resources from LDF. US DAC becomes LSST DAC. | E21: Reduce costs by eliminating the DAC in Chile. Qserv + Kubernetes notebook infrastructure could still be provided for 100 Chilean scientists. | F21: Not on the critical path | G21: 1000 | H21: Flat | I21: 2019-10-01 | J21: 2021-10-01 | K21: Available | L21: 2019-07-12: Created | M21: 2020 | N21: 2022
A22: DM18 | B22: Delete Data Backbone and Data Access Center in Chile: serve data from NCSA only. Only have commissioning cluster and other smaller systems required at Base Data Center for staff | C22: Chilean scientists (100) would need to retieve data from NCSA instead of Chile. | D22: A secondary disk copy of all the raw data would not be managed by the project. IN2P3 is supposed to contain the entire RAW set of data also, but the 2nd copy would not be transferred and managed by tools at LDF. It woudl be delivered to IN2P3. If there was a problem with the data at IN2P3, it would not be known by tools at LDF. This woudl impact disaster recovery in that restore of data would require from tape, and a purchase of media to cover that cost. To mitigate this risk: a copy of the data stored into the “deep freeze” cloud never to really be retrieved. This does need to be studied to see if the cost savings is really that. Need rainyday fund to prepare incase we ever need to get data out of deep freeze storage. Extremely human intense process to get data from deep freeze. | E22: No Data Access Center or Data Backbone environments in Chile. This is a substantial saving, but runs the risk of a large operational human and operational cost to restore lost files in a disaster recovery scenario. | F22: Not on the critical path | G22: 1500 | H22: Flat | I22: 2019-10-01 | J22: 2021-10-01 | K22: Available | L22: 2019-07-12: Created | M22: 2020 | N22: 2022
A23: TS2 | B23: Reduced Base Facility Functionality | C23: Negligible. | D23: The Base Facility scope is derived from the use cases to support the Operations Phase as well as the support of the construction and commissioning. The design of the facility is complete. Construction bidding resulted in ~25% overbudget condition which was reduced to ~15% by descope, which had no significant technical impact. Construction is now substantially complete. Any available scope options that reamin at this point would be relatively minor, related to post construction improvements for intended use, (e.g. Remote Operations room outfitting, furnishings budget, reduction in computing rack utilities). | E23: Reduction of approximately 1% of the budget is considered to be available. | F23: Negligible | G23: 100 | H23: Taper | I23: 2017-01-01 | J23: 2020-01-01 | K23: Available | M23: 2017 | N23: 2020
A24: TS6 | B24: Reduce Summit Lodging Expansion | C24: There is no measurable science impact perceived from this descope. More intangible impact on science could result if adequate lodging is not available on Pachon for night crew. | D24: The element includes the construction of the summit lodging facilities to support LSST integration, commissioning, and operations teams. The facility is an addition to the existing Pachón lodging and dining building. Facilities on Pachón are highly beneficial to support the operations team and the large teams of engineers, scientists, and workers who will be performing time-critical integration, assembly, test, commissioning activities. Utilization of facilities on the adjacent summit are significant safety concerns and will require additional travel resources, and increased wear on roads and equipment. | E24: The original overall project budget for a permanent lodging addition was $857 K. The implemented descoped option budget is $535 K which is currently under construction. There is a need for ~$200 K in other temporary lodging provisions during peak occupancy of AIV to compensate for the descoped lodging addition. Given these anticipated expenditures there is a potential for ~$120K potentially available descope. | F24: The summit lodging room addition is under construction with anticipated completion in September 2019. This activity will not impact overall project schedule. | G24: 120 | H24: Flat | I24: 2018-01-01 | J24: 2020-01-01 | K24: Available | L24: Currently moving forward with reduced scope increase in lodging desribed in TS6. | M24: 2018 | N24: 2020
A25: TS10 | B25: Eliminate ComCam | C25: ComCam was designed as a pathfinder for the DM and Camera interfaces as well as validatng the mirror support systems. Eliminating this scope could severely diminish the commissioining effort and cause signficant delays in transition to operations. | D25: The impact will significantly slow the understanding of the telescope/camera performance and could prevent the successful integration of them in the worst scenario. | E25: The ComCam budget is approx $1.3M (about $400k has already been spent). | F25: This descope could also be selected if the T&S completion is later and the camera arrives early. | G25: 100 | H25: Taper | I25: 2016-07-01 | J25: 2020-01-01 | K25: Available | L25: Integration in AZ is planned before shipment to Chile. | M25: 2016 | N25: 2020
A26: TS11 | B26: Eliminate M3 Interferometer Testing | C26: The ability to control the mirror surfaces is paramount to providing good image quality. Verification of the M1M3 active optics system (by measuring M3) is necessary to confirm the telescope system is performing to specification to enable science requirements to be achieved. Eliminating the Interferometric testing of M3 on the telescope will increase the risk of decreased performance early in the commissioning. | D26: The impact will significantly slow the understanding of the telescope/camera performance and could prevent the successful integration of them in the worst scenario. | E26: The M3 interferometer budget is approx $230k (about $30k has already been spent). | F26: This descope could be selected if the M1M3 system is substantially late to Chile and is impacting the overall schedule. | G26: 180 | H26: Flat | I26: 2017-01-01 | J26: 2019-10-01 | K26: Available | L26: Should be considered along with TS9 for full impact. Partial de-scope per LCR-1577? This was partially descoped to use a Shack Hartmann instead of the interferometer. More tests in the lab are planned for Aug 2019 to see its feasability | M26: 2017 | N26: 2020
A27: TS12 | B27: OCS gui interface | C27: Possible increase of downtime due to inability to access to the information quickly | D27: More difficult to inability to solve problems in a timely fashion | E27: Some visualisation would still be needed so only ~$250K of the remaining ~$400K would be saved. | F27: This descope would not have much impact on the schedule since some of the functionality would still need to be developed | G27: 250 | H27: Flat | I27: 2017-01-01 | J27: 2020-01-01 | K27: Available | L27: INRIA control room effort should consider this option. | M27: 2017 | N27: 2020
A28: TS13 | B28: Operations from Summit Only | C28: Potential for slower troubleshooting responses. More frequent trips for people to Chile. | D28: Reduction in the hardware, software and safety oversight needed to be able to operate from remote locations. | E28: Significant, not sure the scope of this work has been addressed in the first place, which requires much more monitoring equipment and safety considerations. But the control room could reduce the number of trips from the Tucson and SLAC staff to the site | F28: More remote operations centers it will negatively impact the schedule. | G28: 150 | H28: Flat | I28: 2018-01-01 | J28: 2020-01-01 | K28: Available | L28: INRIA control room effort should consider this option. | M28: 2018 | N28: 2020
A29: TS14 | B29: Reduce Environmental Awareness System's "Awareness" | C29: Could impact the scheduler's decision making if some functionality is missing from the EAS. It would also impact the image quality diagnostics | D29: Would limit our baseline environmental data that will help characterize the dome + telescope environment. | E29: Save $ on weather sensors and labor costs. | F29: Save time on development, testing and verification of EAS. | G29: 50 | H29: Flat | I29: 2018-01-01 | J29: 2020-01-01 | K29: Available | L29: INRIA control room effort should consider this option. | M29: 2018 | N29: 2020
A30: TS18 | B30: Guider | C30: Negligible if we have a tracking system that meets requirement for the 30s exposure. The guider show also lower performance and some have glowing issues which ould impact the performance of the actual science camera. | D30: Put more pressure on the TMA requirements. | E30: Software development saving | G30: 23 | H30: Taper | I30: 2019-07-01 | J30: 2020-07-01 | K30: Available | L30: Right now the plan is to ask John Pareljko from DM to help with the development. Some of the development can also help the Active Optics System. | M30: 2019 | N30: 2020
A31: TS19 | B31: GPS | C31: Essentially none so long as the AT is operational. Also recent DES analyses have shown the water data can be determined (to first order) from photometery | D31: Will reduce the number of systems to install/commission | E31: About 60k in hardware, then software dev time as well (but you'll have to ask Andy how much) | F31: Minor amount of savings in time. No hugely significant | G31: 52 | H31: Flat | I31: 2020-01-01 | J31: 2020-07-01 | K31: Available | M31: 2020 | N31: 2020
A32: TS20 | B32: AT Primary mirror recoating | C32: Will result in a ~10% decrease in throughput and more scattered light. | D32: Delays any modifications required to the coating chamber (or one of the adjacent coating chambers that could do it e.g. Gemini). The mirror will one day need recoating, and delaying the building up of the capability increases the risk of signficant schedule hits should the coating start to degrade or be damaged | E32: 60k for coating, but again the recoating capability is still required, so the gain in cost is essentially zero unless the recoating becomes an operations activity. | F32: This is an easily parallelized activity. Don't expect any significant schedule gain. | G32: 67 | H32: Flat | I32: 2019-09-01 | J32: 2022-07-01 | K32: Available | M32: 2019 | N32: 2022
A33: EP1 | B33: classroom loaner tablet sets | C33: The bulk of EPO deliverables require an online compute device (laptop, tablet, etc.) Many underserved communities which EPO is targeting to meet our diversity requirements are financially disadvantaged and don't have the monetary resources to provide these prerequisite devices to their students. To offer an equal opportunity to schools that would otherwise not be able to participate, LSST EPO is planning to purchase a number of tablet devices and loan sets of them to schools that participate in our professional development program and have demonstrated strong committment and sincere need. | D33: Without Internet-enabled devices, schools cannot participate in our science notebook-powered education program. | E33: $566,381 is allocated in FY21 for the purchase of modern tablets, storage, and shipping containers. Existing EPO staff will absorb the administrative overhead of managing the distribution and tracking. | F33: Purchase occurs in FY21 to avoid technology outdating if a large hardware investment was made earlier in construction. | G33: 566 | H33: flat | I33: 2020-10-01 | J33: 2021-10-01 | K33: Available | M33: 2021 | N33: 2022
A34: EP4 | B34: Solar System 3D model | C34: A 3D model of the solar system will be a powerful tool for non-specialists to vizualize the distances, sizes, and sheer number of new solar system objects LSST will uncover. This will also help people explore where the near-flying asteroids are relative to Earth, which is a major science goal of LSST. | D34: LSST EPO would likely contract this work since the required development skills are specialized. | E34: $80K is allocated (combined) in FY19 and FY20 for the contractual development of this deliverable. | G34: 80 | H34: flat | I34: 2018-10-01 | J34: 2020-10-01 | K34: Available | M34: 2019 | N34: 2021
A35: EP5 | B35: 3D tour of the LSST facility | C35: Since people will not visit the site at Cerro Pachon, a 3D tour allows everyone to understand the immensity of the telescope, the size of the camera, and how quickly the telescope can move to new positions. The personalized experience of being on the mountain top with the telescope makes the science more relatable to EPO audiences. | D35: LSST EPO would likely contract this work since the required development skills are specialized. | E35: $150K is allocated in FY20 for the contractual development of this deliverable. | G35: 15 | H35: flat | I35: 2019-10-01 | J35: 2020-10-01 | K35: Available | M35: 2020 | N35: 2021
A36: EP7 | B36: De-scope citizen science as an EPO deliverable | C36: Citizen Science is a pillar of the EPO program and offers tremendous value to the scientific community (crowdsourcing data analysis when machine learning automation isn't available) as well as engaging the general public and raising awareness of LSST data. | D36: LSST EPO would likely contract this work since the required development skills are specialized. | E36: $280K is allocated for the contractual development of this deliverable. | G36: 280 | H36: tapered | I36: 2018-07-01 | J36: 2020-10-01 | K36: Available | M36: 2018 | N36: 2021
A37: CO1 | B37: Eliminate Early System AI&T with ComCam | C37: Eliminates science algorithm and pipeline testing with ComCam. This will reduce feedback to the ongoing Data Management development effort and result in under developed algotithms and reduced pipeline performance at the start of operations. | D37: Risk of schedule delays for Full System AI&T with LSSTCam increases substantially. Late verification of system ICDs exposes schedule risk when these are tested for the 1st time with LSSTCam. Refrigeration startup is pushed to Full System AI&T resulting in the startup time with LSSTCam on the TMA taking much longer than currently planned. Active Optics System performance verification is not understood and leads to software development delays, extended unplanned testing and/or reduced system performance impacting image quality and science value of the survey data. Science pipeline algorithms do not achieve desired performance without early ComCam data leading to lower performance in early phases of operations affecting science quality of early data releases. Delays in Full AI&T with LSSTCam schedule would put Science Validation mini-Surveys at risk increasing likelihood of lower science pipeline performance at start of operations. Early interface verification between OCS, T&S, LSSTCam and DM is eliminated increasing risk durng Full System AI&T. | E37: Depending on when and how this scope option is exercised the budget impact will be different than the maximum potential indicated. Most of the budget potential is labor. ~$2000K in capital budget reduction can only be realized if this scope option is exercised before the end of FY18, otherwise the non-labor components will have been procured. | F37: Maximum potential of 6 months in schedule savings. | G37: 5000 | H37: tapered | I37: 2020-07-01 | J37: 2021-01-01 | K37: Available | M37: 2020 | N37: 2021
A38: CO3 | B38: Reduce extended observing and Science Pipeline Testing with ComCam | C38: Reduces early testing of science pipeline with LSST data reducing feedback to ongoing Data Management development efforts. This will cause reduced refinements in science algorithms and reduced pipeline performance in the early years of operations. | D38: If 1st, 2nd and 3rd observing blocks are eliminated then the science pipeline algorithms may not achieve desired performance without early ComCam data for algorithm development and corrections leading to lower performance in early phases of operations affecting science quality of early data releases. All items below are in play. If the 2nd and 3rd observing blocks are eliminated exploration of systematics in the science algorithms is limited resulting in reduced development and initial performance. All items below are in play. If 3rd observing block is eliminated then verification of scheduling algorithms will be delayed reducing time to modify scheduler software prior to the start of operations | E38: The observing block + associated punch list allocations are each 1 month long. Much of the associated cost with this descope would be used to cover shedule delay in the subsystems and reduce potential draw on MREFC contingency. The budget estimate is derived from the budgeted labor during these observing blocks plus the data services running at NCSA during this time period. | F38: Maximum potential of 3 months of schedule. | G38: 2700 | H38: tapered | I38: 2020-10-01 | J38: 2021-01-01 | K38: Available | M38: 2021 | N38: 2021
A39: CO4 | B39: Reduce Extended Observing and Science Pipeline Testing with LSSTCam | C39: Reduces testing of science pipeline with full scale LSST data reducing feedback to ongoing Data Management development efforts. This will cause reduced refinements in science algorithms and reduced pipeline performance in the early years of operations. There is a risk that science pipeline efficiency is initially inadequate to handle full scale LSST data and production of data products is delayed until solution can be found. | D39: If the 1st and 2nd observing blocks from LSSTCam are eliminated then the science pipeline algorithms may not achieve desired performance for algorithm development and their corrections over the full 3.5 degree field-of-view leading to lower performance in early phases of operations affecting science quality of early data releases. All items below are in play. If the 2nd observing block from LSSTCam is eliminated exploration of systematics in the science algorithms over the full 3.5 degree field-of-view will result in reduced algorithm development and initial performance prior to the start of operations. This will result in lower performance of early alert production and data releases. | E39: The observing block + associated punch list allocations are each 1 month long. Much of the associated cost with this descope would be used to cover shedule delay in the subsystems and reduce potential draw on MREFC contingency. The budget estimate is derived from the budgeted labor during these observing blocks plus the data services running at NCSA during this time period. | F39: Maximum potential of 2 months of schedule. | G39: 2100 | H39: tapered | I39: 2021-07-01 | J39: 2021-10-01 | K39: Available | M39: 2021 | N39: 2022
A40: CO5 | B40: Eliminate Both Science Validation Surveys | C40: Unable to verify/validate prompt processing of alerts and data release processing. Inreases risk that production of LSST data products in the early years of operations will be at a reduced efficiency. | D40: Without conducting SV mini-surveys the full demonstrations of operations readiness will not be achieved thereby increasing the risk of system level deficiencies that would impact early operational effectiveness. Full SRD / LSR compliance would not be demonstrated, particularly the ability to keep up with alert production and demonstrate 10-year survey performance on a limited number of field. Lack of full bandwidth, in survey type mode, will limit the ability to test and verify the system wide data processing infrastructure and capabilities. This exposes significant risks to the efficiencies and cost of operations. | E40: Science validation spans 3.5 months including observations for the mini-surveys and subsequent data processing. Much of the associated cost with this descope would be used to cover shedule delay in the subsystems and reduce potential draw on MREFC contingency. The budget estimate is derived from the budgeted labor during these observing blocks plus the data services running at NCSA during this time period. | F40: Maximum potential of 3.5 months of schedule. | G40: 4300 | H40: tapered | I40: 2021-10-01 | J40: 2022-01-01 | K40: Available | M40: 2022 | N40: 2022
A41: CO6 | B41: Eliminate SV Survey for Alert Production | C41: Without conducting SV mini-survey for alert production the full demonstrations of differencing template will not be achieved increasing the risk of system level deficiencies that would impact early operational effectiveness. This would also affect the ability to bootstrap the production of differencing templates for early operational alert production potentially delaying alert production by at least 1-year affecting LSST’s early science footprint. | D41: Final development of DM final Alert Products Production algorithms for operational readiness would be reduced. | E41: Alert production mini-survey spans 1.5 months including observations and subsequent data processing. Much of the associated cost with this descope would be used to cover shedule delay in the subsystems and reduce potential draw on MREFC contingency. The budget estimate is derived from the budgeted labor during these observing blocks plus the data services running at NCSA during this time period. | F41: 1.5 months of schedule potential. | G41: 1600 | H41: tapered | I41: 2021-10-01 | J41: 2022-01-01 | K41: Available | M41: =IF(I41="","",YEAR(EDATE(I41,3))) -> 2022 | N41: =IF(J41="","",YEAR(EDATE(J41,3))) -> 2022
A42: CO7 | B42: Eliminate SV Survey for Date Release Processing | C42: Without conducting SV mini-survey for 10-year performance the full demonstrations of system performance will not be achieved increasing the risk of system level deficiencies that would impact early operational effectiveness. | D42: Final development of DM final Data Release Production algorithms for operational readiness would be reduced. | E42: Data Release Production mini-survey spans 1.5 months including observations and subsequent data processing. Much of the associated cost with this descope would be used to cover shedule delay in the subsystems and reduce potential draw on MREFC contingency. The budget estimate is derived from the budgeted labor during these observing blocks plus the data services running at NCSA during this time period. | F42: 1.5 months of schedule potential. | G42: 1000 | H42: tapered | I42: 2021-10-01 | J42: 2022-01-01 | K42: Available | M42: 2022 | N42: 2022
A43: CO8 | B43: Eliminate Calibration AI&T | C43: The calibration data products needed by the science pipeline validation would not be vaialable. This would compromise the general science validation effort. | D43: Without the auxiliary telescope generating atmospheric transmissioning maps the DM development relying on them would not be implemented and could compromise the early DRP data quality from first year data. | E43: Budget savings is estimated on the cost to operate the Auxiliary Telescope to support calibration prodcuts for validating the science pipelines. | F43: No real schedule impact since the integration of the Auxiliary Telescope occures in parallel with other planned activities that are not port of this de-scope option. | G43: 2170 | H43: tapered | I43: 2019-07-01 | J43: 2022-01-01 | K43: Available | M43: 2019 | N43: 2022
F45: Sum Total | G45: =SUM(G3:G44) -> 69446

Sheet All Opportunities
A1: Performance Opportunities
A2: Scope ID | B2: Title | C2: Scientific Imapct | D2: Technical Impact | E2: Budget Impact | F2: Schedule Interactions | G2: Cost Potential | H2: Profile (flat or tapered) | I2: Early Date (when value decline starts) | J2: Latest Date (when value=0) | K2: Status | L2: Comment | M2: Early FY | N2: Late FY
A3: DM1-U | B3: Store Multi-fit Likelihood Samples for All Six Bands | C3: Currently, the likelihoods are sampled and stored only for g, r, I, and z bands, while only the associated and derived quantities (e.g., maximum likelihood values or means) are stored for u and y. This option would enable science cases dependant on accurate knowledge of extended object shapes in u and y bands. | D3: This would require deployment of additional database hardware to store and query the u and y band likelihood chains. | E3: $603,764, with $125,315 in Construction and an average of $47,845 per year in Operations. | F3: Optimal if executed in time for the purchase of database hardware, but also possible afterwards. | G3: 125 | H3: Flat | I3: 2017-10-01 | J3: 2019-01-01 | K3: Available | M3: =IF(TRIM(I3)="","",YEAR(EDATE(I3,3))) -> 2018 | N3: =IF(TRIM(J3)="","",YEAR(EDATE(J3,3))) -> 2019
A4: DM2-U | B4: Store All Raw Data on Disk Rather than Tape | C4: Enables real-time generation of forced photometry for transient alerts, going back to the beginning of the survey. Makes it feasible to generate image differencing templates on the fly, if needed, rather than from the annual co-adds. | D4: Additional disk storage capacity would need to be added to the LSST processing cluster. The tape archive would need to be removed from the design, and the appropriate middleware redirected to fetch the data from disks instead. Any tape-archive related middleware would not have to be written. Potential additional storage/monitoring middleware may need to be written to oversee the increased disk capacity. The Chilean tape library has been eliminated with the replan. We have sized the pre-operations facility to store most data on disk (in addition to tape at NCSA) to support commissioning, since interaction with data products is expected to be more intense during the commissioning period. | E4: Eliminating the tape library as a primary storage source does simplify the production workflow system. However, the NCSA tape library is seen as a diverse media disaster recovery resource, so eliminating it altogether is a risk. The upscope is minimal during the construction period, but would be more substantial during the operations period. Estimate ~$1.5M extra for Year 1 provisioning to add disk. | F4: Cost savings due to the tape archive would be lost if this option is implemented after the tape archive is deployed. | G4: 1500 | H4: Flat | I4: 2017-10-01 | J4: 2019-01-01 | K4: Available | L4: Update from NCSA about tape at NCSA and cost potential. | M4: =IF(TRIM(I4)="","",YEAR(EDATE(I4,3))) -> 2018 | N4: =IF(TRIM(J4)="","",YEAR(EDATE(J4,3))) -> 2019
A5: DM3-U | B5: Develop Specialized Codes for Crowded Field Processing | C5: The planned LSST data processing codes, though expected to yield acceptable results in areas of moderately high crowding, are not guaranteed to reach the accuracy or completeness of purpose-built crowded field photometry codes. Specifically, they are not required to work well in regions such as dense clusters or the Galactic plane. Developing specialized codes for crowded fields would enable science cases dependant on processing of dense stellar fields. | D5: Implementation will require research and development of additional software, on the level of ~1 FTE/yr for 3-4 years. Possible deployment of additional hardware to support new, more computationally intensive, algorithms may be needed. | E5: Estimating operational hardware impact is unknown, would require analysis and benchmarks, assessing changes to object detection, deblending, measurement in galactic plane. Presumably, impact would be bounded, i.e. we would not do multi-fit there, could use those cycles thus saved. $0.5M labor | F5: Can be implemented at any point in construction and operations. | G5: 500 | H5: Flat | I5: 2017-10-01 | J5: 2019-01-01 | K5: Available | L5: Update from Colin/Zeljko - on cost estimate for this. | M5: 2018 | N5: 2019
A6: DM4-U | B6: Diverse Network Path from Summit to Base | C6: In the event of a primary path failure, e.g Fiber cut on the primary route, camera images would no longer flow to the Base, which would cease alerts for the time of the outage. Other operational functions in Chile would also be affected, although we should be able to maintain voice and vital safety-related communications over Microwave radio. Estimated 4-6 hours to repair and restore scientific flows. | D6: As this was never in the baseline plan it does not have any real impact on the Engineering Implementation of the link. Time and minimal funding has been spent exploring the options. There are two options with varying degrees of protection addressing two areas of risk. We can exercise one or both of these options. Risk areas: 1. Fiber in trenches along road from Gate to CP Summit (cut in the fiber) 2. Public highway from Gate to Base.(posts felled by vehicles) | E6: Option 1 ($285k) 1. Install a fiber bundle on poles from Pachón summit to San Carlos Valley floor 2. Splice existing fiber bundle on road to connect to new bundle on poles 3. Add two optical switches Option 2 ($350k) 1.Install second Optical card in Pachón 2.Utilize spare Telefonica fiber pair to reach Vicuna 3.Install DWDM chassis in Vicuna along with Optical card 4.Configure Layer 2 in Vicuna to tap into REUNA 100G and 40Gb in Santiago for return path | F6: If there are still available funds by 2019 and all other related expenditures are completed we may revisit this issue to install partial diverse paths. This was in essence the recommendation of the Network Design Review panel in Tucson on 24 February 2015. | G6: 350 | H6: Flat | I6: 2017-10-01 | J6: 2019-01-01 | K6: Available | M6: 2018 | N6: 2019
A7: DM6-U | B7: Keep Processed Images (Calibrated Exposures) | C7: Enhances the reproducibility of LSST catalogs as measurements can be (re)derived from calibrated exposures guaranteed to be bitwise-identical to those used for data release production. Enables Level-3 use-cases requiring access to significant number of calibrated exposures. | D7: Additional disk storage capacity and/or tape archive capacity would need to be added to the LSST processing cluster. The data access middleware would need to be modified to fetch stored exposures, instead of regenerating them on the fly. | E7: This is ~2.5 PB per year stored on disk or tape. For MREFC this cost would be expensed in the last year of construction/commissioning when provisioning for Y1. Extra disk to store for Year 1 would be ~$500K; extra tape would be ~$200K. | F7: 2021 | G7: 700 | H7: flat | I7: 2021-01-01 | J7: 2021-07-01 | K7: Available | L7: Assesed by NCSA, Cost potential added | M7: 2021 | N7: 2021
A8: DM10-U | B8: Increase bandwidth Tucson Miami | C8: Increased bandwidth on the link between Tucson and Miami would allow for more reliable and faster transfer of data. This would improve the QA activities and could increase the overall quality of the science products. | D8: Purchase of additional bandwidth, improved network. A better connection may reduce need to travel. | E8: $500K should cover the increase from 10 Gbps to 40 Gbps. | F8: Can be implmented at anytime. | G8: 500 | H8: FLAT | I8: 2022-01-01 | J8: 2031-01-01 | K8: Available | L8: New from Jeff. Can be done anytime. | M8: 2022 | N8: 2031
A9: TS5-U | B9: M1M3 Thermal Control System Testbed | C9: Negligible | D9: This option would establish a work package to build a M1M3 testbed with surrogate section of a mirror for thermal control system testing. The current plan is to deploy the thermal management system on the operational mirror cell and debug and commission the system on the real mirror. A testbed would significantly reduce the risk of development and allow work to be completed early and decoupled from the mirror system development. | E9: An M1M3 thermal testbed is estimated at $150K in hardware for glass and sensors and the development and test program is estimated at 1 FTE. | F9: This option would be executed in parallel with M1M3 system construction and would reduce M1M3 commissioning time by 2 months. Completing this option would significantly reduce schedule risk as well. | G9: 300 | H9: Flat | I9: 2017-10-01 | J9: 2019-12-01 | K9: Available | L9: Reduced - Absolute temperature sensor + fan coil units on a testbed | M9: 2018 | N9: 2020
A10: TS6-U | B10: Photovoltaic System for the Base | C10: Negligible | D10: This option would provide for electricity for the base facility office building and data center. The A&E firm developed the necessary design features needed to support the facility needs | E10: The A&E firm targeted $300-400k to implement this system. During Phase 2 constrution bid soliciation, a vendor did submit a proposal for $400k to implement this option. Estimated payback period is ~12 years, so savings in electrical costs would not recover investment until approximately the end of the LSST project survey period. Benefit would be via investment of contingency during constuction to help defray future costs fduring operations | F10: No schedule impact | G10: 300 | H10: Flat | I10: 2017-10-01 | J10: 2021-10-01 | K10: Available | M10: 2018 | N10: 2022
A11: TS7-U | B11: M2 Hexapod Installation on TEA Before TMA Integration | C11: Negligible | D11: Will reduce time and risk involved in installing M2 hexapod on telescope | E11: Reduces cost of developing M2 hexapod on telescope installation fixtures | F11: Eliminates time budgeted for M2 hexapod installation since M2 hexapod would be installed on Top End Assembly concurent with TMA assembly. | G11: 50 | H11: Flat | I11: 2018-10-01 | J11: 2020-03-31 | K11: Available | L11: Working with TMA vendor to understand support equipment to be delivered to site | M11: 2019 | N11: 2020
A12: TS10-U | B12: Purchase scaffolding to increase dome assembly efficiency | C12: None | D12: Additional scaffolding onsite will enable better access to the dome for integration and assembly activities. Could also be configured to enable TMA pier work in parallel. | E12: $200k | F12: Could enable more efficient simultaneous work on the summit for both dome and TMA vendors. | G12: 200 | H12: Flat | I12: 2018-04-01 | J12: 2020-01-01 | K12: Available | M12: 2018 | N12: 2020
A13: EP1-U | B13: virtual/augmented reality | C13: Research studies have demonstrated improved learning comprehension and retention with 3D visualization (http://www.astronomycenter.org/items/detail.cfm?ID=13750). In addition, there is strong interest by the general public (as evidenced by Pokemon Go! and the book/movie Ready Player One), planetarium community (https://www.linkedin.com/pulse/virtual-reality-planetarium-patrick-mcpike), and formal education (https://edu.google.com/expeditions/#about). LSST would like to evaluate this technology to see if it holds promise for our program. | D13: LSST EPO would likely contract this work since the required development skills are specialized. | E13: According to the May 2016 report "Augmented Reality and Virtual Reality Market - Global Forecast to 2022", the global augmented reality and virtual reality market is expected to reach USD 151.30 Billion by 2022 (source: http://www.marketsandmarkets.com/PressReleases/augmented-reality-virtual-reality.asp). Since this technology is in high-demand, hiring or contracting the necessary developers will be expensive. As a rough guide, Kristina Llewellyn, a professor at the University of Waterloo and faculty member at The Games Institute, is working on a $500,000 dollar VR project for Nova Scotia high school students — dubbed the Digital Oral Histories for Reconciliation (DOHR) project (http://www.cbc.ca/news/entertainment/virtual-reality-education-1.4152384). | F13: Best to begin as early as possible due to the development complexity and current competition for resources. | G13: 500 | H13: flat | I13: 2017-10-01 | J13: 2021-01-01 | K13: Available | L13: Design new system | M13: 2018 | N13: 2021
A14: CO1-U | B14: Extend ORR Mini-Survey by 1-2 Months and Generate an Early Data Release | C14: By extending the "mini-survey" conducted during the final stages of science verification we can jump start the communities' involvement in science analysis and incorporate feedback earlier in Commissioning. | D14: This opportunity would also further advance the refinement of the data analysis algorithms used to process both Level-1 and Level-2 data products. This opportunity also provides a better verification of the scheduler algorithms and the resulting survey cadence to allow for better feedback earlier in Commissioning. | E14: The budget implication is based only on the "marching army" of the project staff over the extension period. | F14: The schedule implication is a 2 month effort before formal declaration of operations readiness. | G14: 3600 | H14: Flat | J14: 2022-01-01 | K14: Available | N14: 2022
A15: CO2-U | B15: Early Shutdown to Address Improvements Developed out of Commissioning | C15: By programming a complete maintenance effort at the end of Commissioning, the Project can fully address improvements and issues discovered during commissioning. By doing so, the risk to completion is reduced and the risk to quality of the LSST survey will be reduced at the start than if these actions were avoided and the system was accepted into full operations. | D15: The risk of successful completion is reduced and the system would end up having high performance and reliability at the conclusion of commissioning than would otherwise be expected. | E15: There are capital expensing for improvements along with "marching army" costs of the project staff. Two months of staff costs are used for the impact. | F15: Implementing this work would require two months of effort to be included in the program prior to the formal declaration of operations readiness. | G15: 3600 | H15: Flat | J15: 2022-01-01 | K15: Available | N15: 2022
A16: CO3-U | B16: Bootstrap Image Differencing Templates | C16: Early generation of Level 1 Alert events at the start of opperations. | D16: Currently templates are generated as part of the LEvel 2 Data Release process, DR1 is planned to be done with the first 6 months of data and will be completed 1 year after operations start. Completion of the commissiopning effort on schedule would allow time for the observations needed to deliver the first set of image difference template ahead of the release of DR1. However, the computing infrastructure needed to process images to produce the baseline image differencing templates is required in advance of current plans. | E16: Extended commissioning activities to conduct template observations reqquires ~$1800K of "marching army" costs. There will be an additional $250K for the early procurement of computing hardware to support the template production. | F16: This up-scope would utilize up to the 11 months of schedule contingency currently projected. Cost estimate based on utilizing 6 months, which is enough for the first set of observations to precess from behind the sun and be usable at the start of operations. | G16: 11050 | H16: Flat | J16: 2022-01-01 | K16: Available | N16: 2022
F18: Sum Total | G18: =SUM(G3:G17) -> 23275

Sheet As Late as Possible (hidden)
B1: 14 | C1: 15 | D1: 16 | E1: 17 | F1: 18 | G1: 19 | H1: 20 | I1: 21 | J1: 22
A2: TS4 | B2: 2300 | C2: 2300 | D2: 2300 | E2: 0 | F2: 0 | G2: 0 | H2: 0 | I2: 0 | J2: 0
A3: DM4 | B3: 1800 | C3: 1800 | D3: 1800 | E3: 1800 | F3: 1800 | G3: 1800 | H3: 1800 | I3: 1800 | J3: 0
A4: DM6 | B4: 2800 | C4: 2800 | D4: 2800 | E4: 2800 | F4: 2800 | G4: 2800 | H4: 2800 | I4: 2800 | J4: 0
A5: DM5 | B5: 5000 | C5: 5000 | D5: 5000 | E5: 5000 | F5: 5000 | G5: 5000 | H5: 5000 | I5: 5000 | J5: 0
A6: TS1 | B6: 430 | C6: 430 | D6: 0 | E6: 0 | F6: 0 | G6: 0 | H6: 0 | I6: 0 | J6: 0
A7: TS4 | B7: 220 | C7: 220 | D7: 220 | E7: 220 | F7: 220 | G7: 0 | H7: 0 | I7: 0 | J7: 0
A8: TS6 | B8: 507 | C8: 507 | D8: 507 | E8: 507 | F8: 0 | G8: 0 | H8: 0 | I8: 0 | J8: 0
A9: TS7 | B9: 250 | C9: 250 | D9: 250 | E9: 0 | F9: 0 | G9: 0 | H9: 0 | I9: 0 | J9: 0
A10: TS8 | B10: 500 | C10: 500 | D10: 0 | E10: 0 | F10: 0 | G10: 0 | H10: 0 | I10: 0 | J10: 0
A11: TS10 | B11: 800 | C11: 800 | D11: 800 | E11: 0 | F11: 0 | G11: 0 | H11: 0 | I11: 0 | J11: 0
A12: TS9 | B12: 400 | C12: 400 | D12: 400 | E12: 400 | F12: 0 | G12: 0 | H12: 0 | I12: 0 | J12: 0
A13: DM3 | B13: 4800 | C13: 4800 | D13: 4800 | E13: 4800 | F13: 4800 | G13: 0 | H13: 0 | I13: 0 | J13: 0
A14: TS3 | B14: 3373 | C14: 0 | D14: 0 | E14: 0 | F14: 0 | G14: 0 | H14: 0 | I14: 0 | J14: 0
A15: S2 | B15: 1200 | C15: 1200 | D15: 1200 | E15: 1200 | F15: 1200 | G15: 1200 | H15: 0 | I15: 0 | J15: 0
A16: DM2 | B16: 2400 | C16: 2400 | D16: 2400 | E16: 2400 | F16: 2400 | G16: 2400 | H16: 0 | I16: 0 | J16: 0
A17: TS5 | B17: 5400 | C17: 5400 | D17: 0 | E17: 0 | F17: 0 | G17: 0 | H17: 0 | I17: 0 | J17: 0
A18: DM1 | B18: 25300 | C18: 25300 | D18: 25300 | E18: 25300 | F18: 25300 | G18: 25300 | H18: 25300 | I18: 0 | J18: 0

Sheet As Late as Possibe wTapers
C1: 2014 | D1: 2015 | E1: 2016 | F1: 2017-01-01 | G1: 2017-04-01 | H1: 2017-07-01 | I1: 2017-10-01 | J1: 2018-01-01 | K1: 2018-04-01 | L1: 2018-07-01 | M1: 2018-10-01 | N1: 2019-01-01 | O1: 2019-04-01 | P1: 2019-07-01 | Q1: 2019-10-01 | R1: 2020-01-01 | S1: 2020-04-01 | T1: 2020-07-01 | U1: 2020-10-01 | V1: 2021-01-01 | W1: 2021-04-01 | X1: 2021-07-01 | Y1: 2021-10-01 | Z1: 2022-01-01 | AA1: 2022-04-01 | AB1: 2022-07-01 | AC1: 2022-10-01 | AD1: 2023-01-01 | AE1: 2023-04-01 | AF1: Profile
B2: =IF('All De-SCope'!A3<>"",'All De-SCope'!A3,"") -> SY2 | C2: =IF(B2<>"",IF($AF2="Flat",IF(C$1<'All De-SCope'!$N3,'All De-SCope'!$G3,0),IF(C$1<'All De-SCope'!$N3,'All De-SCope'!$G3,0)),"") -> 1200 | D2: =IF(B2<>"",IF($AF2="Flat",IF(D$1<'All De-SCope'!$N3,'All De-SCope'!$G3,0),IF(D$1<'All De-SCope'!$M3,'All De-SCope'!$G3,C2*(1-('All De-SCope'!$M3-D$1)/('All De-SCope'!$M3-'All De-SCope'!$N3)))),"") -> 1200 | E2: =IF(C2<>"",IF($AF2="Flat",IF(YEAR(E$1)<'All De-SCope'!$N3,'All De-SCope'!$G3,0),IF(YEAR(E$1)<'All De-SCope'!$M3,'All De-SCope'!$G3,D2*(1-('All De-SCope'!$M3-YEAR(E$1))/('All De-SCope'!$M3-'All De-SCope'!$N3)))),"") -> 1200 | F2: =IF(D2<>"",IF($AF2="Flat",IF(F$1<'All De-SCope'!$J3,'All De-SCope'!$G3,0),IF(F$1<'All De-SCope'!$I3,'All De-SCope'!$G3,E2*(1-((DATEDIF('All De-SCope'!$I3,F$1,"m"))/3)/((DATEDIF('All De-SCope'!$I3,'All De-SCope'!$J3,"m"))/3)))),"") -> 1200 | G2: =IF(E2<>"",IF($AF2="Flat",IF(G$1<'All De-SCope'!$J3,'All De-SCope'!$G3,0),IF(G$1<'All De-SCope'!$I3,'All De-SCope'!$G3,F2*(1-((DATEDIF('All De-SCope'!$I3,G$1,"m"))/3)/((DATEDIF('All De-SCope'!$I3,'All De-SCope'!$J3,"m"))/3)))),"") -> 1200 | H2: =IF(F2<>"",IF($AF2="Flat",IF(H$1<'All De-SCope'!$J3,'All De-SCope'!$G3,0),IF(H$1<'All De-SCope'!$I3,'All De-SCope'!$G3,G2*(1-((DATEDIF('All De-SCope'!$I3,H$1,"m"))/3)/((DATEDIF('All De-SCope'!$I3,'All De-SCope'!$J3,"m"))/3)))),"") -> 1200 | I2: =IF(G2<>"",IF($AF2="Flat",IF(I$1<'All De-SCope'!$J3,'All De-SCope'!$G3,0),IF(I$1<'All De-SCope'!$I3,'All De-SCope'!$G3,H2*(1-((DATEDIF('All De-SCope'!$I3,I$1,"m"))/3)/((DATEDIF('All De-SCope'!$I3,'All De-SCope'!$J3,"m"))/3)))),"") -> 1200 | J2: =IF(H2<>"",IF($AF2="Flat",IF(J$1<'All De-SCope'!$J3,'All De-SCope'!$G3,0),IF(J$1<'All De-SCope'!$I3,'All De-SCope'!$G3,I2*(1-((DATEDIF('All De-SCope'!$I3,J$1,"m"))/3)/((DATEDIF('All De-SCope'!$I3,'All De-SCope'!$J3,"m"))/3)))),"") -> 1200 | K2: =IF(I2<>"",IF($AF2="Flat",IF(K$1<'All De-SCope'!$J3,'All De-SCope'!$G3,0),IF(K$1<'All De-SCope'!$I3,'All De-SCope'!$G3,J2*(1-((DATEDIF('All De-SCope'!$I3,K$1,"m"))/3)/((DATEDIF('All De-SCope'!$I3,'All De-SCope'!$J3,"m"))/3)))),"") -> 1200 | L2: =IF(J2<>"",IF($AF2="Flat",IF(L$1<'All De-SCope'!$J3,'All De-SCope'!$G3,0),IF(L$1<'All De-SCope'!$I3,'All De-SCope'!$G3,K2*(1-((DATEDIF('All De-SCope'!$I3,L$1,"m"))/3)/((DATEDIF('All De-SCope'!$I3,'All De-SCope'!$J3,"m"))/3)))),"") -> 1200 | M2: =IF(K2<>"",IF($AF2="Flat",IF(M$1<'All De-SCope'!$J3,'All De-SCope'!$G3,0),IF(M$1<'All De-SCope'!$I3,'All De-SCope'!$G3,L2*(1-((DATEDIF('All De-SCope'!$I3,M$1,"m"))/3)/((DATEDIF('All De-SCope'!$I3,'All De-SCope'!$J3,"m"))/3)))),"") -> 1200 | N2: =IF(L2<>"",IF($AF2="Flat",IF(N$1<'All De-SCope'!$J3,'All De-SCope'!$G3,0),IF(N$1<'All De-SCope'!$I3,'All De-SCope'!$G3,M2*(1-((DATEDIF('All De-SCope'!$I3,N$1,"m"))/3)/((DATEDIF('All De-SCope'!$I3,'All De-SCope'!$J3,"m"))/3)))),"") -> 1200 | O2: =IF(M2<>"",IF($AF2="Flat",IF(O$1<'All De-SCope'!$J3,'All De-SCope'!$G3,0),IF(O$1<'All De-SCope'!$I3,'All De-SCope'!$G3,N2*(1-((DATEDIF('All De-SCope'!$I3,O$1,"m"))/3)/((DATEDIF('All De-SCope'!$I3,'All De-SCope'!$J3,"m"))/3)))),"") -> 1200 | P2: =IF(N2<>"",IF($AF2="Flat",IF(P$1<'All De-SCope'!$J3,'All De-SCope'!$G3,0),IF(P$1<'All De-SCope'!$I3,'All De-SCope'!$G3,O2*(1-((DATEDIF('All De-SCope'!$I3,P$1,"m"))/3)/((DATEDIF('All De-SCope'!$I3,'All De-SCope'!$J3,"m"))/3)))),"") -> 1200 | Q2: =IF(O2<>"",IF($AF2="Flat",IF(Q$1<'All De-SCope'!$J3,'All De-SCope'!$G3,0),IF(Q$1<'All De-SCope'!$I3,'All De-SCope'!$G3,P2*(1-((DATEDIF('All De-SCope'!$I3,Q$1,"m"))/3)/((DATEDIF('All De-SCope'!$I3,'All De-SCope'!$J3,"m"))/3)))),"") -> 1200 | R2: =IF(P2<>"",IF($AF2="Flat",IF(R$1<'All De-SCope'!$J3,'All De-SCope'!$G3,0),IF(R$1<'All De-SCope'!$I3,'All De-SCope'!$G3,Q2*(1-((DATEDIF('All De-SCope'!$I3,R$1,"m"))/3)/((DATEDIF('All De-SCope'!$I3,'All De-SCope'!$J3,"m"))/3)))),"") -> 1200 | S2: =IF(Q2<>"",IF($AF2="Flat",IF(S$1<'All De-SCope'!$J3,'All De-SCope'!$G3,0),IF(S$1<'All De-SCope'!$I3,'All De-SCope'!$G3,R2*(1-((DATEDIF('All De-SCope'!$I3,S$1,"m"))/3)/((DATEDIF('All De-SCope'!$I3,'All De-SCope'!$J3,"m"))/3)))),"") -> 1200 | T2: =IF(R2<>"",IF($AF2="Flat",IF(T$1<'All De-SCope'!$J3,'All De-SCope'!$G3,0),IF(T$1<'All De-SCope'!$I3,'All De-SCope'!$G3,S2*(1-((DATEDIF('All De-SCope'!$I3,T$1,"m"))/3)/((DATEDIF('All De-SCope'!$I3,'All De-SCope'!$J3,"m"))/3)))),"") -> 1200 | U2: =IF(S2<>"",IF($AF2="Flat",IF(U$1<'All De-SCope'!$J3,'All De-SCope'!$G3,0),IF(U$1<'All De-SCope'!$I3,'All De-SCope'!$G3,T2*(1-((DATEDIF('All De-SCope'!$I3,U$1,"m"))/3)/((DATEDIF('All De-SCope'!$I3,'All De-SCope'!$J3,"m"))/3)))),"") -> 0 | V2: =IF(T2<>"",IF($AF2="Flat",IF(V$1<'All De-SCope'!$J3,'All De-SCope'!$G3,0),IF(V$1<'All De-SCope'!$I3,'All De-SCope'!$G3,U2*(1-((DATEDIF('All De-SCope'!$I3,V$1,"m"))/3)/((DATEDIF('All De-SCope'!$I3,'All De-SCope'!$J3,"m"))/3)))),"") -> 0 | W2: =IF(U2<>"",IF($AF2="Flat",IF(W$1<'All De-SCope'!$J3,'All De-SCope'!$G3,0),IF(W$1<'All De-SCope'!$I3,'All De-SCope'!$G3,V2*(1-((DATEDIF('All De-SCope'!$I3,W$1,"m"))/3)/((DATEDIF('All De-SCope'!$I3,'All De-SCope'!$J3,"m"))/3)))),"") -> 0 | X2: =IF(V2<>"",IF($AF2="Flat",IF(X$1<'All De-SCope'!$J3,'All De-SCope'!$G3,0),IF(X$1<'All De-SCope'!$I3,'All De-SCope'!$G3,W2*(1-((DATEDIF('All De-SCope'!$I3,X$1,"m"))/3)/((DATEDIF('All De-SCope'!$I3,'All De-SCope'!$J3,"m"))/3)))),"") -> 0 | Y2: =IF(W2<>"",IF($AF2="Flat",IF(Y$1<'All De-SCope'!$J3,'All De-SCope'!$G3,0),IF(Y$1<'All De-SCope'!$I3,'All De-SCope'!$G3,X2*(1-((DATEDIF('All De-SCope'!$I3,Y$1,"m"))/3)/((DATEDIF('All De-SCope'!$I3,'All De-SCope'!$J3,"m"))/3)))),"") -> 0 | Z2: =IF(X2<>"",IF($AF2="Flat",IF(Z$1<'All De-SCope'!$J3,'All De-SCope'!$G3,0),IF(Z$1<'All De-SCope'!$I3,'All De-SCope'!$G3,Y2*(1-((DATEDIF('All De-SCope'!$I3,Z$1,"m"))/3)/((DATEDIF('All De-SCope'!$I3,'All De-SCope'!$J3,"m"))/3)))),"") -> 0 | AF2: =IF(B2<>"",'All De-SCope'!H3,"") -> Flat
B3: =IF('All De-SCope'!A4<>"",'All De-SCope'!A4,"") -> SY4 | C3: =IF(B3<>"",IF($AF3="Flat",IF(C$1<'All De-SCope'!$N4,'All De-SCope'!$G4,0),IF(C$1<'All De-SCope'!$N4,'All De-SCope'!$G4,0)),"") -> 376 | D3: =IF(B3<>"",IF($AF3="Flat",IF(D$1<'All De-SCope'!$N4,'All De-SCope'!$G4,0),IF(D$1<'All De-SCope'!$M4,'All De-SCope'!$G4,C3*(1-('All De-SCope'!$M4-D$1)/('All De-SCope'!$M4-'All De-SCope'!$N4)))),"") -> 376 | E3: =IF(C3<>"",IF($AF3="Flat",IF(E$1<'All De-SCope'!$N4,'All De-SCope'!$G4,0),IF(E$1<'All De-SCope'!$M4,'All De-SCope'!$G4,D3*(1-('All De-SCope'!$M4-E$1)/('All De-SCope'!$M4-'All De-SCope'!$N4)))),"") -> 376 | F3: =IF(D3<>"",IF($AF3="Flat",IF(F$1<'All De-SCope'!$J4,'All De-SCope'!$G4,0),IF(F$1<'All De-SCope'!$I4,'All De-SCope'!$G4,E3*(1-((DATEDIF('All De-SCope'!$I4,F$1,"m"))/3)/((DATEDIF('All De-SCope'!$I4,'All De-SCope'!$J4,"m"))/3)))),"") -> 376 | G3: =IF(E3<>"",IF($AF3="Flat",IF(G$1<'All De-SCope'!$J4,'All De-SCope'!$G4,0),IF(G$1<'All De-SCope'!$I4,'All De-SCope'!$G4,F3*(1-((DATEDIF('All De-SCope'!$I4,G$1,"m"))/3)/((DATEDIF('All De-SCope'!$I4,'All De-SCope'!$J4,"m"))/3)))),"") -> 356.2105263 | H3: =IF(F3<>"",IF($AF3="Flat",IF(H$1<'All De-SCope'!$J4,'All De-SCope'!$G4,0),IF(H$1<'All De-SCope'!$I4,'All De-SCope'!$G4,G3*(1-((DATEDIF('All De-SCope'!$I4,H$1,"m"))/3)/((DATEDIF('All De-SCope'!$I4,'All De-SCope'!$J4,"m"))/3)))),"") -> 318.7146814 | I3: =IF(G3<>"",IF($AF3="Flat",IF(I$1<'All De-SCope'!$J4,'All De-SCope'!$G4,0),IF(I$1<'All De-SCope'!$I4,'All De-SCope'!$G4,H3*(1-((DATEDIF('All De-SCope'!$I4,I$1,"m"))/3)/((DATEDIF('All De-SCope'!$I4,'All De-SCope'!$J4,"m"))/3)))),"") -> 268.3913107 | J3: =IF(H3<>"",IF($AF3="Flat",IF(J$1<'All De-SCope'!$J4,'All De-SCope'!$G4,0),IF(J$1<'All De-SCope'!$I4,'All De-SCope'!$G4,I3*(1-((DATEDIF('All De-SCope'!$I4,J$1,"m"))/3)/((DATEDIF('All De-SCope'!$I4,'All De-SCope'!$J4,"m"))/3)))),"") -> 211.8878769 | K3: =IF(I3<>"",IF($AF3="Flat",IF(K$1<'All De-SCope'!$J4,'All De-SCope'!$G4,0),IF(K$1<'All De-SCope'!$I4,'All De-SCope'!$G4,J3*(1-((DATEDIF('All De-SCope'!$I4,K$1,"m"))/3)/((DATEDIF('All De-SCope'!$I4,'All De-SCope'!$J4,"m"))/3)))),"") -> 156.1279093 | L3: =IF(J3<>"",IF($AF3="Flat",IF(L$1<'All De-SCope'!$J4,'All De-SCope'!$G4,0),IF(L$1<'All De-SCope'!$I4,'All De-SCope'!$G4,K3*(1-((DATEDIF('All De-SCope'!$I4,L$1,"m"))/3)/((DATEDIF('All De-SCope'!$I4,'All De-SCope'!$J4,"m"))/3)))),"") -> 106.824359 | M3: =IF(K3<>"",IF($AF3="Flat",IF(M$1<'All De-SCope'!$J4,'All De-SCope'!$G4,0),IF(M$1<'All De-SCope'!$I4,'All De-SCope'!$G4,L3*(1-((DATEDIF('All De-SCope'!$I4,M$1,"m"))/3)/((DATEDIF('All De-SCope'!$I4,'All De-SCope'!$J4,"m"))/3)))),"") -> 67.46801619 | N3: =IF(L3<>"",IF($AF3="Flat",IF(N$1<'All De-SCope'!$J4,'All De-SCope'!$G4,0),IF(N$1<'All De-SCope'!$I4,'All De-SCope'!$G4,M3*(1-((DATEDIF('All De-SCope'!$I4,N$1,"m"))/3)/((DATEDIF('All De-SCope'!$I4,'All De-SCope'!$J4,"m"))/3)))),"") -> 39.06043043 | O3: =IF(M3<>"",IF($AF3="Flat",IF(O$1<'All De-SCope'!$J4,'All De-SCope'!$G4,0),IF(O$1<'All De-SCope'!$I4,'All De-SCope'!$G4,N3*(1-((DATEDIF('All De-SCope'!$I4,O$1,"m"))/3)/((DATEDIF('All De-SCope'!$I4,'All De-SCope'!$J4,"m"))/3)))),"") -> 20.55812128 | P3: =IF(N3<>"",IF($AF3="Flat",IF(P$1<'All De-SCope'!$J4,'All De-SCope'!$G4,0),IF(P$1<'All De-SCope'!$I4,'All De-SCope'!$G4,O3*(1-((DATEDIF('All De-SCope'!$I4,P$1,"m"))/3)/((DATEDIF('All De-SCope'!$I4,'All De-SCope'!$J4,"m"))/3)))),"") -> 9.738057447 | Q3: =IF(O3<>"",IF($AF3="Flat",IF(Q$1<'All De-SCope'!$J4,'All De-SCope'!$G4,0),IF(Q$1<'All De-SCope'!$I4,'All De-SCope'!$G4,P3*(1-((DATEDIF('All De-SCope'!$I4,Q$1,"m"))/3)/((DATEDIF('All De-SCope'!$I4,'All De-SCope'!$J4,"m"))/3)))),"") -> 4.100234715 | R3: =IF(P3<>"",IF($AF3="Flat",IF(R$1<'All De-SCope'!$J4,'All De-SCope'!$G4,0),IF(R$1<'All De-SCope'!$I4,'All De-SCope'!$G4,Q3*(1-((DATEDIF('All De-SCope'!$I4,R$1,"m"))/3)/((DATEDIF('All De-SCope'!$I4,'All De-SCope'!$J4,"m"))/3)))),"") -> 1.51061279 | S3: =IF(Q3<>"",IF($AF3="Flat",IF(S$1<'All De-SCope'!$J4,'All De-SCope'!$G4,0),IF(S$1<'All De-SCope'!$I4,'All De-SCope'!$G4,R3*(1-((DATEDIF('All De-SCope'!$I4,S$1,"m"))/3)/((DATEDIF('All De-SCope'!$I4,'All De-SCope'!$J4,"m"))/3)))),"") -> 0.4770356178 | T3: =IF(R3<>"",IF($AF3="Flat",IF(T$1<'All De-SCope'!$J4,'All De-SCope'!$G4,0),IF(T$1<'All De-SCope'!$I4,'All De-SCope'!$G4,S3*(1-((DATEDIF('All De-SCope'!$I4,T$1,"m"))/3)/((DATEDIF('All De-SCope'!$I4,'All De-SCope'!$J4,"m"))/3)))),"") -> 0.1255356889 | U3: =IF(S3<>"",IF($AF3="Flat",IF(U$1<'All De-SCope'!$J4,'All De-SCope'!$G4,0),IF(U$1<'All De-SCope'!$I4,'All De-SCope'!$G4,T3*(1-((DATEDIF('All De-SCope'!$I4,U$1,"m"))/3)/((DATEDIF('All De-SCope'!$I4,'All De-SCope'!$J4,"m"))/3)))),"") -> 0.02642856608 | V3: =IF(T3<>"",IF($AF3="Flat",IF(V$1<'All De-SCope'!$J4,'All De-SCope'!$G4,0),IF(V$1<'All De-SCope'!$I4,'All De-SCope'!$G4,U3*(1-((DATEDIF('All De-SCope'!$I4,V$1,"m"))/3)/((DATEDIF('All De-SCope'!$I4,'All De-SCope'!$J4,"m"))/3)))),"") -> 0.004172931486 | W3: =IF(U3<>"",IF($AF3="Flat",IF(W$1<'All De-SCope'!$J4,'All De-SCope'!$G4,0),IF(W$1<'All De-SCope'!$I4,'All De-SCope'!$G4,V3*(1-((DATEDIF('All De-SCope'!$I4,W$1,"m"))/3)/((DATEDIF('All De-SCope'!$I4,'All De-SCope'!$J4,"m"))/3)))),"") -> 0.0004392559459 | X3: =IF(V3<>"",IF($AF3="Flat",IF(X$1<'All De-SCope'!$J4,'All De-SCope'!$G4,0),IF(X$1<'All De-SCope'!$I4,'All De-SCope'!$G4,W3*(1-((DATEDIF('All De-SCope'!$I4,X$1,"m"))/3)/((DATEDIF('All De-SCope'!$I4,'All De-SCope'!$J4,"m"))/3)))),"") -> 2.3118734e-05 | Y3: =IF(W3<>"",IF($AF3="Flat",IF(Y$1<'All De-SCope'!$J4,'All De-SCope'!$G4,0),IF(Y$1<'All De-SCope'!$I4,'All De-SCope'!$G4,X3*(1-((DATEDIF('All De-SCope'!$I4,Y$1,"m"))/3)/((DATEDIF('All De-SCope'!$I4,'All De-SCope'!$J4,"m"))/3)))),"") -> 0 | Z3: =IF(X3<>"",IF($AF3="Flat",IF(Z$1<'All De-SCope'!$J4,'All De-SCope'!$G4,0),IF(Z$1<'All De-SCope'!$I4,'All De-SCope'!$G4,Y3*(1-((DATEDIF('All De-SCope'!$I4,Z$1,"m"))/3)/((DATEDIF('All De-SCope'!$I4,'All De-SCope'!$J4,"m"))/3)))),"") -> 0 | AF3: =IF(B3<>"",'All De-SCope'!H4,"") -> Taper
B4: =IF('All De-SCope'!A5<>"",'All De-SCope'!A5,"") -> SY5 | C4: =IF(B4<>"",IF($AF4="Flat",IF(C$1<'All De-SCope'!$N5,'All De-SCope'!$G5,0),IF(C$1<'All De-SCope'!$N5,'All De-SCope'!$G5,0)),"") -> 210 | D4: =IF(B4<>"",IF($AF4="Flat",IF(D$1<'All De-SCope'!$N5,'All De-SCope'!$G5,0),IF(D$1<'All De-SCope'!$M5,'All De-SCope'!$G5,C4*(1-('All De-SCope'!$M5-D$1)/('All De-SCope'!$M5-'All De-SCope'!$N5)))),"") -> 210 | E4: =IF(C4<>"",IF($AF4="Flat",IF(E$1<'All De-SCope'!$N5,'All De-SCope'!$G5,0),IF(E$1<'All De-SCope'!$M5,'All De-SCope'!$G5,D4*(1-('All De-SCope'!$M5-E$1)/('All De-SCope'!$M5-'All De-SCope'!$N5)))),"") -> 210 | F4: =IF(D4<>"",IF($AF4="Flat",IF(F$1<'All De-SCope'!$J5,'All De-SCope'!$G5,0),IF(F$1<'All De-SCope'!$I5,'All De-SCope'!$G5,E4*(1-((DATEDIF('All De-SCope'!$I5,F$1,"m"))/3)/((DATEDIF('All De-SCope'!$I5,'All De-SCope'!$J5,"m"))/3)))),"") -> 210 | G4: =IF(E4<>"",IF($AF4="Flat",IF(G$1<'All De-SCope'!$J5,'All De-SCope'!$G5,0),IF(G$1<'All De-SCope'!$I5,'All De-SCope'!$G5,F4*(1-((DATEDIF('All De-SCope'!$I5,G$1,"m"))/3)/((DATEDIF('All De-SCope'!$I5,'All De-SCope'!$J5,"m"))/3)))),"") -> 210 | H4: =IF(F4<>"",IF($AF4="Flat",IF(H$1<'All De-SCope'!$J5,'All De-SCope'!$G5,0),IF(H$1<'All De-SCope'!$I5,'All De-SCope'!$G5,G4*(1-((DATEDIF('All De-SCope'!$I5,H$1,"m"))/3)/((DATEDIF('All De-SCope'!$I5,'All De-SCope'!$J5,"m"))/3)))),"") -> 210 | I4: =IF(G4<>"",IF($AF4="Flat",IF(I$1<'All De-SCope'!$J5,'All De-SCope'!$G5,0),IF(I$1<'All De-SCope'!$I5,'All De-SCope'!$G5,H4*(1-((DATEDIF('All De-SCope'!$I5,I$1,"m"))/3)/((DATEDIF('All De-SCope'!$I5,'All De-SCope'!$J5,"m"))/3)))),"") -> 210 | J4: =IF(H4<>"",IF($AF4="Flat",IF(J$1<'All De-SCope'!$J5,'All De-SCope'!$G5,0),IF(J$1<'All De-SCope'!$I5,'All De-SCope'!$G5,I4*(1-((DATEDIF('All De-SCope'!$I5,J$1,"m"))/3)/((DATEDIF('All De-SCope'!$I5,'All De-SCope'!$J5,"m"))/3)))),"") -> 210 | K4: =IF(I4<>"",IF($AF4="Flat",IF(K$1<'All De-SCope'!$J5,'All De-SCope'!$G5,0),IF(K$1<'All De-SCope'!$I5,'All De-SCope'!$G5,J4*(1-((DATEDIF('All De-SCope'!$I5,K$1,"m"))/3)/((DATEDIF('All De-SCope'!$I5,'All De-SCope'!$J5,"m"))/3)))),"") -> 210 | L4: =IF(J4<>"",IF($AF4="Flat",IF(L$1<'All De-SCope'!$J5,'All De-SCope'!$G5,0),IF(L$1<'All De-SCope'!$I5,'All De-SCope'!$G5,K4*(1-((DATEDIF('All De-SCope'!$I5,L$1,"m"))/3)/((DATEDIF('All De-SCope'!$I5,'All De-SCope'!$J5,"m"))/3)))),"") -> 210 | M4: =IF(K4<>"",IF($AF4="Flat",IF(M$1<'All De-SCope'!$J5,'All De-SCope'!$G5,0),IF(M$1<'All De-SCope'!$I5,'All De-SCope'!$G5,L4*(1-((DATEDIF('All De-SCope'!$I5,M$1,"m"))/3)/((DATEDIF('All De-SCope'!$I5,'All De-SCope'!$J5,"m"))/3)))),"") -> 210 | N4: =IF(L4<>"",IF($AF4="Flat",IF(N$1<'All De-SCope'!$J5,'All De-SCope'!$G5,0),IF(N$1<'All De-SCope'!$I5,'All De-SCope'!$G5,M4*(1-((DATEDIF('All De-SCope'!$I5,N$1,"m"))/3)/((DATEDIF('All De-SCope'!$I5,'All De-SCope'!$J5,"m"))/3)))),"") -> 210 | O4: =IF(M4<>"",IF($AF4="Flat",IF(O$1<'All De-SCope'!$J5,'All De-SCope'!$G5,0),IF(O$1<'All De-SCope'!$I5,'All De-SCope'!$G5,N4*(1-((DATEDIF('All De-SCope'!$I5,O$1,"m"))/3)/((DATEDIF('All De-SCope'!$I5,'All De-SCope'!$J5,"m"))/3)))),"") -> 210 | P4: =IF(N4<>"",IF($AF4="Flat",IF(P$1<'All De-SCope'!$J5,'All De-SCope'!$G5,0),IF(P$1<'All De-SCope'!$I5,'All De-SCope'!$G5,O4*(1-((DATEDIF('All De-SCope'!$I5,P$1,"m"))/3)/((DATEDIF('All De-SCope'!$I5,'All De-SCope'!$J5,"m"))/3)))),"") -> 210 | Q4: =IF(O4<>"",IF($AF4="Flat",IF(Q$1<'All De-SCope'!$J5,'All De-SCope'!$G5,0),IF(Q$1<'All De-SCope'!$I5,'All De-SCope'!$G5,P4*(1-((DATEDIF('All De-SCope'!$I5,Q$1,"m"))/3)/((DATEDIF('All De-SCope'!$I5,'All De-SCope'!$J5,"m"))/3)))),"") -> 210 | R4: =IF(P4<>"",IF($AF4="Flat",IF(R$1<'All De-SCope'!$J5,'All De-SCope'!$G5,0),IF(R$1<'All De-SCope'!$I5,'All De-SCope'!$G5,Q4*(1-((DATEDIF('All De-SCope'!$I5,R$1,"m"))/3)/((DATEDIF('All De-SCope'!$I5,'All De-SCope'!$J5,"m"))/3)))),"") -> 210 | S4: =IF(Q4<>"",IF($AF4="Flat",IF(S$1<'All De-SCope'!$J5,'All De-SCope'!$G5,0),IF(S$1<'All De-SCope'!$I5,'All De-SCope'!$G5,R4*(1-((DATEDIF('All De-SCope'!$I5,S$1,"m"))/3)/((DATEDIF('All De-SCope'!$I5,'All De-SCope'!$J5,"m"))/3)))),"") -> 157.5 | T4: =IF(R4<>"",IF($AF4="Flat",IF(T$1<'All De-SCope'!$J5,'All De-SCope'!$G5,0),IF(T$1<'All De-SCope'!$I5,'All De-SCope'!$G5,S4*(1-((DATEDIF('All De-SCope'!$I5,T$1,"m"))/3)/((DATEDIF('All De-SCope'!$I5,'All De-SCope'!$J5,"m"))/3)))),"") -> 78.75 | U4: =IF(S4<>"",IF($AF4="Flat",IF(U$1<'All De-SCope'!$J5,'All De-SCope'!$G5,0),IF(U$1<'All De-SCope'!$I5,'All De-SCope'!$G5,T4*(1-((DATEDIF('All De-SCope'!$I5,U$1,"m"))/3)/((DATEDIF('All De-SCope'!$I5,'All De-SCope'!$J5,"m"))/3)))),"") -> 19.6875 | V4: =IF(T4<>"",IF($AF4="Flat",IF(V$1<'All De-SCope'!$J5,'All De-SCope'!$G5,0),IF(V$1<'All De-SCope'!$I5,'All De-SCope'!$G5,U4*(1-((DATEDIF('All De-SCope'!$I5,V$1,"m"))/3)/((DATEDIF('All De-SCope'!$I5,'All De-SCope'!$J5,"m"))/3)))),"") -> 0 | W4: =IF(U4<>"",IF($AF4="Flat",IF(W$1<'All De-SCope'!$J5,'All De-SCope'!$G5,0),IF(W$1<'All De-SCope'!$I5,'All De-SCope'!$G5,V4*(1-((DATEDIF('All De-SCope'!$I5,W$1,"m"))/3)/((DATEDIF('All De-SCope'!$I5,'All De-SCope'!$J5,"m"))/3)))),"") -> 0 | X4: =IF(V4<>"",IF($AF4="Flat",IF(X$1<'All De-SCope'!$J5,'All De-SCope'!$G5,0),IF(X$1<'All De-SCope'!$I5,'All De-SCope'!$G5,W4*(1-((DATEDIF('All De-SCope'!$I5,X$1,"m"))/3)/((DATEDIF('All De-SCope'!$I5,'All De-SCope'!$J5,"m"))/3)))),"") -> 0 | Y4: =IF(W4<>"",IF($AF4="Flat",IF(Y$1<'All De-SCope'!$J5,'All De-SCope'!$G5,0),IF(Y$1<'All De-SCope'!$I5,'All De-SCope'!$G5,X4*(1-((DATEDIF('All De-SCope'!$I5,Y$1,"m"))/3)/((DATEDIF('All De-SCope'!$I5,'All De-SCope'!$J5,"m"))/3)))),"") -> 0 | Z4: =IF(X4<>"",IF($AF4="Flat",IF(Z$1<'All De-SCope'!$J5,'All De-SCope'!$G5,0),IF(Z$1<'All De-SCope'!$I5,'All De-SCope'!$G5,Y4*(1-((DATEDIF('All De-SCope'!$I5,Z$1,"m"))/3)/((DATEDIF('All De-SCope'!$I5,'All De-SCope'!$J5,"m"))/3)))),"") -> 0 | AF4: =IF(B4<>"",'All De-SCope'!H5,"") -> Taper
B5: =IF('All De-SCope'!A6<>"",'All De-SCope'!A6,"") -> SY6 | C5: =IF(B5<>"",IF($AF5="Flat",IF(C$1<'All De-SCope'!$N6,'All De-SCope'!$G6,0),IF(C$1<'All De-SCope'!$N6,'All De-SCope'!$G6,0)),"") -> 207 | D5: =IF(B5<>"",IF($AF5="Flat",IF(D$1<'All De-SCope'!$N6,'All De-SCope'!$G6,0),IF(D$1<'All De-SCope'!$M6,'All De-SCope'!$G6,C5*(1-('All De-SCope'!$M6-D$1)/('All De-SCope'!$M6-'All De-SCope'!$N6)))),"") -> 207 | E5: =IF(C5<>"",IF($AF5="Flat",IF(E$1<'All De-SCope'!$N6,'All De-SCope'!$G6,0),IF(E$1<'All De-SCope'!$M6,'All De-SCope'!$G6,D5*(1-('All De-SCope'!$M6-E$1)/('All De-SCope'!$M6-'All De-SCope'!$N6)))),"") -> 207 | F5: =IF(D5<>"",IF($AF5="Flat",IF(F$1<'All De-SCope'!$J6,'All De-SCope'!$G6,0),IF(F$1<'All De-SCope'!$I6,'All De-SCope'!$G6,E5*(1-((DATEDIF('All De-SCope'!$I6,F$1,"m"))/3)/((DATEDIF('All De-SCope'!$I6,'All De-SCope'!$J6,"m"))/3)))),"") -> 207 | G5: =IF(E5<>"",IF($AF5="Flat",IF(G$1<'All De-SCope'!$J6,'All De-SCope'!$G6,0),IF(G$1<'All De-SCope'!$I6,'All De-SCope'!$G6,F5*(1-((DATEDIF('All De-SCope'!$I6,G$1,"m"))/3)/((DATEDIF('All De-SCope'!$I6,'All De-SCope'!$J6,"m"))/3)))),"") -> 207 | H5: =IF(F5<>"",IF($AF5="Flat",IF(H$1<'All De-SCope'!$J6,'All De-SCope'!$G6,0),IF(H$1<'All De-SCope'!$I6,'All De-SCope'!$G6,G5*(1-((DATEDIF('All De-SCope'!$I6,H$1,"m"))/3)/((DATEDIF('All De-SCope'!$I6,'All De-SCope'!$J6,"m"))/3)))),"") -> 207 | I5: =IF(G5<>"",IF($AF5="Flat",IF(I$1<'All De-SCope'!$J6,'All De-SCope'!$G6,0),IF(I$1<'All De-SCope'!$I6,'All De-SCope'!$G6,H5*(1-((DATEDIF('All De-SCope'!$I6,I$1,"m"))/3)/((DATEDIF('All De-SCope'!$I6,'All De-SCope'!$J6,"m"))/3)))),"") -> 207 | J5: =IF(H5<>"",IF($AF5="Flat",IF(J$1<'All De-SCope'!$J6,'All De-SCope'!$G6,0),IF(J$1<'All De-SCope'!$I6,'All De-SCope'!$G6,I5*(1-((DATEDIF('All De-SCope'!$I6,J$1,"m"))/3)/((DATEDIF('All De-SCope'!$I6,'All De-SCope'!$J6,"m"))/3)))),"") -> 207 | K5: =IF(I5<>"",IF($AF5="Flat",IF(K$1<'All De-SCope'!$J6,'All De-SCope'!$G6,0),IF(K$1<'All De-SCope'!$I6,'All De-SCope'!$G6,J5*(1-((DATEDIF('All De-SCope'!$I6,K$1,"m"))/3)/((DATEDIF('All De-SCope'!$I6,'All De-SCope'!$J6,"m"))/3)))),"") -> 207 | L5: =IF(J5<>"",IF($AF5="Flat",IF(L$1<'All De-SCope'!$J6,'All De-SCope'!$G6,0),IF(L$1<'All De-SCope'!$I6,'All De-SCope'!$G6,K5*(1-((DATEDIF('All De-SCope'!$I6,L$1,"m"))/3)/((DATEDIF('All De-SCope'!$I6,'All De-SCope'!$J6,"m"))/3)))),"") -> 207 | M5: =IF(K5<>"",IF($AF5="Flat",IF(M$1<'All De-SCope'!$J6,'All De-SCope'!$G6,0),IF(M$1<'All De-SCope'!$I6,'All De-SCope'!$G6,L5*(1-((DATEDIF('All De-SCope'!$I6,M$1,"m"))/3)/((DATEDIF('All De-SCope'!$I6,'All De-SCope'!$J6,"m"))/3)))),"") -> 207 | N5: =IF(L5<>"",IF($AF5="Flat",IF(N$1<'All De-SCope'!$J6,'All De-SCope'!$G6,0),IF(N$1<'All De-SCope'!$I6,'All De-SCope'!$G6,M5*(1-((DATEDIF('All De-SCope'!$I6,N$1,"m"))/3)/((DATEDIF('All De-SCope'!$I6,'All De-SCope'!$J6,"m"))/3)))),"") -> 207 | O5: =IF(M5<>"",IF($AF5="Flat",IF(O$1<'All De-SCope'!$J6,'All De-SCope'!$G6,0),IF(O$1<'All De-SCope'!$I6,'All De-SCope'!$G6,N5*(1-((DATEDIF('All De-SCope'!$I6,O$1,"m"))/3)/((DATEDIF('All De-SCope'!$I6,'All De-SCope'!$J6,"m"))/3)))),"") -> 181.125 | P5: =IF(N5<>"",IF($AF5="Flat",IF(P$1<'All De-SCope'!$J6,'All De-SCope'!$G6,0),IF(P$1<'All De-SCope'!$I6,'All De-SCope'!$G6,O5*(1-((DATEDIF('All De-SCope'!$I6,P$1,"m"))/3)/((DATEDIF('All De-SCope'!$I6,'All De-SCope'!$J6,"m"))/3)))),"") -> 135.84375 | Q5: =IF(O5<>"",IF($AF5="Flat",IF(Q$1<'All De-SCope'!$J6,'All De-SCope'!$G6,0),IF(Q$1<'All De-SCope'!$I6,'All De-SCope'!$G6,P5*(1-((DATEDIF('All De-SCope'!$I6,Q$1,"m"))/3)/((DATEDIF('All De-SCope'!$I6,'All De-SCope'!$J6,"m"))/3)))),"") -> 84.90234375 | R5: =IF(P5<>"",IF($AF5="Flat",IF(R$1<'All De-SCope'!$J6,'All De-SCope'!$G6,0),IF(R$1<'All De-SCope'!$I6,'All De-SCope'!$G6,Q5*(1-((DATEDIF('All De-SCope'!$I6,R$1,"m"))/3)/((DATEDIF('All De-SCope'!$I6,'All De-SCope'!$J6,"m"))/3)))),"") -> 42.45117188 | S5: =IF(Q5<>"",IF($AF5="Flat",IF(S$1<'All De-SCope'!$J6,'All De-SCope'!$G6,0),IF(S$1<'All De-SCope'!$I6,'All De-SCope'!$G6,R5*(1-((DATEDIF('All De-SCope'!$I6,S$1,"m"))/3)/((DATEDIF('All De-SCope'!$I6,'All De-SCope'!$J6,"m"))/3)))),"") -> 15.91918945 | T5: =IF(R5<>"",IF($AF5="Flat",IF(T$1<'All De-SCope'!$J6,'All De-SCope'!$G6,0),IF(T$1<'All De-SCope'!$I6,'All De-SCope'!$G6,S5*(1-((DATEDIF('All De-SCope'!$I6,T$1,"m"))/3)/((DATEDIF('All De-SCope'!$I6,'All De-SCope'!$J6,"m"))/3)))),"") -> 3.979797363 | U5: =IF(S5<>"",IF($AF5="Flat",IF(U$1<'All De-SCope'!$J6,'All De-SCope'!$G6,0),IF(U$1<'All De-SCope'!$I6,'All De-SCope'!$G6,T5*(1-((DATEDIF('All De-SCope'!$I6,U$1,"m"))/3)/((DATEDIF('All De-SCope'!$I6,'All De-SCope'!$J6,"m"))/3)))),"") -> 0.4974746704 | V5: =IF(T5<>"",IF($AF5="Flat",IF(V$1<'All De-SCope'!$J6,'All De-SCope'!$G6,0),IF(V$1<'All De-SCope'!$I6,'All De-SCope'!$G6,U5*(1-((DATEDIF('All De-SCope'!$I6,V$1,"m"))/3)/((DATEDIF('All De-SCope'!$I6,'All De-SCope'!$J6,"m"))/3)))),"") -> 0 | W5: =IF(U5<>"",IF($AF5="Flat",IF(W$1<'All De-SCope'!$J6,'All De-SCope'!$G6,0),IF(W$1<'All De-SCope'!$I6,'All De-SCope'!$G6,V5*(1-((DATEDIF('All De-SCope'!$I6,W$1,"m"))/3)/((DATEDIF('All De-SCope'!$I6,'All De-SCope'!$J6,"m"))/3)))),"") -> 0 | X5: =IF(V5<>"",IF($AF5="Flat",IF(X$1<'All De-SCope'!$J6,'All De-SCope'!$G6,0),IF(X$1<'All De-SCope'!$I6,'All De-SCope'!$G6,W5*(1-((DATEDIF('All De-SCope'!$I6,X$1,"m"))/3)/((DATEDIF('All De-SCope'!$I6,'All De-SCope'!$J6,"m"))/3)))),"") -> 0 | Y5: =IF(W5<>"",IF($AF5="Flat",IF(Y$1<'All De-SCope'!$J6,'All De-SCope'!$G6,0),IF(Y$1<'All De-SCope'!$I6,'All De-SCope'!$G6,X5*(1-((DATEDIF('All De-SCope'!$I6,Y$1,"m"))/3)/((DATEDIF('All De-SCope'!$I6,'All De-SCope'!$J6,"m"))/3)))),"") -> 0 | Z5: =IF(X5<>"",IF($AF5="Flat",IF(Z$1<'All De-SCope'!$J6,'All De-SCope'!$G6,0),IF(Z$1<'All De-SCope'!$I6,'All De-SCope'!$G6,Y5*(1-((DATEDIF('All De-SCope'!$I6,Z$1,"m"))/3)/((DATEDIF('All De-SCope'!$I6,'All De-SCope'!$J6,"m"))/3)))),"") -> 0 | AF5: =IF(B5<>"",'All De-SCope'!H6,"") -> Taper
B6: =IF('All De-SCope'!A7<>"",'All De-SCope'!A7,"") -> DM1 | C6: =IF(B6<>"",IF($AF6="Flat",IF(C$1<'All De-SCope'!$N7,'All De-SCope'!$G7,0),IF(C$1<'All De-SCope'!$N7,'All De-SCope'!$G7,0)),"") -> 25300 | D6: =IF(B6<>"",IF($AF6="Flat",IF(D$1<'All De-SCope'!$N7,'All De-SCope'!$G7,0),IF(D$1<'All De-SCope'!$M7,'All De-SCope'!$G7,C6*(1-('All De-SCope'!$M7-D$1)/('All De-SCope'!$M7-'All De-SCope'!$N7)))),"") -> 25300 | E6: =IF(C6<>"",IF($AF6="Flat",IF(E$1<'All De-SCope'!$N7,'All De-SCope'!$G7,0),IF(E$1<'All De-SCope'!$M7,'All De-SCope'!$G7,D6*(1-('All De-SCope'!$M7-E$1)/('All De-SCope'!$M7-'All De-SCope'!$N7)))),"") -> 21685.71429 | F6: =IF(D6<>"",IF($AF6="Flat",IF(F$1<'All De-SCope'!$J7,'All De-SCope'!$G7,0),IF(F$1<'All De-SCope'!$I7,'All De-SCope'!$G7,E6*(1-((DATEDIF('All De-SCope'!$I7,F$1,"m"))/3)/((DATEDIF('All De-SCope'!$I7,'All De-SCope'!$J7,"m"))/3)))),"") -> 15489.79592 | G6: =IF(E6<>"",IF($AF6="Flat",IF(G$1<'All De-SCope'!$J7,'All De-SCope'!$G7,0),IF(G$1<'All De-SCope'!$I7,'All De-SCope'!$G7,F6*(1-((DATEDIF('All De-SCope'!$I7,G$1,"m"))/3)/((DATEDIF('All De-SCope'!$I7,'All De-SCope'!$J7,"m"))/3)))),"") -> 10510.93294 | H6: =IF(F6<>"",IF($AF6="Flat",IF(H$1<'All De-SCope'!$J7,'All De-SCope'!$G7,0),IF(H$1<'All De-SCope'!$I7,'All De-SCope'!$G7,G6*(1-((DATEDIF('All De-SCope'!$I7,H$1,"m"))/3)/((DATEDIF('All De-SCope'!$I7,'All De-SCope'!$J7,"m"))/3)))),"") -> 6757.028322 | I6: =IF(G6<>"",IF($AF6="Flat",IF(I$1<'All De-SCope'!$J7,'All De-SCope'!$G7,0),IF(I$1<'All De-SCope'!$I7,'All De-SCope'!$G7,H6*(1-((DATEDIF('All De-SCope'!$I7,I$1,"m"))/3)/((DATEDIF('All De-SCope'!$I7,'All De-SCope'!$J7,"m"))/3)))),"") -> 4102.481481 | J6: =IF(H6<>"",IF($AF6="Flat",IF(J$1<'All De-SCope'!$J7,'All De-SCope'!$G7,0),IF(J$1<'All De-SCope'!$I7,'All De-SCope'!$G7,I6*(1-((DATEDIF('All De-SCope'!$I7,J$1,"m"))/3)/((DATEDIF('All De-SCope'!$I7,'All De-SCope'!$J7,"m"))/3)))),"") -> 2344.275132 | K6: =IF(I6<>"",IF($AF6="Flat",IF(K$1<'All De-SCope'!$J7,'All De-SCope'!$G7,0),IF(K$1<'All De-SCope'!$I7,'All De-SCope'!$G7,J6*(1-((DATEDIF('All De-SCope'!$I7,K$1,"m"))/3)/((DATEDIF('All De-SCope'!$I7,'All De-SCope'!$J7,"m"))/3)))),"") -> 1255.861678 | L6: =IF(J6<>"",IF($AF6="Flat",IF(L$1<'All De-SCope'!$J7,'All De-SCope'!$G7,0),IF(L$1<'All De-SCope'!$I7,'All De-SCope'!$G7,K6*(1-((DATEDIF('All De-SCope'!$I7,L$1,"m"))/3)/((DATEDIF('All De-SCope'!$I7,'All De-SCope'!$J7,"m"))/3)))),"") -> 627.9308389 | M6: =IF(K6<>"",IF($AF6="Flat",IF(M$1<'All De-SCope'!$J7,'All De-SCope'!$G7,0),IF(M$1<'All De-SCope'!$I7,'All De-SCope'!$G7,L6*(1-((DATEDIF('All De-SCope'!$I7,M$1,"m"))/3)/((DATEDIF('All De-SCope'!$I7,'All De-SCope'!$J7,"m"))/3)))),"") -> 291.5393181 | N6: =IF(L6<>"",IF($AF6="Flat",IF(N$1<'All De-SCope'!$J7,'All De-SCope'!$G7,0),IF(N$1<'All De-SCope'!$I7,'All De-SCope'!$G7,M6*(1-((DATEDIF('All De-SCope'!$I7,N$1,"m"))/3)/((DATEDIF('All De-SCope'!$I7,'All De-SCope'!$J7,"m"))/3)))),"") -> 124.945422 | O6: =IF(M6<>"",IF($AF6="Flat",IF(O$1<'All De-SCope'!$J7,'All De-SCope'!$G7,0),IF(O$1<'All De-SCope'!$I7,'All De-SCope'!$G7,N6*(1-((DATEDIF('All De-SCope'!$I7,O$1,"m"))/3)/((DATEDIF('All De-SCope'!$I7,'All De-SCope'!$J7,"m"))/3)))),"") -> 49.08570151 | P6: =IF(N6<>"",IF($AF6="Flat",IF(P$1<'All De-SCope'!$J7,'All De-SCope'!$G7,0),IF(P$1<'All De-SCope'!$I7,'All De-SCope'!$G7,O6*(1-((DATEDIF('All De-SCope'!$I7,P$1,"m"))/3)/((DATEDIF('All De-SCope'!$I7,'All De-SCope'!$J7,"m"))/3)))),"") -> 17.53060768 | Q6: =IF(O6<>"",IF($AF6="Flat",IF(Q$1<'All De-SCope'!$J7,'All De-SCope'!$G7,0),IF(Q$1<'All De-SCope'!$I7,'All De-SCope'!$G7,P6*(1-((DATEDIF('All De-SCope'!$I7,Q$1,"m"))/3)/((DATEDIF('All De-SCope'!$I7,'All De-SCope'!$J7,"m"))/3)))),"") -> 5.634838184 | R6: =IF(P6<>"",IF($AF6="Flat",IF(R$1<'All De-SCope'!$J7,'All De-SCope'!$G7,0),IF(R$1<'All De-SCope'!$I7,'All De-SCope'!$G7,Q6*(1-((DATEDIF('All De-SCope'!$I7,R$1,"m"))/3)/((DATEDIF('All De-SCope'!$I7,'All De-SCope'!$J7,"m"))/3)))),"") -> 1.609953767 | S6: =IF(Q6<>"",IF($AF6="Flat",IF(S$1<'All De-SCope'!$J7,'All De-SCope'!$G7,0),IF(S$1<'All De-SCope'!$I7,'All De-SCope'!$G7,R6*(1-((DATEDIF('All De-SCope'!$I7,S$1,"m"))/3)/((DATEDIF('All De-SCope'!$I7,'All De-SCope'!$J7,"m"))/3)))),"") -> 0.4024884417 | T6: =IF(R6<>"",IF($AF6="Flat",IF(T$1<'All De-SCope'!$J7,'All De-SCope'!$G7,0),IF(T$1<'All De-SCope'!$I7,'All De-SCope'!$G7,S6*(1-((DATEDIF('All De-SCope'!$I7,T$1,"m"))/3)/((DATEDIF('All De-SCope'!$I7,'All De-SCope'!$J7,"m"))/3)))),"") -> 0.08624752322 | U6: =IF(S6<>"",IF($AF6="Flat",IF(U$1<'All De-SCope'!$J7,'All De-SCope'!$G7,0),IF(U$1<'All De-SCope'!$I7,'All De-SCope'!$G7,T6*(1-((DATEDIF('All De-SCope'!$I7,U$1,"m"))/3)/((DATEDIF('All De-SCope'!$I7,'All De-SCope'!$J7,"m"))/3)))),"") -> 0.01540134343 | V6: =IF(T6<>"",IF($AF6="Flat",IF(V$1<'All De-SCope'!$J7,'All De-SCope'!$G7,0),IF(V$1<'All De-SCope'!$I7,'All De-SCope'!$G7,U6*(1-((DATEDIF('All De-SCope'!$I7,V$1,"m"))/3)/((DATEDIF('All De-SCope'!$I7,'All De-SCope'!$J7,"m"))/3)))),"") -> 0.002200191919 | W6: =IF(U6<>"",IF($AF6="Flat",IF(W$1<'All De-SCope'!$J7,'All De-SCope'!$G7,0),IF(W$1<'All De-SCope'!$I7,'All De-SCope'!$G7,V6*(1-((DATEDIF('All De-SCope'!$I7,W$1,"m"))/3)/((DATEDIF('All De-SCope'!$I7,'All De-SCope'!$J7,"m"))/3)))),"") -> 0.0002357348485 | X6: =IF(V6<>"",IF($AF6="Flat",IF(X$1<'All De-SCope'!$J7,'All De-SCope'!$G7,0),IF(X$1<'All De-SCope'!$I7,'All De-SCope'!$G7,W6*(1-((DATEDIF('All De-SCope'!$I7,X$1,"m"))/3)/((DATEDIF('All De-SCope'!$I7,'All De-SCope'!$J7,"m"))/3)))),"") -> 1.683820346e-05 | Y6: =IF(W6<>"",IF($AF6="Flat",IF(Y$1<'All De-SCope'!$J7,'All De-SCope'!$G7,0),IF(Y$1<'All De-SCope'!$I7,'All De-SCope'!$G7,X6*(1-((DATEDIF('All De-SCope'!$I7,Y$1,"m"))/3)/((DATEDIF('All De-SCope'!$I7,'All De-SCope'!$J7,"m"))/3)))),"") -> 6.013644093e-07 | Z6: =IF(X6<>"",IF($AF6="Flat",IF(Z$1<'All De-SCope'!$J7,'All De-SCope'!$G7,0),IF(Z$1<'All De-SCope'!$I7,'All De-SCope'!$G7,Y6*(1-((DATEDIF('All De-SCope'!$I7,Z$1,"m"))/3)/((DATEDIF('All De-SCope'!$I7,'All De-SCope'!$J7,"m"))/3)))),"") -> 0 | AF6: =IF(B6<>"",'All De-SCope'!H7,"") -> Tapered
B7: =IF('All De-SCope'!A8<>"",'All De-SCope'!A8,"") -> DM2 | C7: =IF(B7<>"",IF($AF7="Flat",IF(C$1<'All De-SCope'!$N8,'All De-SCope'!$G8,0),IF(C$1<'All De-SCope'!$N8,'All De-SCope'!$G8,0)),"") -> 2240 | D7: =IF(B7<>"",IF($AF7="Flat",IF(D$1<'All De-SCope'!$N8,'All De-SCope'!$G8,0),IF(D$1<'All De-SCope'!$M8,'All De-SCope'!$G8,C7*(1-('All De-SCope'!$M8-D$1)/('All De-SCope'!$M8-'All De-SCope'!$N8)))),"") -> 2240 | E7: =IF(C7<>"",IF($AF7="Flat",IF(E$1<'All De-SCope'!$N8,'All De-SCope'!$G8,0),IF(E$1<'All De-SCope'!$M8,'All De-SCope'!$G8,D7*(1-('All De-SCope'!$M8-E$1)/('All De-SCope'!$M8-'All De-SCope'!$N8)))),"") -> 1920 | F7: =IF(D7<>"",IF($AF7="Flat",IF(F$1<'All De-SCope'!$J8,'All De-SCope'!$G8,0),IF(F$1<'All De-SCope'!$I8,'All De-SCope'!$G8,E7*(1-((DATEDIF('All De-SCope'!$I8,F$1,"m"))/3)/((DATEDIF('All De-SCope'!$I8,'All De-SCope'!$J8,"m"))/3)))),"") -> 1351.111111 | G7: =IF(E7<>"",IF($AF7="Flat",IF(G$1<'All De-SCope'!$J8,'All De-SCope'!$G8,0),IF(G$1<'All De-SCope'!$I8,'All De-SCope'!$G8,F7*(1-((DATEDIF('All De-SCope'!$I8,G$1,"m"))/3)/((DATEDIF('All De-SCope'!$I8,'All De-SCope'!$J8,"m"))/3)))),"") -> 900.7407407 | H7: =IF(F7<>"",IF($AF7="Flat",IF(H$1<'All De-SCope'!$J8,'All De-SCope'!$G8,0),IF(H$1<'All De-SCope'!$I8,'All De-SCope'!$G8,G7*(1-((DATEDIF('All De-SCope'!$I8,H$1,"m"))/3)/((DATEDIF('All De-SCope'!$I8,'All De-SCope'!$J8,"m"))/3)))),"") -> 567.133059 | I7: =IF(G7<>"",IF($AF7="Flat",IF(I$1<'All De-SCope'!$J8,'All De-SCope'!$G8,0),IF(I$1<'All De-SCope'!$I8,'All De-SCope'!$G8,H7*(1-((DATEDIF('All De-SCope'!$I8,I$1,"m"))/3)/((DATEDIF('All De-SCope'!$I8,'All De-SCope'!$J8,"m"))/3)))),"") -> 336.0788498 | J7: =IF(H7<>"",IF($AF7="Flat",IF(J$1<'All De-SCope'!$J8,'All De-SCope'!$G8,0),IF(J$1<'All De-SCope'!$I8,'All De-SCope'!$G8,I7*(1-((DATEDIF('All De-SCope'!$I8,J$1,"m"))/3)/((DATEDIF('All De-SCope'!$I8,'All De-SCope'!$J8,"m"))/3)))),"") -> 186.7104721 | K7: =IF(I7<>"",IF($AF7="Flat",IF(K$1<'All De-SCope'!$J8,'All De-SCope'!$G8,0),IF(K$1<'All De-SCope'!$I8,'All De-SCope'!$G8,J7*(1-((DATEDIF('All De-SCope'!$I8,K$1,"m"))/3)/((DATEDIF('All De-SCope'!$I8,'All De-SCope'!$J8,"m"))/3)))),"") -> 96.81283738 | L7: =IF(J7<>"",IF($AF7="Flat",IF(L$1<'All De-SCope'!$J8,'All De-SCope'!$G8,0),IF(L$1<'All De-SCope'!$I8,'All De-SCope'!$G8,K7*(1-((DATEDIF('All De-SCope'!$I8,L$1,"m"))/3)/((DATEDIF('All De-SCope'!$I8,'All De-SCope'!$J8,"m"))/3)))),"") -> 46.61358837 | M7: =IF(K7<>"",IF($AF7="Flat",IF(M$1<'All De-SCope'!$J8,'All De-SCope'!$G8,0),IF(M$1<'All De-SCope'!$I8,'All De-SCope'!$G8,L7*(1-((DATEDIF('All De-SCope'!$I8,M$1,"m"))/3)/((DATEDIF('All De-SCope'!$I8,'All De-SCope'!$J8,"m"))/3)))),"") -> 20.71715039 | N7: =IF(L7<>"",IF($AF7="Flat",IF(N$1<'All De-SCope'!$J8,'All De-SCope'!$G8,0),IF(N$1<'All De-SCope'!$I8,'All De-SCope'!$G8,M7*(1-((DATEDIF('All De-SCope'!$I8,N$1,"m"))/3)/((DATEDIF('All De-SCope'!$I8,'All De-SCope'!$J8,"m"))/3)))),"") -> 8.440320528 | O7: =IF(M7<>"",IF($AF7="Flat",IF(O$1<'All De-SCope'!$J8,'All De-SCope'!$G8,0),IF(O$1<'All De-SCope'!$I8,'All De-SCope'!$G8,N7*(1-((DATEDIF('All De-SCope'!$I8,O$1,"m"))/3)/((DATEDIF('All De-SCope'!$I8,'All De-SCope'!$J8,"m"))/3)))),"") -> 3.12604464 | P7: =IF(N7<>"",IF($AF7="Flat",IF(P$1<'All De-SCope'!$J8,'All De-SCope'!$G8,0),IF(P$1<'All De-SCope'!$I8,'All De-SCope'!$G8,O7*(1-((DATEDIF('All De-SCope'!$I8,P$1,"m"))/3)/((DATEDIF('All De-SCope'!$I8,'All De-SCope'!$J8,"m"))/3)))),"") -> 1.04201488 | Q7: =IF(O7<>"",IF($AF7="Flat",IF(Q$1<'All De-SCope'!$J8,'All De-SCope'!$G8,0),IF(Q$1<'All De-SCope'!$I8,'All De-SCope'!$G8,P7*(1-((DATEDIF('All De-SCope'!$I8,Q$1,"m"))/3)/((DATEDIF('All De-SCope'!$I8,'All De-SCope'!$J8,"m"))/3)))),"") -> 0.3087451496 | R7: =IF(P7<>"",IF($AF7="Flat",IF(R$1<'All De-SCope'!$J8,'All De-SCope'!$G8,0),IF(R$1<'All De-SCope'!$I8,'All De-SCope'!$G8,Q7*(1-((DATEDIF('All De-SCope'!$I8,R$1,"m"))/3)/((DATEDIF('All De-SCope'!$I8,'All De-SCope'!$J8,"m"))/3)))),"") -> 0.08004503879 | S7: =IF(Q7<>"",IF($AF7="Flat",IF(S$1<'All De-SCope'!$J8,'All De-SCope'!$G8,0),IF(S$1<'All De-SCope'!$I8,'All De-SCope'!$G8,R7*(1-((DATEDIF('All De-SCope'!$I8,S$1,"m"))/3)/((DATEDIF('All De-SCope'!$I8,'All De-SCope'!$J8,"m"))/3)))),"") -> 0.0177877864 | T7: =IF(R7<>"",IF($AF7="Flat",IF(T$1<'All De-SCope'!$J8,'All De-SCope'!$G8,0),IF(T$1<'All De-SCope'!$I8,'All De-SCope'!$G8,S7*(1-((DATEDIF('All De-SCope'!$I8,T$1,"m"))/3)/((DATEDIF('All De-SCope'!$I8,'All De-SCope'!$J8,"m"))/3)))),"") -> 0.003294034518 | U7: =IF(S7<>"",IF($AF7="Flat",IF(U$1<'All De-SCope'!$J8,'All De-SCope'!$G8,0),IF(U$1<'All De-SCope'!$I8,'All De-SCope'!$G8,T7*(1-((DATEDIF('All De-SCope'!$I8,U$1,"m"))/3)/((DATEDIF('All De-SCope'!$I8,'All De-SCope'!$J8,"m"))/3)))),"") -> 0.0004880051138 | V7: =IF(T7<>"",IF($AF7="Flat",IF(V$1<'All De-SCope'!$J8,'All De-SCope'!$G8,0),IF(V$1<'All De-SCope'!$I8,'All De-SCope'!$G8,U7*(1-((DATEDIF('All De-SCope'!$I8,V$1,"m"))/3)/((DATEDIF('All De-SCope'!$I8,'All De-SCope'!$J8,"m"))/3)))),"") -> 5.422279042e-05 | W7: =IF(U7<>"",IF($AF7="Flat",IF(W$1<'All De-SCope'!$J8,'All De-SCope'!$G8,0),IF(W$1<'All De-SCope'!$I8,'All De-SCope'!$G8,V7*(1-((DATEDIF('All De-SCope'!$I8,W$1,"m"))/3)/((DATEDIF('All De-SCope'!$I8,'All De-SCope'!$J8,"m"))/3)))),"") -> 4.016502994e-06 | X7: =IF(V7<>"",IF($AF7="Flat",IF(X$1<'All De-SCope'!$J8,'All De-SCope'!$G8,0),IF(X$1<'All De-SCope'!$I8,'All De-SCope'!$G8,W7*(1-((DATEDIF('All De-SCope'!$I8,X$1,"m"))/3)/((DATEDIF('All De-SCope'!$I8,'All De-SCope'!$J8,"m"))/3)))),"") -> 1.487593702e-07 | Y7: =IF(W7<>"",IF($AF7="Flat",IF(Y$1<'All De-SCope'!$J8,'All De-SCope'!$G8,0),IF(Y$1<'All De-SCope'!$I8,'All De-SCope'!$G8,X7*(1-((DATEDIF('All De-SCope'!$I8,Y$1,"m"))/3)/((DATEDIF('All De-SCope'!$I8,'All De-SCope'!$J8,"m"))/3)))),"") -> 0 | Z7: =IF(X7<>"",IF($AF7="Flat",IF(Z$1<'All De-SCope'!$J8,'All De-SCope'!$G8,0),IF(Z$1<'All De-SCope'!$I8,'All De-SCope'!$G8,Y7*(1-((DATEDIF('All De-SCope'!$I8,Z$1,"m"))/3)/((DATEDIF('All De-SCope'!$I8,'All De-SCope'!$J8,"m"))/3)))),"") -> 0 | AF7: =IF(B7<>"",'All De-SCope'!H8,"") -> Tapered
B8: =IF('All De-SCope'!A9<>"",'All De-SCope'!A9,"") -> DM3 | C8: =IF(B8<>"",IF($AF8="Flat",IF(C$1<'All De-SCope'!$N9,'All De-SCope'!$G9,0),IF(C$1<'All De-SCope'!$N9,'All De-SCope'!$G9,0)),"") -> 4800 | D8: =IF(B8<>"",IF($AF8="Flat",IF(D$1<'All De-SCope'!$N9,'All De-SCope'!$G9,0),IF(D$1<'All De-SCope'!$M9,'All De-SCope'!$G9,C8*(1-('All De-SCope'!$M9-D$1)/('All De-SCope'!$M9-'All De-SCope'!$N9)))),"") -> 4800 | E8: =IF(C8<>"",IF($AF8="Flat",IF(E$1<'All De-SCope'!$N9,'All De-SCope'!$G9,0),IF(E$1<'All De-SCope'!$M9,'All De-SCope'!$G9,D8*(1-('All De-SCope'!$M9-E$1)/('All De-SCope'!$M9-'All De-SCope'!$N9)))),"") -> 4114.285714 | F8: =IF(D8<>"",IF($AF8="Flat",IF(F$1<'All De-SCope'!$J9,'All De-SCope'!$G9,0),IF(F$1<'All De-SCope'!$I9,'All De-SCope'!$G9,E8*(1-((DATEDIF('All De-SCope'!$I9,F$1,"m"))/3)/((DATEDIF('All De-SCope'!$I9,'All De-SCope'!$J9,"m"))/3)))),"") -> 2895.238095 | G8: =IF(E8<>"",IF($AF8="Flat",IF(G$1<'All De-SCope'!$J9,'All De-SCope'!$G9,0),IF(G$1<'All De-SCope'!$I9,'All De-SCope'!$G9,F8*(1-((DATEDIF('All De-SCope'!$I9,G$1,"m"))/3)/((DATEDIF('All De-SCope'!$I9,'All De-SCope'!$J9,"m"))/3)))),"") -> 1930.15873 | H8: =IF(F8<>"",IF($AF8="Flat",IF(H$1<'All De-SCope'!$J9,'All De-SCope'!$G9,0),IF(H$1<'All De-SCope'!$I9,'All De-SCope'!$G9,G8*(1-((DATEDIF('All De-SCope'!$I9,H$1,"m"))/3)/((DATEDIF('All De-SCope'!$I9,'All De-SCope'!$J9,"m"))/3)))),"") -> 1215.285126 | I8: =IF(G8<>"",IF($AF8="Flat",IF(I$1<'All De-SCope'!$J9,'All De-SCope'!$G9,0),IF(I$1<'All De-SCope'!$I9,'All De-SCope'!$G9,H8*(1-((DATEDIF('All De-SCope'!$I9,I$1,"m"))/3)/((DATEDIF('All De-SCope'!$I9,'All De-SCope'!$J9,"m"))/3)))),"") -> 720.1689638 | J8: =IF(H8<>"",IF($AF8="Flat",IF(J$1<'All De-SCope'!$J9,'All De-SCope'!$G9,0),IF(J$1<'All De-SCope'!$I9,'All De-SCope'!$G9,I8*(1-((DATEDIF('All De-SCope'!$I9,J$1,"m"))/3)/((DATEDIF('All De-SCope'!$I9,'All De-SCope'!$J9,"m"))/3)))),"") -> 400.0938688 | K8: =IF(I8<>"",IF($AF8="Flat",IF(K$1<'All De-SCope'!$J9,'All De-SCope'!$G9,0),IF(K$1<'All De-SCope'!$I9,'All De-SCope'!$G9,J8*(1-((DATEDIF('All De-SCope'!$I9,K$1,"m"))/3)/((DATEDIF('All De-SCope'!$I9,'All De-SCope'!$J9,"m"))/3)))),"") -> 207.4560801 | L8: =IF(J8<>"",IF($AF8="Flat",IF(L$1<'All De-SCope'!$J9,'All De-SCope'!$G9,0),IF(L$1<'All De-SCope'!$I9,'All De-SCope'!$G9,K8*(1-((DATEDIF('All De-SCope'!$I9,L$1,"m"))/3)/((DATEDIF('All De-SCope'!$I9,'All De-SCope'!$J9,"m"))/3)))),"") -> 99.88626079 | M8: =IF(K8<>"",IF($AF8="Flat",IF(M$1<'All De-SCope'!$J9,'All De-SCope'!$G9,0),IF(M$1<'All De-SCope'!$I9,'All De-SCope'!$G9,L8*(1-((DATEDIF('All De-SCope'!$I9,M$1,"m"))/3)/((DATEDIF('All De-SCope'!$I9,'All De-SCope'!$J9,"m"))/3)))),"") -> 44.39389368 | N8: =IF(L8<>"",IF($AF8="Flat",IF(N$1<'All De-SCope'!$J9,'All De-SCope'!$G9,0),IF(N$1<'All De-SCope'!$I9,'All De-SCope'!$G9,M8*(1-((DATEDIF('All De-SCope'!$I9,N$1,"m"))/3)/((DATEDIF('All De-SCope'!$I9,'All De-SCope'!$J9,"m"))/3)))),"") -> 18.08640113 | O8: =IF(M8<>"",IF($AF8="Flat",IF(O$1<'All De-SCope'!$J9,'All De-SCope'!$G9,0),IF(O$1<'All De-SCope'!$I9,'All De-SCope'!$G9,N8*(1-((DATEDIF('All De-SCope'!$I9,O$1,"m"))/3)/((DATEDIF('All De-SCope'!$I9,'All De-SCope'!$J9,"m"))/3)))),"") -> 6.698667086 | P8: =IF(N8<>"",IF($AF8="Flat",IF(P$1<'All De-SCope'!$J9,'All De-SCope'!$G9,0),IF(P$1<'All De-SCope'!$I9,'All De-SCope'!$G9,O8*(1-((DATEDIF('All De-SCope'!$I9,P$1,"m"))/3)/((DATEDIF('All De-SCope'!$I9,'All De-SCope'!$J9,"m"))/3)))),"") -> 2.232889029 | Q8: =IF(O8<>"",IF($AF8="Flat",IF(Q$1<'All De-SCope'!$J9,'All De-SCope'!$G9,0),IF(Q$1<'All De-SCope'!$I9,'All De-SCope'!$G9,P8*(1-((DATEDIF('All De-SCope'!$I9,Q$1,"m"))/3)/((DATEDIF('All De-SCope'!$I9,'All De-SCope'!$J9,"m"))/3)))),"") -> 0.6615967492 | R8: =IF(P8<>"",IF($AF8="Flat",IF(R$1<'All De-SCope'!$J9,'All De-SCope'!$G9,0),IF(R$1<'All De-SCope'!$I9,'All De-SCope'!$G9,Q8*(1-((DATEDIF('All De-SCope'!$I9,R$1,"m"))/3)/((DATEDIF('All De-SCope'!$I9,'All De-SCope'!$J9,"m"))/3)))),"") -> 0.1715250831 | S8: =IF(Q8<>"",IF($AF8="Flat",IF(S$1<'All De-SCope'!$J9,'All De-SCope'!$G9,0),IF(S$1<'All De-SCope'!$I9,'All De-SCope'!$G9,R8*(1-((DATEDIF('All De-SCope'!$I9,S$1,"m"))/3)/((DATEDIF('All De-SCope'!$I9,'All De-SCope'!$J9,"m"))/3)))),"") -> 0.03811668514 | T8: =IF(R8<>"",IF($AF8="Flat",IF(T$1<'All De-SCope'!$J9,'All De-SCope'!$G9,0),IF(T$1<'All De-SCope'!$I9,'All De-SCope'!$G9,S8*(1-((DATEDIF('All De-SCope'!$I9,T$1,"m"))/3)/((DATEDIF('All De-SCope'!$I9,'All De-SCope'!$J9,"m"))/3)))),"") -> 0.007058645396 | U8: =IF(S8<>"",IF($AF8="Flat",IF(U$1<'All De-SCope'!$J9,'All De-SCope'!$G9,0),IF(U$1<'All De-SCope'!$I9,'All De-SCope'!$G9,T8*(1-((DATEDIF('All De-SCope'!$I9,U$1,"m"))/3)/((DATEDIF('All De-SCope'!$I9,'All De-SCope'!$J9,"m"))/3)))),"") -> 0.001045725244 | V8: =IF(T8<>"",IF($AF8="Flat",IF(V$1<'All De-SCope'!$J9,'All De-SCope'!$G9,0),IF(V$1<'All De-SCope'!$I9,'All De-SCope'!$G9,U8*(1-((DATEDIF('All De-SCope'!$I9,V$1,"m"))/3)/((DATEDIF('All De-SCope'!$I9,'All De-SCope'!$J9,"m"))/3)))),"") -> 0.0001161916938 | W8: =IF(U8<>"",IF($AF8="Flat",IF(W$1<'All De-SCope'!$J9,'All De-SCope'!$G9,0),IF(W$1<'All De-SCope'!$I9,'All De-SCope'!$G9,V8*(1-((DATEDIF('All De-SCope'!$I9,W$1,"m"))/3)/((DATEDIF('All De-SCope'!$I9,'All De-SCope'!$J9,"m"))/3)))),"") -> 8.60679213e-06 | X8: =IF(V8<>"",IF($AF8="Flat",IF(X$1<'All De-SCope'!$J9,'All De-SCope'!$G9,0),IF(X$1<'All De-SCope'!$I9,'All De-SCope'!$G9,W8*(1-((DATEDIF('All De-SCope'!$I9,X$1,"m"))/3)/((DATEDIF('All De-SCope'!$I9,'All De-SCope'!$J9,"m"))/3)))),"") -> 3.187700789e-07 | Y8: =IF(W8<>"",IF($AF8="Flat",IF(Y$1<'All De-SCope'!$J9,'All De-SCope'!$G9,0),IF(Y$1<'All De-SCope'!$I9,'All De-SCope'!$G9,X8*(1-((DATEDIF('All De-SCope'!$I9,Y$1,"m"))/3)/((DATEDIF('All De-SCope'!$I9,'All De-SCope'!$J9,"m"))/3)))),"") -> 0 | Z8: =IF(X8<>"",IF($AF8="Flat",IF(Z$1<'All De-SCope'!$J9,'All De-SCope'!$G9,0),IF(Z$1<'All De-SCope'!$I9,'All De-SCope'!$G9,Y8*(1-((DATEDIF('All De-SCope'!$I9,Z$1,"m"))/3)/((DATEDIF('All De-SCope'!$I9,'All De-SCope'!$J9,"m"))/3)))),"") -> 0 | AF8: =IF(B8<>"",'All De-SCope'!H9,"") -> Tapered
B9: =IF('All De-SCope'!A10<>"",'All De-SCope'!A10,"") -> DM4 | C9: =IF(B9<>"",IF($AF9="Flat",IF(C$1<'All De-SCope'!$N10,'All De-SCope'!$G10,0),IF(C$1<'All De-SCope'!$N10,'All De-SCope'!$G10,0)),"") -> 650 | D9: =IF(B9<>"",IF($AF9="Flat",IF(D$1<'All De-SCope'!$N10,'All De-SCope'!$G10,0),IF(D$1<'All De-SCope'!$M10,'All De-SCope'!$G10,C9*(1-('All De-SCope'!$M10-D$1)/('All De-SCope'!$M10-'All De-SCope'!$N10)))),"") -> 650 | E9: =IF(C9<>"",IF($AF9="Flat",IF(E$1<'All De-SCope'!$N10,'All De-SCope'!$G10,0),IF(E$1<'All De-SCope'!$M10,'All De-SCope'!$G10,D9*(1-('All De-SCope'!$M10-E$1)/('All De-SCope'!$M10-'All De-SCope'!$N10)))),"") -> 650 | F9: =IF(D9<>"",IF($AF9="Flat",IF(F$1<'All De-SCope'!$J10,'All De-SCope'!$G10,0),IF(F$1<'All De-SCope'!$I10,'All De-SCope'!$G10,E9*(1-((DATEDIF('All De-SCope'!$I10,F$1,"m"))/3)/((DATEDIF('All De-SCope'!$I10,'All De-SCope'!$J10,"m"))/3)))),"") -> 650 | G9: =IF(E9<>"",IF($AF9="Flat",IF(G$1<'All De-SCope'!$J10,'All De-SCope'!$G10,0),IF(G$1<'All De-SCope'!$I10,'All De-SCope'!$G10,F9*(1-((DATEDIF('All De-SCope'!$I10,G$1,"m"))/3)/((DATEDIF('All De-SCope'!$I10,'All De-SCope'!$J10,"m"))/3)))),"") -> 650 | H9: =IF(F9<>"",IF($AF9="Flat",IF(H$1<'All De-SCope'!$J10,'All De-SCope'!$G10,0),IF(H$1<'All De-SCope'!$I10,'All De-SCope'!$G10,G9*(1-((DATEDIF('All De-SCope'!$I10,H$1,"m"))/3)/((DATEDIF('All De-SCope'!$I10,'All De-SCope'!$J10,"m"))/3)))),"") -> 650 | I9: =IF(G9<>"",IF($AF9="Flat",IF(I$1<'All De-SCope'!$J10,'All De-SCope'!$G10,0),IF(I$1<'All De-SCope'!$I10,'All De-SCope'!$G10,H9*(1-((DATEDIF('All De-SCope'!$I10,I$1,"m"))/3)/((DATEDIF('All De-SCope'!$I10,'All De-SCope'!$J10,"m"))/3)))),"") -> 650 | J9: =IF(H9<>"",IF($AF9="Flat",IF(J$1<'All De-SCope'!$J10,'All De-SCope'!$G10,0),IF(J$1<'All De-SCope'!$I10,'All De-SCope'!$G10,I9*(1-((DATEDIF('All De-SCope'!$I10,J$1,"m"))/3)/((DATEDIF('All De-SCope'!$I10,'All De-SCope'!$J10,"m"))/3)))),"") -> 650 | K9: =IF(I9<>"",IF($AF9="Flat",IF(K$1<'All De-SCope'!$J10,'All De-SCope'!$G10,0),IF(K$1<'All De-SCope'!$I10,'All De-SCope'!$G10,J9*(1-((DATEDIF('All De-SCope'!$I10,K$1,"m"))/3)/((DATEDIF('All De-SCope'!$I10,'All De-SCope'!$J10,"m"))/3)))),"") -> 606.6666667 | L9: =IF(J9<>"",IF($AF9="Flat",IF(L$1<'All De-SCope'!$J10,'All De-SCope'!$G10,0),IF(L$1<'All De-SCope'!$I10,'All De-SCope'!$G10,K9*(1-((DATEDIF('All De-SCope'!$I10,L$1,"m"))/3)/((DATEDIF('All De-SCope'!$I10,'All De-SCope'!$J10,"m"))/3)))),"") -> 525.7777778 | M9: =IF(K9<>"",IF($AF9="Flat",IF(M$1<'All De-SCope'!$J10,'All De-SCope'!$G10,0),IF(M$1<'All De-SCope'!$I10,'All De-SCope'!$G10,L9*(1-((DATEDIF('All De-SCope'!$I10,M$1,"m"))/3)/((DATEDIF('All De-SCope'!$I10,'All De-SCope'!$J10,"m"))/3)))),"") -> 420.6222222 | N9: =IF(L9<>"",IF($AF9="Flat",IF(N$1<'All De-SCope'!$J10,'All De-SCope'!$G10,0),IF(N$1<'All De-SCope'!$I10,'All De-SCope'!$G10,M9*(1-((DATEDIF('All De-SCope'!$I10,N$1,"m"))/3)/((DATEDIF('All De-SCope'!$I10,'All De-SCope'!$J10,"m"))/3)))),"") -> 308.4562963 | O9: =IF(M9<>"",IF($AF9="Flat",IF(O$1<'All De-SCope'!$J10,'All De-SCope'!$G10,0),IF(O$1<'All De-SCope'!$I10,'All De-SCope'!$G10,N9*(1-((DATEDIF('All De-SCope'!$I10,O$1,"m"))/3)/((DATEDIF('All De-SCope'!$I10,'All De-SCope'!$J10,"m"))/3)))),"") -> 205.6375309 | P9: =IF(N9<>"",IF($AF9="Flat",IF(P$1<'All De-SCope'!$J10,'All De-SCope'!$G10,0),IF(P$1<'All De-SCope'!$I10,'All De-SCope'!$G10,O9*(1-((DATEDIF('All De-SCope'!$I10,P$1,"m"))/3)/((DATEDIF('All De-SCope'!$I10,'All De-SCope'!$J10,"m"))/3)))),"") -> 123.3825185 | Q9: =IF(O9<>"",IF($AF9="Flat",IF(Q$1<'All De-SCope'!$J10,'All De-SCope'!$G10,0),IF(Q$1<'All De-SCope'!$I10,'All De-SCope'!$G10,P9*(1-((DATEDIF('All De-SCope'!$I10,Q$1,"m"))/3)/((DATEDIF('All De-SCope'!$I10,'All De-SCope'!$J10,"m"))/3)))),"") -> 65.80400988 | R9: =IF(P9<>"",IF($AF9="Flat",IF(R$1<'All De-SCope'!$J10,'All De-SCope'!$G10,0),IF(R$1<'All De-SCope'!$I10,'All De-SCope'!$G10,Q9*(1-((DATEDIF('All De-SCope'!$I10,R$1,"m"))/3)/((DATEDIF('All De-SCope'!$I10,'All De-SCope'!$J10,"m"))/3)))),"") -> 30.70853794 | S9: =IF(Q9<>"",IF($AF9="Flat",IF(S$1<'All De-SCope'!$J10,'All De-SCope'!$G10,0),IF(S$1<'All De-SCope'!$I10,'All De-SCope'!$G10,R9*(1-((DATEDIF('All De-SCope'!$I10,S$1,"m"))/3)/((DATEDIF('All De-SCope'!$I10,'All De-SCope'!$J10,"m"))/3)))),"") -> 12.28341518 | T9: =IF(R9<>"",IF($AF9="Flat",IF(T$1<'All De-SCope'!$J10,'All De-SCope'!$G10,0),IF(T$1<'All De-SCope'!$I10,'All De-SCope'!$G10,S9*(1-((DATEDIF('All De-SCope'!$I10,T$1,"m"))/3)/((DATEDIF('All De-SCope'!$I10,'All De-SCope'!$J10,"m"))/3)))),"") -> 4.094471726 | U9: =IF(S9<>"",IF($AF9="Flat",IF(U$1<'All De-SCope'!$J10,'All De-SCope'!$G10,0),IF(U$1<'All De-SCope'!$I10,'All De-SCope'!$G10,T9*(1-((DATEDIF('All De-SCope'!$I10,U$1,"m"))/3)/((DATEDIF('All De-SCope'!$I10,'All De-SCope'!$J10,"m"))/3)))),"") -> 1.091859127 | V9: =IF(T9<>"",IF($AF9="Flat",IF(V$1<'All De-SCope'!$J10,'All De-SCope'!$G10,0),IF(V$1<'All De-SCope'!$I10,'All De-SCope'!$G10,U9*(1-((DATEDIF('All De-SCope'!$I10,V$1,"m"))/3)/((DATEDIF('All De-SCope'!$I10,'All De-SCope'!$J10,"m"))/3)))),"") -> 0.2183718254 | W9: =IF(U9<>"",IF($AF9="Flat",IF(W$1<'All De-SCope'!$J10,'All De-SCope'!$G10,0),IF(W$1<'All De-SCope'!$I10,'All De-SCope'!$G10,V9*(1-((DATEDIF('All De-SCope'!$I10,W$1,"m"))/3)/((DATEDIF('All De-SCope'!$I10,'All De-SCope'!$J10,"m"))/3)))),"") -> 0.02911624338 | X9: =IF(V9<>"",IF($AF9="Flat",IF(X$1<'All De-SCope'!$J10,'All De-SCope'!$G10,0),IF(X$1<'All De-SCope'!$I10,'All De-SCope'!$G10,W9*(1-((DATEDIF('All De-SCope'!$I10,X$1,"m"))/3)/((DATEDIF('All De-SCope'!$I10,'All De-SCope'!$J10,"m"))/3)))),"") -> 0.001941082892 | Y9: =IF(W9<>"",IF($AF9="Flat",IF(Y$1<'All De-SCope'!$J10,'All De-SCope'!$G10,0),IF(Y$1<'All De-SCope'!$I10,'All De-SCope'!$G10,X9*(1-((DATEDIF('All De-SCope'!$I10,Y$1,"m"))/3)/((DATEDIF('All De-SCope'!$I10,'All De-SCope'!$J10,"m"))/3)))),"") -> 0 | Z9: =IF(X9<>"",IF($AF9="Flat",IF(Z$1<'All De-SCope'!$J10,'All De-SCope'!$G10,0),IF(Z$1<'All De-SCope'!$I10,'All De-SCope'!$G10,Y9*(1-((DATEDIF('All De-SCope'!$I10,Z$1,"m"))/3)/((DATEDIF('All De-SCope'!$I10,'All De-SCope'!$J10,"m"))/3)))),"") -> 0 | AF9: =IF(B9<>"",'All De-SCope'!H10,"") -> Tapered
B10: =IF('All De-SCope'!A11<>"",'All De-SCope'!A11,"") -> DM6 | C10: =IF(B10<>"",IF($AF10="Flat",IF(C$1<'All De-SCope'!$N11,'All De-SCope'!$G11,0),IF(C$1<'All De-SCope'!$N11,'All De-SCope'!$G11,0)),"") -> 2800 | D10: =IF(B10<>"",IF($AF10="Flat",IF(D$1<'All De-SCope'!$N11,'All De-SCope'!$G11,0),IF(D$1<'All De-SCope'!$M11,'All De-SCope'!$G11,C10*(1-('All De-SCope'!$M11-D$1)/('All De-SCope'!$M11-'All De-SCope'!$N11)))),"") -> 2800 | E10: =IF(C10<>"",IF($AF10="Flat",IF(E$1<'All De-SCope'!$N11,'All De-SCope'!$G11,0),IF(E$1<'All De-SCope'!$M11,'All De-SCope'!$G11,D10*(1-('All De-SCope'!$M11-E$1)/('All De-SCope'!$M11-'All De-SCope'!$N11)))),"") -> 2800 | F10: =IF(D10<>"",IF($AF10="Flat",IF(F$1<'All De-SCope'!$J11,'All De-SCope'!$G11,0),IF(F$1<'All De-SCope'!$I11,'All De-SCope'!$G11,E10*(1-((DATEDIF('All De-SCope'!$I11,F$1,"m"))/3)/((DATEDIF('All De-SCope'!$I11,'All De-SCope'!$J11,"m"))/3)))),"") -> 2800 | G10: =IF(E10<>"",IF($AF10="Flat",IF(G$1<'All De-SCope'!$J11,'All De-SCope'!$G11,0),IF(G$1<'All De-SCope'!$I11,'All De-SCope'!$G11,F10*(1-((DATEDIF('All De-SCope'!$I11,G$1,"m"))/3)/((DATEDIF('All De-SCope'!$I11,'All De-SCope'!$J11,"m"))/3)))),"") -> 2800 | H10: =IF(F10<>"",IF($AF10="Flat",IF(H$1<'All De-SCope'!$J11,'All De-SCope'!$G11,0),IF(H$1<'All De-SCope'!$I11,'All De-SCope'!$G11,G10*(1-((DATEDIF('All De-SCope'!$I11,H$1,"m"))/3)/((DATEDIF('All De-SCope'!$I11,'All De-SCope'!$J11,"m"))/3)))),"") -> 2800 | I10: =IF(G10<>"",IF($AF10="Flat",IF(I$1<'All De-SCope'!$J11,'All De-SCope'!$G11,0),IF(I$1<'All De-SCope'!$I11,'All De-SCope'!$G11,H10*(1-((DATEDIF('All De-SCope'!$I11,I$1,"m"))/3)/((DATEDIF('All De-SCope'!$I11,'All De-SCope'!$J11,"m"))/3)))),"") -> 2800 | J10: =IF(H10<>"",IF($AF10="Flat",IF(J$1<'All De-SCope'!$J11,'All De-SCope'!$G11,0),IF(J$1<'All De-SCope'!$I11,'All De-SCope'!$G11,I10*(1-((DATEDIF('All De-SCope'!$I11,J$1,"m"))/3)/((DATEDIF('All De-SCope'!$I11,'All De-SCope'!$J11,"m"))/3)))),"") -> 2800 | K10: =IF(I10<>"",IF($AF10="Flat",IF(K$1<'All De-SCope'!$J11,'All De-SCope'!$G11,0),IF(K$1<'All De-SCope'!$I11,'All De-SCope'!$G11,J10*(1-((DATEDIF('All De-SCope'!$I11,K$1,"m"))/3)/((DATEDIF('All De-SCope'!$I11,'All De-SCope'!$J11,"m"))/3)))),"") -> 2800 | L10: =IF(J10<>"",IF($AF10="Flat",IF(L$1<'All De-SCope'!$J11,'All De-SCope'!$G11,0),IF(L$1<'All De-SCope'!$I11,'All De-SCope'!$G11,K10*(1-((DATEDIF('All De-SCope'!$I11,L$1,"m"))/3)/((DATEDIF('All De-SCope'!$I11,'All De-SCope'!$J11,"m"))/3)))),"") -> 2800 | M10: =IF(K10<>"",IF($AF10="Flat",IF(M$1<'All De-SCope'!$J11,'All De-SCope'!$G11,0),IF(M$1<'All De-SCope'!$I11,'All De-SCope'!$G11,L10*(1-((DATEDIF('All De-SCope'!$I11,M$1,"m"))/3)/((DATEDIF('All De-SCope'!$I11,'All De-SCope'!$J11,"m"))/3)))),"") -> 2800 | N10: =IF(L10<>"",IF($AF10="Flat",IF(N$1<'All De-SCope'!$J11,'All De-SCope'!$G11,0),IF(N$1<'All De-SCope'!$I11,'All De-SCope'!$G11,M10*(1-((DATEDIF('All De-SCope'!$I11,N$1,"m"))/3)/((DATEDIF('All De-SCope'!$I11,'All De-SCope'!$J11,"m"))/3)))),"") -> 2800 | O10: =IF(M10<>"",IF($AF10="Flat",IF(O$1<'All De-SCope'!$J11,'All De-SCope'!$G11,0),IF(O$1<'All De-SCope'!$I11,'All De-SCope'!$G11,N10*(1-((DATEDIF('All De-SCope'!$I11,O$1,"m"))/3)/((DATEDIF('All De-SCope'!$I11,'All De-SCope'!$J11,"m"))/3)))),"") -> 2800 | P10: =IF(N10<>"",IF($AF10="Flat",IF(P$1<'All De-SCope'!$J11,'All De-SCope'!$G11,0),IF(P$1<'All De-SCope'!$I11,'All De-SCope'!$G11,O10*(1-((DATEDIF('All De-SCope'!$I11,P$1,"m"))/3)/((DATEDIF('All De-SCope'!$I11,'All De-SCope'!$J11,"m"))/3)))),"") -> 2800 | Q10: =IF(O10<>"",IF($AF10="Flat",IF(Q$1<'All De-SCope'!$J11,'All De-SCope'!$G11,0),IF(Q$1<'All De-SCope'!$I11,'All De-SCope'!$G11,P10*(1-((DATEDIF('All De-SCope'!$I11,Q$1,"m"))/3)/((DATEDIF('All De-SCope'!$I11,'All De-SCope'!$J11,"m"))/3)))),"") -> 2800 | R10: =IF(P10<>"",IF($AF10="Flat",IF(R$1<'All De-SCope'!$J11,'All De-SCope'!$G11,0),IF(R$1<'All De-SCope'!$I11,'All De-SCope'!$G11,Q10*(1-((DATEDIF('All De-SCope'!$I11,R$1,"m"))/3)/((DATEDIF('All De-SCope'!$I11,'All De-SCope'!$J11,"m"))/3)))),"") -> 2800 | S10: =IF(Q10<>"",IF($AF10="Flat",IF(S$1<'All De-SCope'!$J11,'All De-SCope'!$G11,0),IF(S$1<'All De-SCope'!$I11,'All De-SCope'!$G11,R10*(1-((DATEDIF('All De-SCope'!$I11,S$1,"m"))/3)/((DATEDIF('All De-SCope'!$I11,'All De-SCope'!$J11,"m"))/3)))),"") -> 2100 | T10: =IF(R10<>"",IF($AF10="Flat",IF(T$1<'All De-SCope'!$J11,'All De-SCope'!$G11,0),IF(T$1<'All De-SCope'!$I11,'All De-SCope'!$G11,S10*(1-((DATEDIF('All De-SCope'!$I11,T$1,"m"))/3)/((DATEDIF('All De-SCope'!$I11,'All De-SCope'!$J11,"m"))/3)))),"") -> 1050 | U10: =IF(S10<>"",IF($AF10="Flat",IF(U$1<'All De-SCope'!$J11,'All De-SCope'!$G11,0),IF(U$1<'All De-SCope'!$I11,'All De-SCope'!$G11,T10*(1-((DATEDIF('All De-SCope'!$I11,U$1,"m"))/3)/((DATEDIF('All De-SCope'!$I11,'All De-SCope'!$J11,"m"))/3)))),"") -> 262.5 | V10: =IF(T10<>"",IF($AF10="Flat",IF(V$1<'All De-SCope'!$J11,'All De-SCope'!$G11,0),IF(V$1<'All De-SCope'!$I11,'All De-SCope'!$G11,U10*(1-((DATEDIF('All De-SCope'!$I11,V$1,"m"))/3)/((DATEDIF('All De-SCope'!$I11,'All De-SCope'!$J11,"m"))/3)))),"") -> 0 | W10: =IF(U10<>"",IF($AF10="Flat",IF(W$1<'All De-SCope'!$J11,'All De-SCope'!$G11,0),IF(W$1<'All De-SCope'!$I11,'All De-SCope'!$G11,V10*(1-((DATEDIF('All De-SCope'!$I11,W$1,"m"))/3)/((DATEDIF('All De-SCope'!$I11,'All De-SCope'!$J11,"m"))/3)))),"") -> 0 | X10: =IF(V10<>"",IF($AF10="Flat",IF(X$1<'All De-SCope'!$J11,'All De-SCope'!$G11,0),IF(X$1<'All De-SCope'!$I11,'All De-SCope'!$G11,W10*(1-((DATEDIF('All De-SCope'!$I11,X$1,"m"))/3)/((DATEDIF('All De-SCope'!$I11,'All De-SCope'!$J11,"m"))/3)))),"") -> 0 | Y10: =IF(W10<>"",IF($AF10="Flat",IF(Y$1<'All De-SCope'!$J11,'All De-SCope'!$G11,0),IF(Y$1<'All De-SCope'!$I11,'All De-SCope'!$G11,X10*(1-((DATEDIF('All De-SCope'!$I11,Y$1,"m"))/3)/((DATEDIF('All De-SCope'!$I11,'All De-SCope'!$J11,"m"))/3)))),"") -> 0 | Z10: =IF(X10<>"",IF($AF10="Flat",IF(Z$1<'All De-SCope'!$J11,'All De-SCope'!$G11,0),IF(Z$1<'All De-SCope'!$I11,'All De-SCope'!$G11,Y10*(1-((DATEDIF('All De-SCope'!$I11,Z$1,"m"))/3)/((DATEDIF('All De-SCope'!$I11,'All De-SCope'!$J11,"m"))/3)))),"") -> 0 | AF10: =IF(B10<>"",'All De-SCope'!H11,"") -> Tapered
B11: =IF('All De-SCope'!A12<>"",'All De-SCope'!A12,"") -> DM7 | C11: =IF(B11<>"",IF($AF11="Flat",IF(C$1<'All De-SCope'!$N12,'All De-SCope'!$G12,0),IF(C$1<'All De-SCope'!$N12,'All De-SCope'!$G12,0)),"") -> 500 | D11: =IF(B11<>"",IF($AF11="Flat",IF(D$1<'All De-SCope'!$N12,'All De-SCope'!$G12,0),IF(D$1<'All De-SCope'!$M12,'All De-SCope'!$G12,C11*(1-('All De-SCope'!$M12-D$1)/('All De-SCope'!$M12-'All De-SCope'!$N12)))),"") -> 500 | E11: =IF(C11<>"",IF($AF11="Flat",IF(E$1<'All De-SCope'!$N12,'All De-SCope'!$G12,0),IF(E$1<'All De-SCope'!$M12,'All De-SCope'!$G12,D11*(1-('All De-SCope'!$M12-E$1)/('All De-SCope'!$M12-'All De-SCope'!$N12)))),"") -> 500 | F11: =IF(D11<>"",IF($AF11="Flat",IF(F$1<'All De-SCope'!$J12,'All De-SCope'!$G12,0),IF(F$1<'All De-SCope'!$I12,'All De-SCope'!$G12,E11*(1-((DATEDIF('All De-SCope'!$I12,F$1,"m"))/3)/((DATEDIF('All De-SCope'!$I12,'All De-SCope'!$J12,"m"))/3)))),"") -> 500 | G11: =IF(E11<>"",IF($AF11="Flat",IF(G$1<'All De-SCope'!$J12,'All De-SCope'!$G12,0),IF(G$1<'All De-SCope'!$I12,'All De-SCope'!$G12,F11*(1-((DATEDIF('All De-SCope'!$I12,G$1,"m"))/3)/((DATEDIF('All De-SCope'!$I12,'All De-SCope'!$J12,"m"))/3)))),"") -> 500 | H11: =IF(F11<>"",IF($AF11="Flat",IF(H$1<'All De-SCope'!$J12,'All De-SCope'!$G12,0),IF(H$1<'All De-SCope'!$I12,'All De-SCope'!$G12,G11*(1-((DATEDIF('All De-SCope'!$I12,H$1,"m"))/3)/((DATEDIF('All De-SCope'!$I12,'All De-SCope'!$J12,"m"))/3)))),"") -> 500 | I11: =IF(G11<>"",IF($AF11="Flat",IF(I$1<'All De-SCope'!$J12,'All De-SCope'!$G12,0),IF(I$1<'All De-SCope'!$I12,'All De-SCope'!$G12,H11*(1-((DATEDIF('All De-SCope'!$I12,I$1,"m"))/3)/((DATEDIF('All De-SCope'!$I12,'All De-SCope'!$J12,"m"))/3)))),"") -> 500 | J11: =IF(H11<>"",IF($AF11="Flat",IF(J$1<'All De-SCope'!$J12,'All De-SCope'!$G12,0),IF(J$1<'All De-SCope'!$I12,'All De-SCope'!$G12,I11*(1-((DATEDIF('All De-SCope'!$I12,J$1,"m"))/3)/((DATEDIF('All De-SCope'!$I12,'All De-SCope'!$J12,"m"))/3)))),"") -> 500 | K11: =IF(I11<>"",IF($AF11="Flat",IF(K$1<'All De-SCope'!$J12,'All De-SCope'!$G12,0),IF(K$1<'All De-SCope'!$I12,'All De-SCope'!$G12,J11*(1-((DATEDIF('All De-SCope'!$I12,K$1,"m"))/3)/((DATEDIF('All De-SCope'!$I12,'All De-SCope'!$J12,"m"))/3)))),"") -> 473.6842105 | L11: =IF(J11<>"",IF($AF11="Flat",IF(L$1<'All De-SCope'!$J12,'All De-SCope'!$G12,0),IF(L$1<'All De-SCope'!$I12,'All De-SCope'!$G12,K11*(1-((DATEDIF('All De-SCope'!$I12,L$1,"m"))/3)/((DATEDIF('All De-SCope'!$I12,'All De-SCope'!$J12,"m"))/3)))),"") -> 423.8227147 | M11: =IF(K11<>"",IF($AF11="Flat",IF(M$1<'All De-SCope'!$J12,'All De-SCope'!$G12,0),IF(M$1<'All De-SCope'!$I12,'All De-SCope'!$G12,L11*(1-((DATEDIF('All De-SCope'!$I12,M$1,"m"))/3)/((DATEDIF('All De-SCope'!$I12,'All De-SCope'!$J12,"m"))/3)))),"") -> 356.9033387 | N11: =IF(L11<>"",IF($AF11="Flat",IF(N$1<'All De-SCope'!$J12,'All De-SCope'!$G12,0),IF(N$1<'All De-SCope'!$I12,'All De-SCope'!$G12,M11*(1-((DATEDIF('All De-SCope'!$I12,N$1,"m"))/3)/((DATEDIF('All De-SCope'!$I12,'All De-SCope'!$J12,"m"))/3)))),"") -> 281.7657937 | O11: =IF(M11<>"",IF($AF11="Flat",IF(O$1<'All De-SCope'!$J12,'All De-SCope'!$G12,0),IF(O$1<'All De-SCope'!$I12,'All De-SCope'!$G12,N11*(1-((DATEDIF('All De-SCope'!$I12,O$1,"m"))/3)/((DATEDIF('All De-SCope'!$I12,'All De-SCope'!$J12,"m"))/3)))),"") -> 207.6169006 | P11: =IF(N11<>"",IF($AF11="Flat",IF(P$1<'All De-SCope'!$J12,'All De-SCope'!$G12,0),IF(P$1<'All De-SCope'!$I12,'All De-SCope'!$G12,O11*(1-((DATEDIF('All De-SCope'!$I12,P$1,"m"))/3)/((DATEDIF('All De-SCope'!$I12,'All De-SCope'!$J12,"m"))/3)))),"") -> 142.0536688 | Q11: =IF(O11<>"",IF($AF11="Flat",IF(Q$1<'All De-SCope'!$J12,'All De-SCope'!$G12,0),IF(Q$1<'All De-SCope'!$I12,'All De-SCope'!$G12,P11*(1-((DATEDIF('All De-SCope'!$I12,Q$1,"m"))/3)/((DATEDIF('All De-SCope'!$I12,'All De-SCope'!$J12,"m"))/3)))),"") -> 89.71810664 | R11: =IF(P11<>"",IF($AF11="Flat",IF(R$1<'All De-SCope'!$J12,'All De-SCope'!$G12,0),IF(R$1<'All De-SCope'!$I12,'All De-SCope'!$G12,Q11*(1-((DATEDIF('All De-SCope'!$I12,R$1,"m"))/3)/((DATEDIF('All De-SCope'!$I12,'All De-SCope'!$J12,"m"))/3)))),"") -> 51.94206174 | S11: =IF(Q11<>"",IF($AF11="Flat",IF(S$1<'All De-SCope'!$J12,'All De-SCope'!$G12,0),IF(S$1<'All De-SCope'!$I12,'All De-SCope'!$G12,R11*(1-((DATEDIF('All De-SCope'!$I12,S$1,"m"))/3)/((DATEDIF('All De-SCope'!$I12,'All De-SCope'!$J12,"m"))/3)))),"") -> 27.33792723 | T11: =IF(R11<>"",IF($AF11="Flat",IF(T$1<'All De-SCope'!$J12,'All De-SCope'!$G12,0),IF(T$1<'All De-SCope'!$I12,'All De-SCope'!$G12,S11*(1-((DATEDIF('All De-SCope'!$I12,T$1,"m"))/3)/((DATEDIF('All De-SCope'!$I12,'All De-SCope'!$J12,"m"))/3)))),"") -> 12.94954448 | U11: =IF(S11<>"",IF($AF11="Flat",IF(U$1<'All De-SCope'!$J12,'All De-SCope'!$G12,0),IF(U$1<'All De-SCope'!$I12,'All De-SCope'!$G12,T11*(1-((DATEDIF('All De-SCope'!$I12,U$1,"m"))/3)/((DATEDIF('All De-SCope'!$I12,'All De-SCope'!$J12,"m"))/3)))),"") -> 5.45243978 | V11: =IF(T11<>"",IF($AF11="Flat",IF(V$1<'All De-SCope'!$J12,'All De-SCope'!$G12,0),IF(V$1<'All De-SCope'!$I12,'All De-SCope'!$G12,U11*(1-((DATEDIF('All De-SCope'!$I12,V$1,"m"))/3)/((DATEDIF('All De-SCope'!$I12,'All De-SCope'!$J12,"m"))/3)))),"") -> 2.008793603 | W11: =IF(U11<>"",IF($AF11="Flat",IF(W$1<'All De-SCope'!$J12,'All De-SCope'!$G12,0),IF(W$1<'All De-SCope'!$I12,'All De-SCope'!$G12,V11*(1-((DATEDIF('All De-SCope'!$I12,W$1,"m"))/3)/((DATEDIF('All De-SCope'!$I12,'All De-SCope'!$J12,"m"))/3)))),"") -> 0.6343558747 | X11: =IF(V11<>"",IF($AF11="Flat",IF(X$1<'All De-SCope'!$J12,'All De-SCope'!$G12,0),IF(X$1<'All De-SCope'!$I12,'All De-SCope'!$G12,W11*(1-((DATEDIF('All De-SCope'!$I12,X$1,"m"))/3)/((DATEDIF('All De-SCope'!$I12,'All De-SCope'!$J12,"m"))/3)))),"") -> 0.1669357565 | Y11: =IF(W11<>"",IF($AF11="Flat",IF(Y$1<'All De-SCope'!$J12,'All De-SCope'!$G12,0),IF(Y$1<'All De-SCope'!$I12,'All De-SCope'!$G12,X11*(1-((DATEDIF('All De-SCope'!$I12,Y$1,"m"))/3)/((DATEDIF('All De-SCope'!$I12,'All De-SCope'!$J12,"m"))/3)))),"") -> 0.03514436979 | Z11: =IF(X11<>"",IF($AF11="Flat",IF(Z$1<'All De-SCope'!$J12,'All De-SCope'!$G12,0),IF(Z$1<'All De-SCope'!$I12,'All De-SCope'!$G12,Y11*(1-((DATEDIF('All De-SCope'!$I12,Z$1,"m"))/3)/((DATEDIF('All De-SCope'!$I12,'All De-SCope'!$J12,"m"))/3)))),"") -> 0.005549111019 | AF11: =IF(B11<>"",'All De-SCope'!H12,"") -> Tapered
B12: =IF('All De-SCope'!A13<>"",'All De-SCope'!A13,"") -> DM9 | C12: =IF(B12<>"",IF($AF12="Flat",IF(C$1<'All De-SCope'!$N13,'All De-SCope'!$G13,0),IF(C$1<'All De-SCope'!$N13,'All De-SCope'!$G13,0)),"") -> 600 | D12: =IF(B12<>"",IF($AF12="Flat",IF(D$1<'All De-SCope'!$N13,'All De-SCope'!$G13,0),IF(D$1<'All De-SCope'!$M13,'All De-SCope'!$G13,C12*(1-('All De-SCope'!$M13-D$1)/('All De-SCope'!$M13-'All De-SCope'!$N13)))),"") -> 600 | E12: =IF(C12<>"",IF($AF12="Flat",IF(E$1<'All De-SCope'!$N13,'All De-SCope'!$G13,0),IF(E$1<'All De-SCope'!$M13,'All De-SCope'!$G13,D12*(1-('All De-SCope'!$M13-E$1)/('All De-SCope'!$M13-'All De-SCope'!$N13)))),"") -> 600 | F12: =IF(D12<>"",IF($AF12="Flat",IF(F$1<'All De-SCope'!$J13,'All De-SCope'!$G13,0),IF(F$1<'All De-SCope'!$I13,'All De-SCope'!$G13,E12*(1-((DATEDIF('All De-SCope'!$I13,F$1,"m"))/3)/((DATEDIF('All De-SCope'!$I13,'All De-SCope'!$J13,"m"))/3)))),"") -> 600 | G12: =IF(E12<>"",IF($AF12="Flat",IF(G$1<'All De-SCope'!$J13,'All De-SCope'!$G13,0),IF(G$1<'All De-SCope'!$I13,'All De-SCope'!$G13,F12*(1-((DATEDIF('All De-SCope'!$I13,G$1,"m"))/3)/((DATEDIF('All De-SCope'!$I13,'All De-SCope'!$J13,"m"))/3)))),"") -> 600 | H12: =IF(F12<>"",IF($AF12="Flat",IF(H$1<'All De-SCope'!$J13,'All De-SCope'!$G13,0),IF(H$1<'All De-SCope'!$I13,'All De-SCope'!$G13,G12*(1-((DATEDIF('All De-SCope'!$I13,H$1,"m"))/3)/((DATEDIF('All De-SCope'!$I13,'All De-SCope'!$J13,"m"))/3)))),"") -> 600 | I12: =IF(G12<>"",IF($AF12="Flat",IF(I$1<'All De-SCope'!$J13,'All De-SCope'!$G13,0),IF(I$1<'All De-SCope'!$I13,'All De-SCope'!$G13,H12*(1-((DATEDIF('All De-SCope'!$I13,I$1,"m"))/3)/((DATEDIF('All De-SCope'!$I13,'All De-SCope'!$J13,"m"))/3)))),"") -> 600 | J12: =IF(H12<>"",IF($AF12="Flat",IF(J$1<'All De-SCope'!$J13,'All De-SCope'!$G13,0),IF(J$1<'All De-SCope'!$I13,'All De-SCope'!$G13,I12*(1-((DATEDIF('All De-SCope'!$I13,J$1,"m"))/3)/((DATEDIF('All De-SCope'!$I13,'All De-SCope'!$J13,"m"))/3)))),"") -> 600 | K12: =IF(I12<>"",IF($AF12="Flat",IF(K$1<'All De-SCope'!$J13,'All De-SCope'!$G13,0),IF(K$1<'All De-SCope'!$I13,'All De-SCope'!$G13,J12*(1-((DATEDIF('All De-SCope'!$I13,K$1,"m"))/3)/((DATEDIF('All De-SCope'!$I13,'All De-SCope'!$J13,"m"))/3)))),"") -> 560 | L12: =IF(J12<>"",IF($AF12="Flat",IF(L$1<'All De-SCope'!$J13,'All De-SCope'!$G13,0),IF(L$1<'All De-SCope'!$I13,'All De-SCope'!$G13,K12*(1-((DATEDIF('All De-SCope'!$I13,L$1,"m"))/3)/((DATEDIF('All De-SCope'!$I13,'All De-SCope'!$J13,"m"))/3)))),"") -> 485.3333333 | M12: =IF(K12<>"",IF($AF12="Flat",IF(M$1<'All De-SCope'!$J13,'All De-SCope'!$G13,0),IF(M$1<'All De-SCope'!$I13,'All De-SCope'!$G13,L12*(1-((DATEDIF('All De-SCope'!$I13,M$1,"m"))/3)/((DATEDIF('All De-SCope'!$I13,'All De-SCope'!$J13,"m"))/3)))),"") -> 388.2666667 | N12: =IF(L12<>"",IF($AF12="Flat",IF(N$1<'All De-SCope'!$J13,'All De-SCope'!$G13,0),IF(N$1<'All De-SCope'!$I13,'All De-SCope'!$G13,M12*(1-((DATEDIF('All De-SCope'!$I13,N$1,"m"))/3)/((DATEDIF('All De-SCope'!$I13,'All De-SCope'!$J13,"m"))/3)))),"") -> 284.7288889 | O12: =IF(M12<>"",IF($AF12="Flat",IF(O$1<'All De-SCope'!$J13,'All De-SCope'!$G13,0),IF(O$1<'All De-SCope'!$I13,'All De-SCope'!$G13,N12*(1-((DATEDIF('All De-SCope'!$I13,O$1,"m"))/3)/((DATEDIF('All De-SCope'!$I13,'All De-SCope'!$J13,"m"))/3)))),"") -> 189.8192593 | P12: =IF(N12<>"",IF($AF12="Flat",IF(P$1<'All De-SCope'!$J13,'All De-SCope'!$G13,0),IF(P$1<'All De-SCope'!$I13,'All De-SCope'!$G13,O12*(1-((DATEDIF('All De-SCope'!$I13,P$1,"m"))/3)/((DATEDIF('All De-SCope'!$I13,'All De-SCope'!$J13,"m"))/3)))),"") -> 113.8915556 | Q12: =IF(O12<>"",IF($AF12="Flat",IF(Q$1<'All De-SCope'!$J13,'All De-SCope'!$G13,0),IF(Q$1<'All De-SCope'!$I13,'All De-SCope'!$G13,P12*(1-((DATEDIF('All De-SCope'!$I13,Q$1,"m"))/3)/((DATEDIF('All De-SCope'!$I13,'All De-SCope'!$J13,"m"))/3)))),"") -> 60.74216296 | R12: =IF(P12<>"",IF($AF12="Flat",IF(R$1<'All De-SCope'!$J13,'All De-SCope'!$G13,0),IF(R$1<'All De-SCope'!$I13,'All De-SCope'!$G13,Q12*(1-((DATEDIF('All De-SCope'!$I13,R$1,"m"))/3)/((DATEDIF('All De-SCope'!$I13,'All De-SCope'!$J13,"m"))/3)))),"") -> 28.34634272 | S12: =IF(Q12<>"",IF($AF12="Flat",IF(S$1<'All De-SCope'!$J13,'All De-SCope'!$G13,0),IF(S$1<'All De-SCope'!$I13,'All De-SCope'!$G13,R12*(1-((DATEDIF('All De-SCope'!$I13,S$1,"m"))/3)/((DATEDIF('All De-SCope'!$I13,'All De-SCope'!$J13,"m"))/3)))),"") -> 11.33853709 | T12: =IF(R12<>"",IF($AF12="Flat",IF(T$1<'All De-SCope'!$J13,'All De-SCope'!$G13,0),IF(T$1<'All De-SCope'!$I13,'All De-SCope'!$G13,S12*(1-((DATEDIF('All De-SCope'!$I13,T$1,"m"))/3)/((DATEDIF('All De-SCope'!$I13,'All De-SCope'!$J13,"m"))/3)))),"") -> 3.779512362 | U12: =IF(S12<>"",IF($AF12="Flat",IF(U$1<'All De-SCope'!$J13,'All De-SCope'!$G13,0),IF(U$1<'All De-SCope'!$I13,'All De-SCope'!$G13,T12*(1-((DATEDIF('All De-SCope'!$I13,U$1,"m"))/3)/((DATEDIF('All De-SCope'!$I13,'All De-SCope'!$J13,"m"))/3)))),"") -> 1.007869963 | V12: =IF(T12<>"",IF($AF12="Flat",IF(V$1<'All De-SCope'!$J13,'All De-SCope'!$G13,0),IF(V$1<'All De-SCope'!$I13,'All De-SCope'!$G13,U12*(1-((DATEDIF('All De-SCope'!$I13,V$1,"m"))/3)/((DATEDIF('All De-SCope'!$I13,'All De-SCope'!$J13,"m"))/3)))),"") -> 0.2015739926 | W12: =IF(U12<>"",IF($AF12="Flat",IF(W$1<'All De-SCope'!$J13,'All De-SCope'!$G13,0),IF(W$1<'All De-SCope'!$I13,'All De-SCope'!$G13,V12*(1-((DATEDIF('All De-SCope'!$I13,W$1,"m"))/3)/((DATEDIF('All De-SCope'!$I13,'All De-SCope'!$J13,"m"))/3)))),"") -> 0.02687653235 | X12: =IF(V12<>"",IF($AF12="Flat",IF(X$1<'All De-SCope'!$J13,'All De-SCope'!$G13,0),IF(X$1<'All De-SCope'!$I13,'All De-SCope'!$G13,W12*(1-((DATEDIF('All De-SCope'!$I13,X$1,"m"))/3)/((DATEDIF('All De-SCope'!$I13,'All De-SCope'!$J13,"m"))/3)))),"") -> 0.001791768824 | Y12: =IF(W12<>"",IF($AF12="Flat",IF(Y$1<'All De-SCope'!$J13,'All De-SCope'!$G13,0),IF(Y$1<'All De-SCope'!$I13,'All De-SCope'!$G13,X12*(1-((DATEDIF('All De-SCope'!$I13,Y$1,"m"))/3)/((DATEDIF('All De-SCope'!$I13,'All De-SCope'!$J13,"m"))/3)))),"") -> 0 | Z12: =IF(X12<>"",IF($AF12="Flat",IF(Z$1<'All De-SCope'!$J13,'All De-SCope'!$G13,0),IF(Z$1<'All De-SCope'!$I13,'All De-SCope'!$G13,Y12*(1-((DATEDIF('All De-SCope'!$I13,Z$1,"m"))/3)/((DATEDIF('All De-SCope'!$I13,'All De-SCope'!$J13,"m"))/3)))),"") -> 0 | AF12: =IF(B12<>"",'All De-SCope'!H13,"") -> Tapered
B13: =IF('All De-SCope'!A14<>"",'All De-SCope'!A14,"") -> DM10 | C13: =IF(B13<>"",IF($AF13="Flat",IF(C$1<'All De-SCope'!$N14,'All De-SCope'!$G14,0),IF(C$1<'All De-SCope'!$N14,'All De-SCope'!$G14,0)),"") -> 4000 | D13: =IF(B13<>"",IF($AF13="Flat",IF(D$1<'All De-SCope'!$N14,'All De-SCope'!$G14,0),IF(D$1<'All De-SCope'!$M14,'All De-SCope'!$G14,C13*(1-('All De-SCope'!$M14-D$1)/('All De-SCope'!$M14-'All De-SCope'!$N14)))),"") -> 4000 | E13: =IF(C13<>"",IF($AF13="Flat",IF(E$1<'All De-SCope'!$N14,'All De-SCope'!$G14,0),IF(E$1<'All De-SCope'!$M14,'All De-SCope'!$G14,D13*(1-('All De-SCope'!$M14-E$1)/('All De-SCope'!$M14-'All De-SCope'!$N14)))),"") -> 4000 | F13: =IF(D13<>"",IF($AF13="Flat",IF(F$1<'All De-SCope'!$J14,'All De-SCope'!$G14,0),IF(F$1<'All De-SCope'!$I14,'All De-SCope'!$G14,E13*(1-((DATEDIF('All De-SCope'!$I14,F$1,"m"))/3)/((DATEDIF('All De-SCope'!$I14,'All De-SCope'!$J14,"m"))/3)))),"") -> 4000 | G13: =IF(E13<>"",IF($AF13="Flat",IF(G$1<'All De-SCope'!$J14,'All De-SCope'!$G14,0),IF(G$1<'All De-SCope'!$I14,'All De-SCope'!$G14,F13*(1-((DATEDIF('All De-SCope'!$I14,G$1,"m"))/3)/((DATEDIF('All De-SCope'!$I14,'All De-SCope'!$J14,"m"))/3)))),"") -> 3750 | H13: =IF(F13<>"",IF($AF13="Flat",IF(H$1<'All De-SCope'!$J14,'All De-SCope'!$G14,0),IF(H$1<'All De-SCope'!$I14,'All De-SCope'!$G14,G13*(1-((DATEDIF('All De-SCope'!$I14,H$1,"m"))/3)/((DATEDIF('All De-SCope'!$I14,'All De-SCope'!$J14,"m"))/3)))),"") -> 3281.25 | I13: =IF(G13<>"",IF($AF13="Flat",IF(I$1<'All De-SCope'!$J14,'All De-SCope'!$G14,0),IF(I$1<'All De-SCope'!$I14,'All De-SCope'!$G14,H13*(1-((DATEDIF('All De-SCope'!$I14,I$1,"m"))/3)/((DATEDIF('All De-SCope'!$I14,'All De-SCope'!$J14,"m"))/3)))),"") -> 2666.015625 | J13: =IF(H13<>"",IF($AF13="Flat",IF(J$1<'All De-SCope'!$J14,'All De-SCope'!$G14,0),IF(J$1<'All De-SCope'!$I14,'All De-SCope'!$G14,I13*(1-((DATEDIF('All De-SCope'!$I14,J$1,"m"))/3)/((DATEDIF('All De-SCope'!$I14,'All De-SCope'!$J14,"m"))/3)))),"") -> 1999.511719 | K13: =IF(I13<>"",IF($AF13="Flat",IF(K$1<'All De-SCope'!$J14,'All De-SCope'!$G14,0),IF(K$1<'All De-SCope'!$I14,'All De-SCope'!$G14,J13*(1-((DATEDIF('All De-SCope'!$I14,K$1,"m"))/3)/((DATEDIF('All De-SCope'!$I14,'All De-SCope'!$J14,"m"))/3)))),"") -> 1374.664307 | L13: =IF(J13<>"",IF($AF13="Flat",IF(L$1<'All De-SCope'!$J14,'All De-SCope'!$G14,0),IF(L$1<'All De-SCope'!$I14,'All De-SCope'!$G14,K13*(1-((DATEDIF('All De-SCope'!$I14,L$1,"m"))/3)/((DATEDIF('All De-SCope'!$I14,'All De-SCope'!$J14,"m"))/3)))),"") -> 859.1651917 | M13: =IF(K13<>"",IF($AF13="Flat",IF(M$1<'All De-SCope'!$J14,'All De-SCope'!$G14,0),IF(M$1<'All De-SCope'!$I14,'All De-SCope'!$G14,L13*(1-((DATEDIF('All De-SCope'!$I14,M$1,"m"))/3)/((DATEDIF('All De-SCope'!$I14,'All De-SCope'!$J14,"m"))/3)))),"") -> 483.2804203 | N13: =IF(L13<>"",IF($AF13="Flat",IF(N$1<'All De-SCope'!$J14,'All De-SCope'!$G14,0),IF(N$1<'All De-SCope'!$I14,'All De-SCope'!$G14,M13*(1-((DATEDIF('All De-SCope'!$I14,N$1,"m"))/3)/((DATEDIF('All De-SCope'!$I14,'All De-SCope'!$J14,"m"))/3)))),"") -> 241.6402102 | O13: =IF(M13<>"",IF($AF13="Flat",IF(O$1<'All De-SCope'!$J14,'All De-SCope'!$G14,0),IF(O$1<'All De-SCope'!$I14,'All De-SCope'!$G14,N13*(1-((DATEDIF('All De-SCope'!$I14,O$1,"m"))/3)/((DATEDIF('All De-SCope'!$I14,'All De-SCope'!$J14,"m"))/3)))),"") -> 105.7175919 | P13: =IF(N13<>"",IF($AF13="Flat",IF(P$1<'All De-SCope'!$J14,'All De-SCope'!$G14,0),IF(P$1<'All De-SCope'!$I14,'All De-SCope'!$G14,O13*(1-((DATEDIF('All De-SCope'!$I14,P$1,"m"))/3)/((DATEDIF('All De-SCope'!$I14,'All De-SCope'!$J14,"m"))/3)))),"") -> 39.64409698 | Q13: =IF(O13<>"",IF($AF13="Flat",IF(Q$1<'All De-SCope'!$J14,'All De-SCope'!$G14,0),IF(Q$1<'All De-SCope'!$I14,'All De-SCope'!$G14,P13*(1-((DATEDIF('All De-SCope'!$I14,Q$1,"m"))/3)/((DATEDIF('All De-SCope'!$I14,'All De-SCope'!$J14,"m"))/3)))),"") -> 12.38878031 | R13: =IF(P13<>"",IF($AF13="Flat",IF(R$1<'All De-SCope'!$J14,'All De-SCope'!$G14,0),IF(R$1<'All De-SCope'!$I14,'All De-SCope'!$G14,Q13*(1-((DATEDIF('All De-SCope'!$I14,R$1,"m"))/3)/((DATEDIF('All De-SCope'!$I14,'All De-SCope'!$J14,"m"))/3)))),"") -> 3.097195076 | S13: =IF(Q13<>"",IF($AF13="Flat",IF(S$1<'All De-SCope'!$J14,'All De-SCope'!$G14,0),IF(S$1<'All De-SCope'!$I14,'All De-SCope'!$G14,R13*(1-((DATEDIF('All De-SCope'!$I14,S$1,"m"))/3)/((DATEDIF('All De-SCope'!$I14,'All De-SCope'!$J14,"m"))/3)))),"") -> 0.5807240768 | T13: =IF(R13<>"",IF($AF13="Flat",IF(T$1<'All De-SCope'!$J14,'All De-SCope'!$G14,0),IF(T$1<'All De-SCope'!$I14,'All De-SCope'!$G14,S13*(1-((DATEDIF('All De-SCope'!$I14,T$1,"m"))/3)/((DATEDIF('All De-SCope'!$I14,'All De-SCope'!$J14,"m"))/3)))),"") -> 0.0725905096 | U13: =IF(S13<>"",IF($AF13="Flat",IF(U$1<'All De-SCope'!$J14,'All De-SCope'!$G14,0),IF(U$1<'All De-SCope'!$I14,'All De-SCope'!$G14,T13*(1-((DATEDIF('All De-SCope'!$I14,U$1,"m"))/3)/((DATEDIF('All De-SCope'!$I14,'All De-SCope'!$J14,"m"))/3)))),"") -> 0.00453690685 | V13: =IF(T13<>"",IF($AF13="Flat",IF(V$1<'All De-SCope'!$J14,'All De-SCope'!$G14,0),IF(V$1<'All De-SCope'!$I14,'All De-SCope'!$G14,U13*(1-((DATEDIF('All De-SCope'!$I14,V$1,"m"))/3)/((DATEDIF('All De-SCope'!$I14,'All De-SCope'!$J14,"m"))/3)))),"") -> 0 | W13: =IF(U13<>"",IF($AF13="Flat",IF(W$1<'All De-SCope'!$J14,'All De-SCope'!$G14,0),IF(W$1<'All De-SCope'!$I14,'All De-SCope'!$G14,V13*(1-((DATEDIF('All De-SCope'!$I14,W$1,"m"))/3)/((DATEDIF('All De-SCope'!$I14,'All De-SCope'!$J14,"m"))/3)))),"") -> 0 | X13: =IF(V13<>"",IF($AF13="Flat",IF(X$1<'All De-SCope'!$J14,'All De-SCope'!$G14,0),IF(X$1<'All De-SCope'!$I14,'All De-SCope'!$G14,W13*(1-((DATEDIF('All De-SCope'!$I14,X$1,"m"))/3)/((DATEDIF('All De-SCope'!$I14,'All De-SCope'!$J14,"m"))/3)))),"") -> 0 | Y13: =IF(W13<>"",IF($AF13="Flat",IF(Y$1<'All De-SCope'!$J14,'All De-SCope'!$G14,0),IF(Y$1<'All De-SCope'!$I14,'All De-SCope'!$G14,X13*(1-((DATEDIF('All De-SCope'!$I14,Y$1,"m"))/3)/((DATEDIF('All De-SCope'!$I14,'All De-SCope'!$J14,"m"))/3)))),"") -> 0 | Z13: =IF(X13<>"",IF($AF13="Flat",IF(Z$1<'All De-SCope'!$J14,'All De-SCope'!$G14,0),IF(Z$1<'All De-SCope'!$I14,'All De-SCope'!$G14,Y13*(1-((DATEDIF('All De-SCope'!$I14,Z$1,"m"))/3)/((DATEDIF('All De-SCope'!$I14,'All De-SCope'!$J14,"m"))/3)))),"") -> 0 | AF13: =IF(B13<>"",'All De-SCope'!H14,"") -> Tapered
B14: =IF('All De-SCope'!A15<>"",'All De-SCope'!A15,"") -> DM11 | C14: =IF(B14<>"",IF($AF14="Flat",IF(C$1<'All De-SCope'!$N15,'All De-SCope'!$G15,0),IF(C$1<'All De-SCope'!$N15,'All De-SCope'!$G15,0)),"") -> 400 | D14: =IF(B14<>"",IF($AF14="Flat",IF(D$1<'All De-SCope'!$N15,'All De-SCope'!$G15,0),IF(D$1<'All De-SCope'!$M15,'All De-SCope'!$G15,C14*(1-('All De-SCope'!$M15-D$1)/('All De-SCope'!$M15-'All De-SCope'!$N15)))),"") -> 400 | E14: =IF(C14<>"",IF($AF14="Flat",IF(E$1<'All De-SCope'!$N15,'All De-SCope'!$G15,0),IF(E$1<'All De-SCope'!$M15,'All De-SCope'!$G15,D14*(1-('All De-SCope'!$M15-E$1)/('All De-SCope'!$M15-'All De-SCope'!$N15)))),"") -> 400 | F14: =IF(D14<>"",IF($AF14="Flat",IF(F$1<'All De-SCope'!$J15,'All De-SCope'!$G15,0),IF(F$1<'All De-SCope'!$I15,'All De-SCope'!$G15,E14*(1-((DATEDIF('All De-SCope'!$I15,F$1,"m"))/3)/((DATEDIF('All De-SCope'!$I15,'All De-SCope'!$J15,"m"))/3)))),"") -> 400 | G14: =IF(E14<>"",IF($AF14="Flat",IF(G$1<'All De-SCope'!$J15,'All De-SCope'!$G15,0),IF(G$1<'All De-SCope'!$I15,'All De-SCope'!$G15,F14*(1-((DATEDIF('All De-SCope'!$I15,G$1,"m"))/3)/((DATEDIF('All De-SCope'!$I15,'All De-SCope'!$J15,"m"))/3)))),"") -> 400 | H14: =IF(F14<>"",IF($AF14="Flat",IF(H$1<'All De-SCope'!$J15,'All De-SCope'!$G15,0),IF(H$1<'All De-SCope'!$I15,'All De-SCope'!$G15,G14*(1-((DATEDIF('All De-SCope'!$I15,H$1,"m"))/3)/((DATEDIF('All De-SCope'!$I15,'All De-SCope'!$J15,"m"))/3)))),"") -> 400 | I14: =IF(G14<>"",IF($AF14="Flat",IF(I$1<'All De-SCope'!$J15,'All De-SCope'!$G15,0),IF(I$1<'All De-SCope'!$I15,'All De-SCope'!$G15,H14*(1-((DATEDIF('All De-SCope'!$I15,I$1,"m"))/3)/((DATEDIF('All De-SCope'!$I15,'All De-SCope'!$J15,"m"))/3)))),"") -> 400 | J14: =IF(H14<>"",IF($AF14="Flat",IF(J$1<'All De-SCope'!$J15,'All De-SCope'!$G15,0),IF(J$1<'All De-SCope'!$I15,'All De-SCope'!$G15,I14*(1-((DATEDIF('All De-SCope'!$I15,J$1,"m"))/3)/((DATEDIF('All De-SCope'!$I15,'All De-SCope'!$J15,"m"))/3)))),"") -> 400 | K14: =IF(I14<>"",IF($AF14="Flat",IF(K$1<'All De-SCope'!$J15,'All De-SCope'!$G15,0),IF(K$1<'All De-SCope'!$I15,'All De-SCope'!$G15,J14*(1-((DATEDIF('All De-SCope'!$I15,K$1,"m"))/3)/((DATEDIF('All De-SCope'!$I15,'All De-SCope'!$J15,"m"))/3)))),"") -> 373.3333333 | L14: =IF(J14<>"",IF($AF14="Flat",IF(L$1<'All De-SCope'!$J15,'All De-SCope'!$G15,0),IF(L$1<'All De-SCope'!$I15,'All De-SCope'!$G15,K14*(1-((DATEDIF('All De-SCope'!$I15,L$1,"m"))/3)/((DATEDIF('All De-SCope'!$I15,'All De-SCope'!$J15,"m"))/3)))),"") -> 323.5555556 | M14: =IF(K14<>"",IF($AF14="Flat",IF(M$1<'All De-SCope'!$J15,'All De-SCope'!$G15,0),IF(M$1<'All De-SCope'!$I15,'All De-SCope'!$G15,L14*(1-((DATEDIF('All De-SCope'!$I15,M$1,"m"))/3)/((DATEDIF('All De-SCope'!$I15,'All De-SCope'!$J15,"m"))/3)))),"") -> 258.8444444 | N14: =IF(L14<>"",IF($AF14="Flat",IF(N$1<'All De-SCope'!$J15,'All De-SCope'!$G15,0),IF(N$1<'All De-SCope'!$I15,'All De-SCope'!$G15,M14*(1-((DATEDIF('All De-SCope'!$I15,N$1,"m"))/3)/((DATEDIF('All De-SCope'!$I15,'All De-SCope'!$J15,"m"))/3)))),"") -> 189.8192593 | O14: =IF(M14<>"",IF($AF14="Flat",IF(O$1<'All De-SCope'!$J15,'All De-SCope'!$G15,0),IF(O$1<'All De-SCope'!$I15,'All De-SCope'!$G15,N14*(1-((DATEDIF('All De-SCope'!$I15,O$1,"m"))/3)/((DATEDIF('All De-SCope'!$I15,'All De-SCope'!$J15,"m"))/3)))),"") -> 126.5461728 | P14: =IF(N14<>"",IF($AF14="Flat",IF(P$1<'All De-SCope'!$J15,'All De-SCope'!$G15,0),IF(P$1<'All De-SCope'!$I15,'All De-SCope'!$G15,O14*(1-((DATEDIF('All De-SCope'!$I15,P$1,"m"))/3)/((DATEDIF('All De-SCope'!$I15,'All De-SCope'!$J15,"m"))/3)))),"") -> 75.9277037 | Q14: =IF(O14<>"",IF($AF14="Flat",IF(Q$1<'All De-SCope'!$J15,'All De-SCope'!$G15,0),IF(Q$1<'All De-SCope'!$I15,'All De-SCope'!$G15,P14*(1-((DATEDIF('All De-SCope'!$I15,Q$1,"m"))/3)/((DATEDIF('All De-SCope'!$I15,'All De-SCope'!$J15,"m"))/3)))),"") -> 40.49477531 | R14: =IF(P14<>"",IF($AF14="Flat",IF(R$1<'All De-SCope'!$J15,'All De-SCope'!$G15,0),IF(R$1<'All De-SCope'!$I15,'All De-SCope'!$G15,Q14*(1-((DATEDIF('All De-SCope'!$I15,R$1,"m"))/3)/((DATEDIF('All De-SCope'!$I15,'All De-SCope'!$J15,"m"))/3)))),"") -> 18.89756181 | S14: =IF(Q14<>"",IF($AF14="Flat",IF(S$1<'All De-SCope'!$J15,'All De-SCope'!$G15,0),IF(S$1<'All De-SCope'!$I15,'All De-SCope'!$G15,R14*(1-((DATEDIF('All De-SCope'!$I15,S$1,"m"))/3)/((DATEDIF('All De-SCope'!$I15,'All De-SCope'!$J15,"m"))/3)))),"") -> 7.559024724 | T14: =IF(R14<>"",IF($AF14="Flat",IF(T$1<'All De-SCope'!$J15,'All De-SCope'!$G15,0),IF(T$1<'All De-SCope'!$I15,'All De-SCope'!$G15,S14*(1-((DATEDIF('All De-SCope'!$I15,T$1,"m"))/3)/((DATEDIF('All De-SCope'!$I15,'All De-SCope'!$J15,"m"))/3)))),"") -> 2.519674908 | U14: =IF(S14<>"",IF($AF14="Flat",IF(U$1<'All De-SCope'!$J15,'All De-SCope'!$G15,0),IF(U$1<'All De-SCope'!$I15,'All De-SCope'!$G15,T14*(1-((DATEDIF('All De-SCope'!$I15,U$1,"m"))/3)/((DATEDIF('All De-SCope'!$I15,'All De-SCope'!$J15,"m"))/3)))),"") -> 0.6719133088 | V14: =IF(T14<>"",IF($AF14="Flat",IF(V$1<'All De-SCope'!$J15,'All De-SCope'!$G15,0),IF(V$1<'All De-SCope'!$I15,'All De-SCope'!$G15,U14*(1-((DATEDIF('All De-SCope'!$I15,V$1,"m"))/3)/((DATEDIF('All De-SCope'!$I15,'All De-SCope'!$J15,"m"))/3)))),"") -> 0.1343826618 | W14: =IF(U14<>"",IF($AF14="Flat",IF(W$1<'All De-SCope'!$J15,'All De-SCope'!$G15,0),IF(W$1<'All De-SCope'!$I15,'All De-SCope'!$G15,V14*(1-((DATEDIF('All De-SCope'!$I15,W$1,"m"))/3)/((DATEDIF('All De-SCope'!$I15,'All De-SCope'!$J15,"m"))/3)))),"") -> 0.01791768824 | X14: =IF(V14<>"",IF($AF14="Flat",IF(X$1<'All De-SCope'!$J15,'All De-SCope'!$G15,0),IF(X$1<'All De-SCope'!$I15,'All De-SCope'!$G15,W14*(1-((DATEDIF('All De-SCope'!$I15,X$1,"m"))/3)/((DATEDIF('All De-SCope'!$I15,'All De-SCope'!$J15,"m"))/3)))),"") -> 0.001194512549 | Y14: =IF(W14<>"",IF($AF14="Flat",IF(Y$1<'All De-SCope'!$J15,'All De-SCope'!$G15,0),IF(Y$1<'All De-SCope'!$I15,'All De-SCope'!$G15,X14*(1-((DATEDIF('All De-SCope'!$I15,Y$1,"m"))/3)/((DATEDIF('All De-SCope'!$I15,'All De-SCope'!$J15,"m"))/3)))),"") -> 0 | Z14: =IF(X14<>"",IF($AF14="Flat",IF(Z$1<'All De-SCope'!$J15,'All De-SCope'!$G15,0),IF(Z$1<'All De-SCope'!$I15,'All De-SCope'!$G15,Y14*(1-((DATEDIF('All De-SCope'!$I15,Z$1,"m"))/3)/((DATEDIF('All De-SCope'!$I15,'All De-SCope'!$J15,"m"))/3)))),"") -> 0 | AF14: =IF(B14<>"",'All De-SCope'!H15,"") -> Tapered
B15: =IF('All De-SCope'!A16<>"",'All De-SCope'!A16,"") -> DM12 | C15: =IF(B15<>"",IF($AF15="Flat",IF(C$1<'All De-SCope'!$N16,'All De-SCope'!$G16,0),IF(C$1<'All De-SCope'!$N16,'All De-SCope'!$G16,0)),"") -> 400 | D15: =IF(B15<>"",IF($AF15="Flat",IF(D$1<'All De-SCope'!$N16,'All De-SCope'!$G16,0),IF(D$1<'All De-SCope'!$M16,'All De-SCope'!$G16,C15*(1-('All De-SCope'!$M16-D$1)/('All De-SCope'!$M16-'All De-SCope'!$N16)))),"") -> 400 | E15: =IF(C15<>"",IF($AF15="Flat",IF(E$1<'All De-SCope'!$N16,'All De-SCope'!$G16,0),IF(E$1<'All De-SCope'!$M16,'All De-SCope'!$G16,D15*(1-('All De-SCope'!$M16-E$1)/('All De-SCope'!$M16-'All De-SCope'!$N16)))),"") -> 400 | F15: =IF(D15<>"",IF($AF15="Flat",IF(F$1<'All De-SCope'!$J16,'All De-SCope'!$G16,0),IF(F$1<'All De-SCope'!$I16,'All De-SCope'!$G16,E15*(1-((DATEDIF('All De-SCope'!$I16,F$1,"m"))/3)/((DATEDIF('All De-SCope'!$I16,'All De-SCope'!$J16,"m"))/3)))),"") -> 400 | G15: =IF(E15<>"",IF($AF15="Flat",IF(G$1<'All De-SCope'!$J16,'All De-SCope'!$G16,0),IF(G$1<'All De-SCope'!$I16,'All De-SCope'!$G16,F15*(1-((DATEDIF('All De-SCope'!$I16,G$1,"m"))/3)/((DATEDIF('All De-SCope'!$I16,'All De-SCope'!$J16,"m"))/3)))),"") -> 400 | H15: =IF(F15<>"",IF($AF15="Flat",IF(H$1<'All De-SCope'!$J16,'All De-SCope'!$G16,0),IF(H$1<'All De-SCope'!$I16,'All De-SCope'!$G16,G15*(1-((DATEDIF('All De-SCope'!$I16,H$1,"m"))/3)/((DATEDIF('All De-SCope'!$I16,'All De-SCope'!$J16,"m"))/3)))),"") -> 400 | I15: =IF(G15<>"",IF($AF15="Flat",IF(I$1<'All De-SCope'!$J16,'All De-SCope'!$G16,0),IF(I$1<'All De-SCope'!$I16,'All De-SCope'!$G16,H15*(1-((DATEDIF('All De-SCope'!$I16,I$1,"m"))/3)/((DATEDIF('All De-SCope'!$I16,'All De-SCope'!$J16,"m"))/3)))),"") -> 400 | J15: =IF(H15<>"",IF($AF15="Flat",IF(J$1<'All De-SCope'!$J16,'All De-SCope'!$G16,0),IF(J$1<'All De-SCope'!$I16,'All De-SCope'!$G16,I15*(1-((DATEDIF('All De-SCope'!$I16,J$1,"m"))/3)/((DATEDIF('All De-SCope'!$I16,'All De-SCope'!$J16,"m"))/3)))),"") -> 400 | K15: =IF(I15<>"",IF($AF15="Flat",IF(K$1<'All De-SCope'!$J16,'All De-SCope'!$G16,0),IF(K$1<'All De-SCope'!$I16,'All De-SCope'!$G16,J15*(1-((DATEDIF('All De-SCope'!$I16,K$1,"m"))/3)/((DATEDIF('All De-SCope'!$I16,'All De-SCope'!$J16,"m"))/3)))),"") -> 400 | L15: =IF(J15<>"",IF($AF15="Flat",IF(L$1<'All De-SCope'!$J16,'All De-SCope'!$G16,0),IF(L$1<'All De-SCope'!$I16,'All De-SCope'!$G16,K15*(1-((DATEDIF('All De-SCope'!$I16,L$1,"m"))/3)/((DATEDIF('All De-SCope'!$I16,'All De-SCope'!$J16,"m"))/3)))),"") -> 400 | M15: =IF(K15<>"",IF($AF15="Flat",IF(M$1<'All De-SCope'!$J16,'All De-SCope'!$G16,0),IF(M$1<'All De-SCope'!$I16,'All De-SCope'!$G16,L15*(1-((DATEDIF('All De-SCope'!$I16,M$1,"m"))/3)/((DATEDIF('All De-SCope'!$I16,'All De-SCope'!$J16,"m"))/3)))),"") -> 400 | N15: =IF(L15<>"",IF($AF15="Flat",IF(N$1<'All De-SCope'!$J16,'All De-SCope'!$G16,0),IF(N$1<'All De-SCope'!$I16,'All De-SCope'!$G16,M15*(1-((DATEDIF('All De-SCope'!$I16,N$1,"m"))/3)/((DATEDIF('All De-SCope'!$I16,'All De-SCope'!$J16,"m"))/3)))),"") -> 400 | O15: =IF(M15<>"",IF($AF15="Flat",IF(O$1<'All De-SCope'!$J16,'All De-SCope'!$G16,0),IF(O$1<'All De-SCope'!$I16,'All De-SCope'!$G16,N15*(1-((DATEDIF('All De-SCope'!$I16,O$1,"m"))/3)/((DATEDIF('All De-SCope'!$I16,'All De-SCope'!$J16,"m"))/3)))),"") -> 363.6363636 | P15: =IF(N15<>"",IF($AF15="Flat",IF(P$1<'All De-SCope'!$J16,'All De-SCope'!$G16,0),IF(P$1<'All De-SCope'!$I16,'All De-SCope'!$G16,O15*(1-((DATEDIF('All De-SCope'!$I16,P$1,"m"))/3)/((DATEDIF('All De-SCope'!$I16,'All De-SCope'!$J16,"m"))/3)))),"") -> 297.5206612 | Q15: =IF(O15<>"",IF($AF15="Flat",IF(Q$1<'All De-SCope'!$J16,'All De-SCope'!$G16,0),IF(Q$1<'All De-SCope'!$I16,'All De-SCope'!$G16,P15*(1-((DATEDIF('All De-SCope'!$I16,Q$1,"m"))/3)/((DATEDIF('All De-SCope'!$I16,'All De-SCope'!$J16,"m"))/3)))),"") -> 216.3786627 | R15: =IF(P15<>"",IF($AF15="Flat",IF(R$1<'All De-SCope'!$J16,'All De-SCope'!$G16,0),IF(R$1<'All De-SCope'!$I16,'All De-SCope'!$G16,Q15*(1-((DATEDIF('All De-SCope'!$I16,R$1,"m"))/3)/((DATEDIF('All De-SCope'!$I16,'All De-SCope'!$J16,"m"))/3)))),"") -> 137.6955126 | S15: =IF(Q15<>"",IF($AF15="Flat",IF(S$1<'All De-SCope'!$J16,'All De-SCope'!$G16,0),IF(S$1<'All De-SCope'!$I16,'All De-SCope'!$G16,R15*(1-((DATEDIF('All De-SCope'!$I16,S$1,"m"))/3)/((DATEDIF('All De-SCope'!$I16,'All De-SCope'!$J16,"m"))/3)))),"") -> 75.10664324 | T15: =IF(R15<>"",IF($AF15="Flat",IF(T$1<'All De-SCope'!$J16,'All De-SCope'!$G16,0),IF(T$1<'All De-SCope'!$I16,'All De-SCope'!$G16,S15*(1-((DATEDIF('All De-SCope'!$I16,T$1,"m"))/3)/((DATEDIF('All De-SCope'!$I16,'All De-SCope'!$J16,"m"))/3)))),"") -> 34.13938329 | U15: =IF(S15<>"",IF($AF15="Flat",IF(U$1<'All De-SCope'!$J16,'All De-SCope'!$G16,0),IF(U$1<'All De-SCope'!$I16,'All De-SCope'!$G16,T15*(1-((DATEDIF('All De-SCope'!$I16,U$1,"m"))/3)/((DATEDIF('All De-SCope'!$I16,'All De-SCope'!$J16,"m"))/3)))),"") -> 12.4143212 | V15: =IF(T15<>"",IF($AF15="Flat",IF(V$1<'All De-SCope'!$J16,'All De-SCope'!$G16,0),IF(V$1<'All De-SCope'!$I16,'All De-SCope'!$G16,U15*(1-((DATEDIF('All De-SCope'!$I16,V$1,"m"))/3)/((DATEDIF('All De-SCope'!$I16,'All De-SCope'!$J16,"m"))/3)))),"") -> 3.385723963 | W15: =IF(U15<>"",IF($AF15="Flat",IF(W$1<'All De-SCope'!$J16,'All De-SCope'!$G16,0),IF(W$1<'All De-SCope'!$I16,'All De-SCope'!$G16,V15*(1-((DATEDIF('All De-SCope'!$I16,W$1,"m"))/3)/((DATEDIF('All De-SCope'!$I16,'All De-SCope'!$J16,"m"))/3)))),"") -> 0.615586175 | X15: =IF(V15<>"",IF($AF15="Flat",IF(X$1<'All De-SCope'!$J16,'All De-SCope'!$G16,0),IF(X$1<'All De-SCope'!$I16,'All De-SCope'!$G16,W15*(1-((DATEDIF('All De-SCope'!$I16,X$1,"m"))/3)/((DATEDIF('All De-SCope'!$I16,'All De-SCope'!$J16,"m"))/3)))),"") -> 0.05596237955 | Y15: =IF(W15<>"",IF($AF15="Flat",IF(Y$1<'All De-SCope'!$J16,'All De-SCope'!$G16,0),IF(Y$1<'All De-SCope'!$I16,'All De-SCope'!$G16,X15*(1-((DATEDIF('All De-SCope'!$I16,Y$1,"m"))/3)/((DATEDIF('All De-SCope'!$I16,'All De-SCope'!$J16,"m"))/3)))),"") -> 0 | Z15: =IF(X15<>"",IF($AF15="Flat",IF(Z$1<'All De-SCope'!$J16,'All De-SCope'!$G16,0),IF(Z$1<'All De-SCope'!$I16,'All De-SCope'!$G16,Y15*(1-((DATEDIF('All De-SCope'!$I16,Z$1,"m"))/3)/((DATEDIF('All De-SCope'!$I16,'All De-SCope'!$J16,"m"))/3)))),"") -> 0 | AF15: =IF(B15<>"",'All De-SCope'!H16,"") -> Tapered
B16: =IF('All De-SCope'!A17<>"",'All De-SCope'!A17,"") -> DM13 | C16: =IF(B16<>"",IF($AF16="Flat",IF(C$1<'All De-SCope'!$N17,'All De-SCope'!$G17,0),IF(C$1<'All De-SCope'!$N17,'All De-SCope'!$G17,0)),"") -> 500 | D16: =IF(B16<>"",IF($AF16="Flat",IF(D$1<'All De-SCope'!$N17,'All De-SCope'!$G17,0),IF(D$1<'All De-SCope'!$M17,'All De-SCope'!$G17,C16*(1-('All De-SCope'!$M17-D$1)/('All De-SCope'!$M17-'All De-SCope'!$N17)))),"") -> 500 | E16: =IF(C16<>"",IF($AF16="Flat",IF(E$1<'All De-SCope'!$N17,'All De-SCope'!$G17,0),IF(E$1<'All De-SCope'!$M17,'All De-SCope'!$G17,D16*(1-('All De-SCope'!$M17-E$1)/('All De-SCope'!$M17-'All De-SCope'!$N17)))),"") -> 500 | F16: =IF(D16<>"",IF($AF16="Flat",IF(F$1<'All De-SCope'!$J17,'All De-SCope'!$G17,0),IF(F$1<'All De-SCope'!$I17,'All De-SCope'!$G17,E16*(1-((DATEDIF('All De-SCope'!$I17,F$1,"m"))/3)/((DATEDIF('All De-SCope'!$I17,'All De-SCope'!$J17,"m"))/3)))),"") -> 500 | G16: =IF(E16<>"",IF($AF16="Flat",IF(G$1<'All De-SCope'!$J17,'All De-SCope'!$G17,0),IF(G$1<'All De-SCope'!$I17,'All De-SCope'!$G17,F16*(1-((DATEDIF('All De-SCope'!$I17,G$1,"m"))/3)/((DATEDIF('All De-SCope'!$I17,'All De-SCope'!$J17,"m"))/3)))),"") -> 500 | H16: =IF(F16<>"",IF($AF16="Flat",IF(H$1<'All De-SCope'!$J17,'All De-SCope'!$G17,0),IF(H$1<'All De-SCope'!$I17,'All De-SCope'!$G17,G16*(1-((DATEDIF('All De-SCope'!$I17,H$1,"m"))/3)/((DATEDIF('All De-SCope'!$I17,'All De-SCope'!$J17,"m"))/3)))),"") -> 500 | I16: =IF(G16<>"",IF($AF16="Flat",IF(I$1<'All De-SCope'!$J17,'All De-SCope'!$G17,0),IF(I$1<'All De-SCope'!$I17,'All De-SCope'!$G17,H16*(1-((DATEDIF('All De-SCope'!$I17,I$1,"m"))/3)/((DATEDIF('All De-SCope'!$I17,'All De-SCope'!$J17,"m"))/3)))),"") -> 500 | J16: =IF(H16<>"",IF($AF16="Flat",IF(J$1<'All De-SCope'!$J17,'All De-SCope'!$G17,0),IF(J$1<'All De-SCope'!$I17,'All De-SCope'!$G17,I16*(1-((DATEDIF('All De-SCope'!$I17,J$1,"m"))/3)/((DATEDIF('All De-SCope'!$I17,'All De-SCope'!$J17,"m"))/3)))),"") -> 500 | K16: =IF(I16<>"",IF($AF16="Flat",IF(K$1<'All De-SCope'!$J17,'All De-SCope'!$G17,0),IF(K$1<'All De-SCope'!$I17,'All De-SCope'!$G17,J16*(1-((DATEDIF('All De-SCope'!$I17,K$1,"m"))/3)/((DATEDIF('All De-SCope'!$I17,'All De-SCope'!$J17,"m"))/3)))),"") -> 500 | L16: =IF(J16<>"",IF($AF16="Flat",IF(L$1<'All De-SCope'!$J17,'All De-SCope'!$G17,0),IF(L$1<'All De-SCope'!$I17,'All De-SCope'!$G17,K16*(1-((DATEDIF('All De-SCope'!$I17,L$1,"m"))/3)/((DATEDIF('All De-SCope'!$I17,'All De-SCope'!$J17,"m"))/3)))),"") -> 500 | M16: =IF(K16<>"",IF($AF16="Flat",IF(M$1<'All De-SCope'!$J17,'All De-SCope'!$G17,0),IF(M$1<'All De-SCope'!$I17,'All De-SCope'!$G17,L16*(1-((DATEDIF('All De-SCope'!$I17,M$1,"m"))/3)/((DATEDIF('All De-SCope'!$I17,'All De-SCope'!$J17,"m"))/3)))),"") -> 500 | N16: =IF(L16<>"",IF($AF16="Flat",IF(N$1<'All De-SCope'!$J17,'All De-SCope'!$G17,0),IF(N$1<'All De-SCope'!$I17,'All De-SCope'!$G17,M16*(1-((DATEDIF('All De-SCope'!$I17,N$1,"m"))/3)/((DATEDIF('All De-SCope'!$I17,'All De-SCope'!$J17,"m"))/3)))),"") -> 500 | O16: =IF(M16<>"",IF($AF16="Flat",IF(O$1<'All De-SCope'!$J17,'All De-SCope'!$G17,0),IF(O$1<'All De-SCope'!$I17,'All De-SCope'!$G17,N16*(1-((DATEDIF('All De-SCope'!$I17,O$1,"m"))/3)/((DATEDIF('All De-SCope'!$I17,'All De-SCope'!$J17,"m"))/3)))),"") -> 450 | P16: =IF(N16<>"",IF($AF16="Flat",IF(P$1<'All De-SCope'!$J17,'All De-SCope'!$G17,0),IF(P$1<'All De-SCope'!$I17,'All De-SCope'!$G17,O16*(1-((DATEDIF('All De-SCope'!$I17,P$1,"m"))/3)/((DATEDIF('All De-SCope'!$I17,'All De-SCope'!$J17,"m"))/3)))),"") -> 360 | Q16: =IF(O16<>"",IF($AF16="Flat",IF(Q$1<'All De-SCope'!$J17,'All De-SCope'!$G17,0),IF(Q$1<'All De-SCope'!$I17,'All De-SCope'!$G17,P16*(1-((DATEDIF('All De-SCope'!$I17,Q$1,"m"))/3)/((DATEDIF('All De-SCope'!$I17,'All De-SCope'!$J17,"m"))/3)))),"") -> 252 | R16: =IF(P16<>"",IF($AF16="Flat",IF(R$1<'All De-SCope'!$J17,'All De-SCope'!$G17,0),IF(R$1<'All De-SCope'!$I17,'All De-SCope'!$G17,Q16*(1-((DATEDIF('All De-SCope'!$I17,R$1,"m"))/3)/((DATEDIF('All De-SCope'!$I17,'All De-SCope'!$J17,"m"))/3)))),"") -> 151.2 | S16: =IF(Q16<>"",IF($AF16="Flat",IF(S$1<'All De-SCope'!$J17,'All De-SCope'!$G17,0),IF(S$1<'All De-SCope'!$I17,'All De-SCope'!$G17,R16*(1-((DATEDIF('All De-SCope'!$I17,S$1,"m"))/3)/((DATEDIF('All De-SCope'!$I17,'All De-SCope'!$J17,"m"))/3)))),"") -> 75.6 | T16: =IF(R16<>"",IF($AF16="Flat",IF(T$1<'All De-SCope'!$J17,'All De-SCope'!$G17,0),IF(T$1<'All De-SCope'!$I17,'All De-SCope'!$G17,S16*(1-((DATEDIF('All De-SCope'!$I17,T$1,"m"))/3)/((DATEDIF('All De-SCope'!$I17,'All De-SCope'!$J17,"m"))/3)))),"") -> 30.24 | U16: =IF(S16<>"",IF($AF16="Flat",IF(U$1<'All De-SCope'!$J17,'All De-SCope'!$G17,0),IF(U$1<'All De-SCope'!$I17,'All De-SCope'!$G17,T16*(1-((DATEDIF('All De-SCope'!$I17,U$1,"m"))/3)/((DATEDIF('All De-SCope'!$I17,'All De-SCope'!$J17,"m"))/3)))),"") -> 9.072 | V16: =IF(T16<>"",IF($AF16="Flat",IF(V$1<'All De-SCope'!$J17,'All De-SCope'!$G17,0),IF(V$1<'All De-SCope'!$I17,'All De-SCope'!$G17,U16*(1-((DATEDIF('All De-SCope'!$I17,V$1,"m"))/3)/((DATEDIF('All De-SCope'!$I17,'All De-SCope'!$J17,"m"))/3)))),"") -> 1.8144 | W16: =IF(U16<>"",IF($AF16="Flat",IF(W$1<'All De-SCope'!$J17,'All De-SCope'!$G17,0),IF(W$1<'All De-SCope'!$I17,'All De-SCope'!$G17,V16*(1-((DATEDIF('All De-SCope'!$I17,W$1,"m"))/3)/((DATEDIF('All De-SCope'!$I17,'All De-SCope'!$J17,"m"))/3)))),"") -> 0.18144 | X16: =IF(V16<>"",IF($AF16="Flat",IF(X$1<'All De-SCope'!$J17,'All De-SCope'!$G17,0),IF(X$1<'All De-SCope'!$I17,'All De-SCope'!$G17,W16*(1-((DATEDIF('All De-SCope'!$I17,X$1,"m"))/3)/((DATEDIF('All De-SCope'!$I17,'All De-SCope'!$J17,"m"))/3)))),"") -> 0 | Y16: =IF(W16<>"",IF($AF16="Flat",IF(Y$1<'All De-SCope'!$J17,'All De-SCope'!$G17,0),IF(Y$1<'All De-SCope'!$I17,'All De-SCope'!$G17,X16*(1-((DATEDIF('All De-SCope'!$I17,Y$1,"m"))/3)/((DATEDIF('All De-SCope'!$I17,'All De-SCope'!$J17,"m"))/3)))),"") -> 0 | Z16: =IF(X16<>"",IF($AF16="Flat",IF(Z$1<'All De-SCope'!$J17,'All De-SCope'!$G17,0),IF(Z$1<'All De-SCope'!$I17,'All De-SCope'!$G17,Y16*(1-((DATEDIF('All De-SCope'!$I17,Z$1,"m"))/3)/((DATEDIF('All De-SCope'!$I17,'All De-SCope'!$J17,"m"))/3)))),"") -> 0 | AF16: =IF(B16<>"",'All De-SCope'!H17,"") -> Tapered
B17: =IF('All De-SCope'!A18<>"",'All De-SCope'!A18,"") -> DM14 | C17: =IF(B17<>"",IF($AF17="Flat",IF(C$1<'All De-SCope'!$N18,'All De-SCope'!$G18,0),IF(C$1<'All De-SCope'!$N18,'All De-SCope'!$G18,0)),"") -> 360 | D17: =IF(B17<>"",IF($AF17="Flat",IF(D$1<'All De-SCope'!$N18,'All De-SCope'!$G18,0),IF(D$1<'All De-SCope'!$M18,'All De-SCope'!$G18,C17*(1-('All De-SCope'!$M18-D$1)/('All De-SCope'!$M18-'All De-SCope'!$N18)))),"") -> 360 | E17: =IF(C17<>"",IF($AF17="Flat",IF(E$1<'All De-SCope'!$N18,'All De-SCope'!$G18,0),IF(E$1<'All De-SCope'!$M18,'All De-SCope'!$G18,D17*(1-('All De-SCope'!$M18-E$1)/('All De-SCope'!$M18-'All De-SCope'!$N18)))),"") -> 360 | F17: =IF(D17<>"",IF($AF17="Flat",IF(F$1<'All De-SCope'!$J18,'All De-SCope'!$G18,0),IF(F$1<'All De-SCope'!$I18,'All De-SCope'!$G18,E17*(1-((DATEDIF('All De-SCope'!$I18,F$1,"m"))/3)/((DATEDIF('All De-SCope'!$I18,'All De-SCope'!$J18,"m"))/3)))),"") -> 360 | G17: =IF(E17<>"",IF($AF17="Flat",IF(G$1<'All De-SCope'!$J18,'All De-SCope'!$G18,0),IF(G$1<'All De-SCope'!$I18,'All De-SCope'!$G18,F17*(1-((DATEDIF('All De-SCope'!$I18,G$1,"m"))/3)/((DATEDIF('All De-SCope'!$I18,'All De-SCope'!$J18,"m"))/3)))),"") -> 360 | H17: =IF(F17<>"",IF($AF17="Flat",IF(H$1<'All De-SCope'!$J18,'All De-SCope'!$G18,0),IF(H$1<'All De-SCope'!$I18,'All De-SCope'!$G18,G17*(1-((DATEDIF('All De-SCope'!$I18,H$1,"m"))/3)/((DATEDIF('All De-SCope'!$I18,'All De-SCope'!$J18,"m"))/3)))),"") -> 360 | I17: =IF(G17<>"",IF($AF17="Flat",IF(I$1<'All De-SCope'!$J18,'All De-SCope'!$G18,0),IF(I$1<'All De-SCope'!$I18,'All De-SCope'!$G18,H17*(1-((DATEDIF('All De-SCope'!$I18,I$1,"m"))/3)/((DATEDIF('All De-SCope'!$I18,'All De-SCope'!$J18,"m"))/3)))),"") -> 360 | J17: =IF(H17<>"",IF($AF17="Flat",IF(J$1<'All De-SCope'!$J18,'All De-SCope'!$G18,0),IF(J$1<'All De-SCope'!$I18,'All De-SCope'!$G18,I17*(1-((DATEDIF('All De-SCope'!$I18,J$1,"m"))/3)/((DATEDIF('All De-SCope'!$I18,'All De-SCope'!$J18,"m"))/3)))),"") -> 360 | K17: =IF(I17<>"",IF($AF17="Flat",IF(K$1<'All De-SCope'!$J18,'All De-SCope'!$G18,0),IF(K$1<'All De-SCope'!$I18,'All De-SCope'!$G18,J17*(1-((DATEDIF('All De-SCope'!$I18,K$1,"m"))/3)/((DATEDIF('All De-SCope'!$I18,'All De-SCope'!$J18,"m"))/3)))),"") -> 360 | L17: =IF(J17<>"",IF($AF17="Flat",IF(L$1<'All De-SCope'!$J18,'All De-SCope'!$G18,0),IF(L$1<'All De-SCope'!$I18,'All De-SCope'!$G18,K17*(1-((DATEDIF('All De-SCope'!$I18,L$1,"m"))/3)/((DATEDIF('All De-SCope'!$I18,'All De-SCope'!$J18,"m"))/3)))),"") -> 360 | M17: =IF(K17<>"",IF($AF17="Flat",IF(M$1<'All De-SCope'!$J18,'All De-SCope'!$G18,0),IF(M$1<'All De-SCope'!$I18,'All De-SCope'!$G18,L17*(1-((DATEDIF('All De-SCope'!$I18,M$1,"m"))/3)/((DATEDIF('All De-SCope'!$I18,'All De-SCope'!$J18,"m"))/3)))),"") -> 360 | N17: =IF(L17<>"",IF($AF17="Flat",IF(N$1<'All De-SCope'!$J18,'All De-SCope'!$G18,0),IF(N$1<'All De-SCope'!$I18,'All De-SCope'!$G18,M17*(1-((DATEDIF('All De-SCope'!$I18,N$1,"m"))/3)/((DATEDIF('All De-SCope'!$I18,'All De-SCope'!$J18,"m"))/3)))),"") -> 360 | O17: =IF(M17<>"",IF($AF17="Flat",IF(O$1<'All De-SCope'!$J18,'All De-SCope'!$G18,0),IF(O$1<'All De-SCope'!$I18,'All De-SCope'!$G18,N17*(1-((DATEDIF('All De-SCope'!$I18,O$1,"m"))/3)/((DATEDIF('All De-SCope'!$I18,'All De-SCope'!$J18,"m"))/3)))),"") -> 360 | P17: =IF(N17<>"",IF($AF17="Flat",IF(P$1<'All De-SCope'!$J18,'All De-SCope'!$G18,0),IF(P$1<'All De-SCope'!$I18,'All De-SCope'!$G18,O17*(1-((DATEDIF('All De-SCope'!$I18,P$1,"m"))/3)/((DATEDIF('All De-SCope'!$I18,'All De-SCope'!$J18,"m"))/3)))),"") -> 360 | Q17: =IF(O17<>"",IF($AF17="Flat",IF(Q$1<'All De-SCope'!$J18,'All De-SCope'!$G18,0),IF(Q$1<'All De-SCope'!$I18,'All De-SCope'!$G18,P17*(1-((DATEDIF('All De-SCope'!$I18,Q$1,"m"))/3)/((DATEDIF('All De-SCope'!$I18,'All De-SCope'!$J18,"m"))/3)))),"") -> 360 | R17: =IF(P17<>"",IF($AF17="Flat",IF(R$1<'All De-SCope'!$J18,'All De-SCope'!$G18,0),IF(R$1<'All De-SCope'!$I18,'All De-SCope'!$G18,Q17*(1-((DATEDIF('All De-SCope'!$I18,R$1,"m"))/3)/((DATEDIF('All De-SCope'!$I18,'All De-SCope'!$J18,"m"))/3)))),"") -> 360 | S17: =IF(Q17<>"",IF($AF17="Flat",IF(S$1<'All De-SCope'!$J18,'All De-SCope'!$G18,0),IF(S$1<'All De-SCope'!$I18,'All De-SCope'!$G18,R17*(1-((DATEDIF('All De-SCope'!$I18,S$1,"m"))/3)/((DATEDIF('All De-SCope'!$I18,'All De-SCope'!$J18,"m"))/3)))),"") -> 308.5714286 | T17: =IF(R17<>"",IF($AF17="Flat",IF(T$1<'All De-SCope'!$J18,'All De-SCope'!$G18,0),IF(T$1<'All De-SCope'!$I18,'All De-SCope'!$G18,S17*(1-((DATEDIF('All De-SCope'!$I18,T$1,"m"))/3)/((DATEDIF('All De-SCope'!$I18,'All De-SCope'!$J18,"m"))/3)))),"") -> 220.4081633 | U17: =IF(S17<>"",IF($AF17="Flat",IF(U$1<'All De-SCope'!$J18,'All De-SCope'!$G18,0),IF(U$1<'All De-SCope'!$I18,'All De-SCope'!$G18,T17*(1-((DATEDIF('All De-SCope'!$I18,U$1,"m"))/3)/((DATEDIF('All De-SCope'!$I18,'All De-SCope'!$J18,"m"))/3)))),"") -> 125.9475219 | V17: =IF(T17<>"",IF($AF17="Flat",IF(V$1<'All De-SCope'!$J18,'All De-SCope'!$G18,0),IF(V$1<'All De-SCope'!$I18,'All De-SCope'!$G18,U17*(1-((DATEDIF('All De-SCope'!$I18,V$1,"m"))/3)/((DATEDIF('All De-SCope'!$I18,'All De-SCope'!$J18,"m"))/3)))),"") -> 53.97750937 | W17: =IF(U17<>"",IF($AF17="Flat",IF(W$1<'All De-SCope'!$J18,'All De-SCope'!$G18,0),IF(W$1<'All De-SCope'!$I18,'All De-SCope'!$G18,V17*(1-((DATEDIF('All De-SCope'!$I18,W$1,"m"))/3)/((DATEDIF('All De-SCope'!$I18,'All De-SCope'!$J18,"m"))/3)))),"") -> 15.42214553 | X17: =IF(V17<>"",IF($AF17="Flat",IF(X$1<'All De-SCope'!$J18,'All De-SCope'!$G18,0),IF(X$1<'All De-SCope'!$I18,'All De-SCope'!$G18,W17*(1-((DATEDIF('All De-SCope'!$I18,X$1,"m"))/3)/((DATEDIF('All De-SCope'!$I18,'All De-SCope'!$J18,"m"))/3)))),"") -> 2.203163648 | Y17: =IF(W17<>"",IF($AF17="Flat",IF(Y$1<'All De-SCope'!$J18,'All De-SCope'!$G18,0),IF(Y$1<'All De-SCope'!$I18,'All De-SCope'!$G18,X17*(1-((DATEDIF('All De-SCope'!$I18,Y$1,"m"))/3)/((DATEDIF('All De-SCope'!$I18,'All De-SCope'!$J18,"m"))/3)))),"") -> 0 | Z17: =IF(X17<>"",IF($AF17="Flat",IF(Z$1<'All De-SCope'!$J18,'All De-SCope'!$G18,0),IF(Z$1<'All De-SCope'!$I18,'All De-SCope'!$G18,Y17*(1-((DATEDIF('All De-SCope'!$I18,Z$1,"m"))/3)/((DATEDIF('All De-SCope'!$I18,'All De-SCope'!$J18,"m"))/3)))),"") -> 0 | AF17: =IF(B17<>"",'All De-SCope'!H18,"") -> Tapered
B18: =IF('All De-SCope'!A19<>"",'All De-SCope'!A19,"") -> DM15 | C18: =IF(B18<>"",IF($AF18="Flat",IF(C$1<'All De-SCope'!$N19,'All De-SCope'!$G19,0),IF(C$1<'All De-SCope'!$N19,'All De-SCope'!$G19,0)),"") -> 500 | D18: =IF(B18<>"",IF($AF18="Flat",IF(D$1<'All De-SCope'!$N19,'All De-SCope'!$G19,0),IF(D$1<'All De-SCope'!$M19,'All De-SCope'!$G19,C18*(1-('All De-SCope'!$M19-D$1)/('All De-SCope'!$M19-'All De-SCope'!$N19)))),"") -> 500 | E18: =IF(C18<>"",IF($AF18="Flat",IF(E$1<'All De-SCope'!$N19,'All De-SCope'!$G19,0),IF(E$1<'All De-SCope'!$M19,'All De-SCope'!$G19,D18*(1-('All De-SCope'!$M19-E$1)/('All De-SCope'!$M19-'All De-SCope'!$N19)))),"") -> 500 | F18: =IF(D18<>"",IF($AF18="Flat",IF(F$1<'All De-SCope'!$J19,'All De-SCope'!$G19,0),IF(F$1<'All De-SCope'!$I19,'All De-SCope'!$G19,E18*(1-((DATEDIF('All De-SCope'!$I19,F$1,"m"))/3)/((DATEDIF('All De-SCope'!$I19,'All De-SCope'!$J19,"m"))/3)))),"") -> 500 | G18: =IF(E18<>"",IF($AF18="Flat",IF(G$1<'All De-SCope'!$J19,'All De-SCope'!$G19,0),IF(G$1<'All De-SCope'!$I19,'All De-SCope'!$G19,F18*(1-((DATEDIF('All De-SCope'!$I19,G$1,"m"))/3)/((DATEDIF('All De-SCope'!$I19,'All De-SCope'!$J19,"m"))/3)))),"") -> 500 | H18: =IF(F18<>"",IF($AF18="Flat",IF(H$1<'All De-SCope'!$J19,'All De-SCope'!$G19,0),IF(H$1<'All De-SCope'!$I19,'All De-SCope'!$G19,G18*(1-((DATEDIF('All De-SCope'!$I19,H$1,"m"))/3)/((DATEDIF('All De-SCope'!$I19,'All De-SCope'!$J19,"m"))/3)))),"") -> 500 | I18: =IF(G18<>"",IF($AF18="Flat",IF(I$1<'All De-SCope'!$J19,'All De-SCope'!$G19,0),IF(I$1<'All De-SCope'!$I19,'All De-SCope'!$G19,H18*(1-((DATEDIF('All De-SCope'!$I19,I$1,"m"))/3)/((DATEDIF('All De-SCope'!$I19,'All De-SCope'!$J19,"m"))/3)))),"") -> 500 | J18: =IF(H18<>"",IF($AF18="Flat",IF(J$1<'All De-SCope'!$J19,'All De-SCope'!$G19,0),IF(J$1<'All De-SCope'!$I19,'All De-SCope'!$G19,I18*(1-((DATEDIF('All De-SCope'!$I19,J$1,"m"))/3)/((DATEDIF('All De-SCope'!$I19,'All De-SCope'!$J19,"m"))/3)))),"") -> 500 | K18: =IF(I18<>"",IF($AF18="Flat",IF(K$1<'All De-SCope'!$J19,'All De-SCope'!$G19,0),IF(K$1<'All De-SCope'!$I19,'All De-SCope'!$G19,J18*(1-((DATEDIF('All De-SCope'!$I19,K$1,"m"))/3)/((DATEDIF('All De-SCope'!$I19,'All De-SCope'!$J19,"m"))/3)))),"") -> 500 | L18: =IF(J18<>"",IF($AF18="Flat",IF(L$1<'All De-SCope'!$J19,'All De-SCope'!$G19,0),IF(L$1<'All De-SCope'!$I19,'All De-SCope'!$G19,K18*(1-((DATEDIF('All De-SCope'!$I19,L$1,"m"))/3)/((DATEDIF('All De-SCope'!$I19,'All De-SCope'!$J19,"m"))/3)))),"") -> 500 | M18: =IF(K18<>"",IF($AF18="Flat",IF(M$1<'All De-SCope'!$J19,'All De-SCope'!$G19,0),IF(M$1<'All De-SCope'!$I19,'All De-SCope'!$G19,L18*(1-((DATEDIF('All De-SCope'!$I19,M$1,"m"))/3)/((DATEDIF('All De-SCope'!$I19,'All De-SCope'!$J19,"m"))/3)))),"") -> 500 | N18: =IF(L18<>"",IF($AF18="Flat",IF(N$1<'All De-SCope'!$J19,'All De-SCope'!$G19,0),IF(N$1<'All De-SCope'!$I19,'All De-SCope'!$G19,M18*(1-((DATEDIF('All De-SCope'!$I19,N$1,"m"))/3)/((DATEDIF('All De-SCope'!$I19,'All De-SCope'!$J19,"m"))/3)))),"") -> 500 | O18: =IF(M18<>"",IF($AF18="Flat",IF(O$1<'All De-SCope'!$J19,'All De-SCope'!$G19,0),IF(O$1<'All De-SCope'!$I19,'All De-SCope'!$G19,N18*(1-((DATEDIF('All De-SCope'!$I19,O$1,"m"))/3)/((DATEDIF('All De-SCope'!$I19,'All De-SCope'!$J19,"m"))/3)))),"") -> 500 | P18: =IF(N18<>"",IF($AF18="Flat",IF(P$1<'All De-SCope'!$J19,'All De-SCope'!$G19,0),IF(P$1<'All De-SCope'!$I19,'All De-SCope'!$G19,O18*(1-((DATEDIF('All De-SCope'!$I19,P$1,"m"))/3)/((DATEDIF('All De-SCope'!$I19,'All De-SCope'!$J19,"m"))/3)))),"") -> 500 | Q18: =IF(O18<>"",IF($AF18="Flat",IF(Q$1<'All De-SCope'!$J19,'All De-SCope'!$G19,0),IF(Q$1<'All De-SCope'!$I19,'All De-SCope'!$G19,P18*(1-((DATEDIF('All De-SCope'!$I19,Q$1,"m"))/3)/((DATEDIF('All De-SCope'!$I19,'All De-SCope'!$J19,"m"))/3)))),"") -> 500 | R18: =IF(P18<>"",IF($AF18="Flat",IF(R$1<'All De-SCope'!$J19,'All De-SCope'!$G19,0),IF(R$1<'All De-SCope'!$I19,'All De-SCope'!$G19,Q18*(1-((DATEDIF('All De-SCope'!$I19,R$1,"m"))/3)/((DATEDIF('All De-SCope'!$I19,'All De-SCope'!$J19,"m"))/3)))),"") -> 500 | S18: =IF(Q18<>"",IF($AF18="Flat",IF(S$1<'All De-SCope'!$J19,'All De-SCope'!$G19,0),IF(S$1<'All De-SCope'!$I19,'All De-SCope'!$G19,R18*(1-((DATEDIF('All De-SCope'!$I19,S$1,"m"))/3)/((DATEDIF('All De-SCope'!$I19,'All De-SCope'!$J19,"m"))/3)))),"") -> 500 | T18: =IF(R18<>"",IF($AF18="Flat",IF(T$1<'All De-SCope'!$J19,'All De-SCope'!$G19,0),IF(T$1<'All De-SCope'!$I19,'All De-SCope'!$G19,S18*(1-((DATEDIF('All De-SCope'!$I19,T$1,"m"))/3)/((DATEDIF('All De-SCope'!$I19,'All De-SCope'!$J19,"m"))/3)))),"") -> 500 | U18: =IF(S18<>"",IF($AF18="Flat",IF(U$1<'All De-SCope'!$J19,'All De-SCope'!$G19,0),IF(U$1<'All De-SCope'!$I19,'All De-SCope'!$G19,T18*(1-((DATEDIF('All De-SCope'!$I19,U$1,"m"))/3)/((DATEDIF('All De-SCope'!$I19,'All De-SCope'!$J19,"m"))/3)))),"") -> 500 | V18: =IF(T18<>"",IF($AF18="Flat",IF(V$1<'All De-SCope'!$J19,'All De-SCope'!$G19,0),IF(V$1<'All De-SCope'!$I19,'All De-SCope'!$G19,U18*(1-((DATEDIF('All De-SCope'!$I19,V$1,"m"))/3)/((DATEDIF('All De-SCope'!$I19,'All De-SCope'!$J19,"m"))/3)))),"") -> 500 | W18: =IF(U18<>"",IF($AF18="Flat",IF(W$1<'All De-SCope'!$J19,'All De-SCope'!$G19,0),IF(W$1<'All De-SCope'!$I19,'All De-SCope'!$G19,V18*(1-((DATEDIF('All De-SCope'!$I19,W$1,"m"))/3)/((DATEDIF('All De-SCope'!$I19,'All De-SCope'!$J19,"m"))/3)))),"") -> 500 | X18: =IF(V18<>"",IF($AF18="Flat",IF(X$1<'All De-SCope'!$J19,'All De-SCope'!$G19,0),IF(X$1<'All De-SCope'!$I19,'All De-SCope'!$G19,W18*(1-((DATEDIF('All De-SCope'!$I19,X$1,"m"))/3)/((DATEDIF('All De-SCope'!$I19,'All De-SCope'!$J19,"m"))/3)))),"") -> 500 | Y18: =IF(W18<>"",IF($AF18="Flat",IF(Y$1<'All De-SCope'!$J19,'All De-SCope'!$G19,0),IF(Y$1<'All De-SCope'!$I19,'All De-SCope'!$G19,X18*(1-((DATEDIF('All De-SCope'!$I19,Y$1,"m"))/3)/((DATEDIF('All De-SCope'!$I19,'All De-SCope'!$J19,"m"))/3)))),"") -> 0 | Z18: =IF(X18<>"",IF($AF18="Flat",IF(Z$1<'All De-SCope'!$J19,'All De-SCope'!$G19,0),IF(Z$1<'All De-SCope'!$I19,'All De-SCope'!$G19,Y18*(1-((DATEDIF('All De-SCope'!$I19,Z$1,"m"))/3)/((DATEDIF('All De-SCope'!$I19,'All De-SCope'!$J19,"m"))/3)))),"") -> 0 | AF18: =IF(B18<>"",'All De-SCope'!H19,"") -> Flat
B19: =IF('All De-SCope'!A20<>"",'All De-SCope'!A20,"") -> DM16 | C19: =IF(B19<>"",IF($AF19="Flat",IF(C$1<'All De-SCope'!$N20,'All De-SCope'!$G20,0),IF(C$1<'All De-SCope'!$N20,'All De-SCope'!$G20,0)),"") -> 1000 | D19: =IF(B19<>"",IF($AF19="Flat",IF(D$1<'All De-SCope'!$N20,'All De-SCope'!$G20,0),IF(D$1<'All De-SCope'!$M20,'All De-SCope'!$G20,C19*(1-('All De-SCope'!$M20-D$1)/('All De-SCope'!$M20-'All De-SCope'!$N20)))),"") -> 1000 | E19: =IF(C19<>"",IF($AF19="Flat",IF(E$1<'All De-SCope'!$N20,'All De-SCope'!$G20,0),IF(E$1<'All De-SCope'!$M20,'All De-SCope'!$G20,D19*(1-('All De-SCope'!$M20-E$1)/('All De-SCope'!$M20-'All De-SCope'!$N20)))),"") -> 1000 | F19: =IF(D19<>"",IF($AF19="Flat",IF(F$1<'All De-SCope'!$J20,'All De-SCope'!$G20,0),IF(F$1<'All De-SCope'!$I20,'All De-SCope'!$G20,E19*(1-((DATEDIF('All De-SCope'!$I20,F$1,"m"))/3)/((DATEDIF('All De-SCope'!$I20,'All De-SCope'!$J20,"m"))/3)))),"") -> 1000 | G19: =IF(E19<>"",IF($AF19="Flat",IF(G$1<'All De-SCope'!$J20,'All De-SCope'!$G20,0),IF(G$1<'All De-SCope'!$I20,'All De-SCope'!$G20,F19*(1-((DATEDIF('All De-SCope'!$I20,G$1,"m"))/3)/((DATEDIF('All De-SCope'!$I20,'All De-SCope'!$J20,"m"))/3)))),"") -> 1000 | H19: =IF(F19<>"",IF($AF19="Flat",IF(H$1<'All De-SCope'!$J20,'All De-SCope'!$G20,0),IF(H$1<'All De-SCope'!$I20,'All De-SCope'!$G20,G19*(1-((DATEDIF('All De-SCope'!$I20,H$1,"m"))/3)/((DATEDIF('All De-SCope'!$I20,'All De-SCope'!$J20,"m"))/3)))),"") -> 1000 | I19: =IF(G19<>"",IF($AF19="Flat",IF(I$1<'All De-SCope'!$J20,'All De-SCope'!$G20,0),IF(I$1<'All De-SCope'!$I20,'All De-SCope'!$G20,H19*(1-((DATEDIF('All De-SCope'!$I20,I$1,"m"))/3)/((DATEDIF('All De-SCope'!$I20,'All De-SCope'!$J20,"m"))/3)))),"") -> 1000 | J19: =IF(H19<>"",IF($AF19="Flat",IF(J$1<'All De-SCope'!$J20,'All De-SCope'!$G20,0),IF(J$1<'All De-SCope'!$I20,'All De-SCope'!$G20,I19*(1-((DATEDIF('All De-SCope'!$I20,J$1,"m"))/3)/((DATEDIF('All De-SCope'!$I20,'All De-SCope'!$J20,"m"))/3)))),"") -> 1000 | K19: =IF(I19<>"",IF($AF19="Flat",IF(K$1<'All De-SCope'!$J20,'All De-SCope'!$G20,0),IF(K$1<'All De-SCope'!$I20,'All De-SCope'!$G20,J19*(1-((DATEDIF('All De-SCope'!$I20,K$1,"m"))/3)/((DATEDIF('All De-SCope'!$I20,'All De-SCope'!$J20,"m"))/3)))),"") -> 1000 | L19: =IF(J19<>"",IF($AF19="Flat",IF(L$1<'All De-SCope'!$J20,'All De-SCope'!$G20,0),IF(L$1<'All De-SCope'!$I20,'All De-SCope'!$G20,K19*(1-((DATEDIF('All De-SCope'!$I20,L$1,"m"))/3)/((DATEDIF('All De-SCope'!$I20,'All De-SCope'!$J20,"m"))/3)))),"") -> 1000 | M19: =IF(K19<>"",IF($AF19="Flat",IF(M$1<'All De-SCope'!$J20,'All De-SCope'!$G20,0),IF(M$1<'All De-SCope'!$I20,'All De-SCope'!$G20,L19*(1-((DATEDIF('All De-SCope'!$I20,M$1,"m"))/3)/((DATEDIF('All De-SCope'!$I20,'All De-SCope'!$J20,"m"))/3)))),"") -> 1000 | N19: =IF(L19<>"",IF($AF19="Flat",IF(N$1<'All De-SCope'!$J20,'All De-SCope'!$G20,0),IF(N$1<'All De-SCope'!$I20,'All De-SCope'!$G20,M19*(1-((DATEDIF('All De-SCope'!$I20,N$1,"m"))/3)/((DATEDIF('All De-SCope'!$I20,'All De-SCope'!$J20,"m"))/3)))),"") -> 1000 | O19: =IF(M19<>"",IF($AF19="Flat",IF(O$1<'All De-SCope'!$J20,'All De-SCope'!$G20,0),IF(O$1<'All De-SCope'!$I20,'All De-SCope'!$G20,N19*(1-((DATEDIF('All De-SCope'!$I20,O$1,"m"))/3)/((DATEDIF('All De-SCope'!$I20,'All De-SCope'!$J20,"m"))/3)))),"") -> 1000 | P19: =IF(N19<>"",IF($AF19="Flat",IF(P$1<'All De-SCope'!$J20,'All De-SCope'!$G20,0),IF(P$1<'All De-SCope'!$I20,'All De-SCope'!$G20,O19*(1-((DATEDIF('All De-SCope'!$I20,P$1,"m"))/3)/((DATEDIF('All De-SCope'!$I20,'All De-SCope'!$J20,"m"))/3)))),"") -> 1000 | Q19: =IF(O19<>"",IF($AF19="Flat",IF(Q$1<'All De-SCope'!$J20,'All De-SCope'!$G20,0),IF(Q$1<'All De-SCope'!$I20,'All De-SCope'!$G20,P19*(1-((DATEDIF('All De-SCope'!$I20,Q$1,"m"))/3)/((DATEDIF('All De-SCope'!$I20,'All De-SCope'!$J20,"m"))/3)))),"") -> 1000 | R19: =IF(P19<>"",IF($AF19="Flat",IF(R$1<'All De-SCope'!$J20,'All De-SCope'!$G20,0),IF(R$1<'All De-SCope'!$I20,'All De-SCope'!$G20,Q19*(1-((DATEDIF('All De-SCope'!$I20,R$1,"m"))/3)/((DATEDIF('All De-SCope'!$I20,'All De-SCope'!$J20,"m"))/3)))),"") -> 1000 | S19: =IF(Q19<>"",IF($AF19="Flat",IF(S$1<'All De-SCope'!$J20,'All De-SCope'!$G20,0),IF(S$1<'All De-SCope'!$I20,'All De-SCope'!$G20,R19*(1-((DATEDIF('All De-SCope'!$I20,S$1,"m"))/3)/((DATEDIF('All De-SCope'!$I20,'All De-SCope'!$J20,"m"))/3)))),"") -> 1000 | T19: =IF(R19<>"",IF($AF19="Flat",IF(T$1<'All De-SCope'!$J20,'All De-SCope'!$G20,0),IF(T$1<'All De-SCope'!$I20,'All De-SCope'!$G20,S19*(1-((DATEDIF('All De-SCope'!$I20,T$1,"m"))/3)/((DATEDIF('All De-SCope'!$I20,'All De-SCope'!$J20,"m"))/3)))),"") -> 1000 | U19: =IF(S19<>"",IF($AF19="Flat",IF(U$1<'All De-SCope'!$J20,'All De-SCope'!$G20,0),IF(U$1<'All De-SCope'!$I20,'All De-SCope'!$G20,T19*(1-((DATEDIF('All De-SCope'!$I20,U$1,"m"))/3)/((DATEDIF('All De-SCope'!$I20,'All De-SCope'!$J20,"m"))/3)))),"") -> 1000 | V19: =IF(T19<>"",IF($AF19="Flat",IF(V$1<'All De-SCope'!$J20,'All De-SCope'!$G20,0),IF(V$1<'All De-SCope'!$I20,'All De-SCope'!$G20,U19*(1-((DATEDIF('All De-SCope'!$I20,V$1,"m"))/3)/((DATEDIF('All De-SCope'!$I20,'All De-SCope'!$J20,"m"))/3)))),"") -> 1000 | W19: =IF(U19<>"",IF($AF19="Flat",IF(W$1<'All De-SCope'!$J20,'All De-SCope'!$G20,0),IF(W$1<'All De-SCope'!$I20,'All De-SCope'!$G20,V19*(1-((DATEDIF('All De-SCope'!$I20,W$1,"m"))/3)/((DATEDIF('All De-SCope'!$I20,'All De-SCope'!$J20,"m"))/3)))),"") -> 1000 | X19: =IF(V19<>"",IF($AF19="Flat",IF(X$1<'All De-SCope'!$J20,'All De-SCope'!$G20,0),IF(X$1<'All De-SCope'!$I20,'All De-SCope'!$G20,W19*(1-((DATEDIF('All De-SCope'!$I20,X$1,"m"))/3)/((DATEDIF('All De-SCope'!$I20,'All De-SCope'!$J20,"m"))/3)))),"") -> 1000 | Y19: =IF(W19<>"",IF($AF19="Flat",IF(Y$1<'All De-SCope'!$J20,'All De-SCope'!$G20,0),IF(Y$1<'All De-SCope'!$I20,'All De-SCope'!$G20,X19*(1-((DATEDIF('All De-SCope'!$I20,Y$1,"m"))/3)/((DATEDIF('All De-SCope'!$I20,'All De-SCope'!$J20,"m"))/3)))),"") -> 0 | Z19: =IF(X19<>"",IF($AF19="Flat",IF(Z$1<'All De-SCope'!$J20,'All De-SCope'!$G20,0),IF(Z$1<'All De-SCope'!$I20,'All De-SCope'!$G20,Y19*(1-((DATEDIF('All De-SCope'!$I20,Z$1,"m"))/3)/((DATEDIF('All De-SCope'!$I20,'All De-SCope'!$J20,"m"))/3)))),"") -> 0 | AF19: =IF(B19<>"",'All De-SCope'!H20,"") -> Flat
B20: =IF('All De-SCope'!A21<>"",'All De-SCope'!A21,"") -> DM17 | C20: =IF(B20<>"",IF($AF20="Flat",IF(C$1<'All De-SCope'!$N21,'All De-SCope'!$G21,0),IF(C$1<'All De-SCope'!$N21,'All De-SCope'!$G21,0)),"") -> 1000 | D20: =IF(B20<>"",IF($AF20="Flat",IF(D$1<'All De-SCope'!$N21,'All De-SCope'!$G21,0),IF(D$1<'All De-SCope'!$M21,'All De-SCope'!$G21,C20*(1-('All De-SCope'!$M21-D$1)/('All De-SCope'!$M21-'All De-SCope'!$N21)))),"") -> 1000 | E20: =IF(C20<>"",IF($AF20="Flat",IF(E$1<'All De-SCope'!$N21,'All De-SCope'!$G21,0),IF(E$1<'All De-SCope'!$M21,'All De-SCope'!$G21,D20*(1-('All De-SCope'!$M21-E$1)/('All De-SCope'!$M21-'All De-SCope'!$N21)))),"") -> 1000 | F20: =IF(D20<>"",IF($AF20="Flat",IF(F$1<'All De-SCope'!$J21,'All De-SCope'!$G21,0),IF(F$1<'All De-SCope'!$I21,'All De-SCope'!$G21,E20*(1-((DATEDIF('All De-SCope'!$I21,F$1,"m"))/3)/((DATEDIF('All De-SCope'!$I21,'All De-SCope'!$J21,"m"))/3)))),"") -> 1000 | G20: =IF(E20<>"",IF($AF20="Flat",IF(G$1<'All De-SCope'!$J21,'All De-SCope'!$G21,0),IF(G$1<'All De-SCope'!$I21,'All De-SCope'!$G21,F20*(1-((DATEDIF('All De-SCope'!$I21,G$1,"m"))/3)/((DATEDIF('All De-SCope'!$I21,'All De-SCope'!$J21,"m"))/3)))),"") -> 1000 | H20: =IF(F20<>"",IF($AF20="Flat",IF(H$1<'All De-SCope'!$J21,'All De-SCope'!$G21,0),IF(H$1<'All De-SCope'!$I21,'All De-SCope'!$G21,G20*(1-((DATEDIF('All De-SCope'!$I21,H$1,"m"))/3)/((DATEDIF('All De-SCope'!$I21,'All De-SCope'!$J21,"m"))/3)))),"") -> 1000 | I20: =IF(G20<>"",IF($AF20="Flat",IF(I$1<'All De-SCope'!$J21,'All De-SCope'!$G21,0),IF(I$1<'All De-SCope'!$I21,'All De-SCope'!$G21,H20*(1-((DATEDIF('All De-SCope'!$I21,I$1,"m"))/3)/((DATEDIF('All De-SCope'!$I21,'All De-SCope'!$J21,"m"))/3)))),"") -> 1000 | J20: =IF(H20<>"",IF($AF20="Flat",IF(J$1<'All De-SCope'!$J21,'All De-SCope'!$G21,0),IF(J$1<'All De-SCope'!$I21,'All De-SCope'!$G21,I20*(1-((DATEDIF('All De-SCope'!$I21,J$1,"m"))/3)/((DATEDIF('All De-SCope'!$I21,'All De-SCope'!$J21,"m"))/3)))),"") -> 1000 | K20: =IF(I20<>"",IF($AF20="Flat",IF(K$1<'All De-SCope'!$J21,'All De-SCope'!$G21,0),IF(K$1<'All De-SCope'!$I21,'All De-SCope'!$G21,J20*(1-((DATEDIF('All De-SCope'!$I21,K$1,"m"))/3)/((DATEDIF('All De-SCope'!$I21,'All De-SCope'!$J21,"m"))/3)))),"") -> 1000 | L20: =IF(J20<>"",IF($AF20="Flat",IF(L$1<'All De-SCope'!$J21,'All De-SCope'!$G21,0),IF(L$1<'All De-SCope'!$I21,'All De-SCope'!$G21,K20*(1-((DATEDIF('All De-SCope'!$I21,L$1,"m"))/3)/((DATEDIF('All De-SCope'!$I21,'All De-SCope'!$J21,"m"))/3)))),"") -> 1000 | M20: =IF(K20<>"",IF($AF20="Flat",IF(M$1<'All De-SCope'!$J21,'All De-SCope'!$G21,0),IF(M$1<'All De-SCope'!$I21,'All De-SCope'!$G21,L20*(1-((DATEDIF('All De-SCope'!$I21,M$1,"m"))/3)/((DATEDIF('All De-SCope'!$I21,'All De-SCope'!$J21,"m"))/3)))),"") -> 1000 | N20: =IF(L20<>"",IF($AF20="Flat",IF(N$1<'All De-SCope'!$J21,'All De-SCope'!$G21,0),IF(N$1<'All De-SCope'!$I21,'All De-SCope'!$G21,M20*(1-((DATEDIF('All De-SCope'!$I21,N$1,"m"))/3)/((DATEDIF('All De-SCope'!$I21,'All De-SCope'!$J21,"m"))/3)))),"") -> 1000 | O20: =IF(M20<>"",IF($AF20="Flat",IF(O$1<'All De-SCope'!$J21,'All De-SCope'!$G21,0),IF(O$1<'All De-SCope'!$I21,'All De-SCope'!$G21,N20*(1-((DATEDIF('All De-SCope'!$I21,O$1,"m"))/3)/((DATEDIF('All De-SCope'!$I21,'All De-SCope'!$J21,"m"))/3)))),"") -> 1000 | P20: =IF(N20<>"",IF($AF20="Flat",IF(P$1<'All De-SCope'!$J21,'All De-SCope'!$G21,0),IF(P$1<'All De-SCope'!$I21,'All De-SCope'!$G21,O20*(1-((DATEDIF('All De-SCope'!$I21,P$1,"m"))/3)/((DATEDIF('All De-SCope'!$I21,'All De-SCope'!$J21,"m"))/3)))),"") -> 1000 | Q20: =IF(O20<>"",IF($AF20="Flat",IF(Q$1<'All De-SCope'!$J21,'All De-SCope'!$G21,0),IF(Q$1<'All De-SCope'!$I21,'All De-SCope'!$G21,P20*(1-((DATEDIF('All De-SCope'!$I21,Q$1,"m"))/3)/((DATEDIF('All De-SCope'!$I21,'All De-SCope'!$J21,"m"))/3)))),"") -> 1000 | R20: =IF(P20<>"",IF($AF20="Flat",IF(R$1<'All De-SCope'!$J21,'All De-SCope'!$G21,0),IF(R$1<'All De-SCope'!$I21,'All De-SCope'!$G21,Q20*(1-((DATEDIF('All De-SCope'!$I21,R$1,"m"))/3)/((DATEDIF('All De-SCope'!$I21,'All De-SCope'!$J21,"m"))/3)))),"") -> 1000 | S20: =IF(Q20<>"",IF($AF20="Flat",IF(S$1<'All De-SCope'!$J21,'All De-SCope'!$G21,0),IF(S$1<'All De-SCope'!$I21,'All De-SCope'!$G21,R20*(1-((DATEDIF('All De-SCope'!$I21,S$1,"m"))/3)/((DATEDIF('All De-SCope'!$I21,'All De-SCope'!$J21,"m"))/3)))),"") -> 1000 | T20: =IF(R20<>"",IF($AF20="Flat",IF(T$1<'All De-SCope'!$J21,'All De-SCope'!$G21,0),IF(T$1<'All De-SCope'!$I21,'All De-SCope'!$G21,S20*(1-((DATEDIF('All De-SCope'!$I21,T$1,"m"))/3)/((DATEDIF('All De-SCope'!$I21,'All De-SCope'!$J21,"m"))/3)))),"") -> 1000 | U20: =IF(S20<>"",IF($AF20="Flat",IF(U$1<'All De-SCope'!$J21,'All De-SCope'!$G21,0),IF(U$1<'All De-SCope'!$I21,'All De-SCope'!$G21,T20*(1-((DATEDIF('All De-SCope'!$I21,U$1,"m"))/3)/((DATEDIF('All De-SCope'!$I21,'All De-SCope'!$J21,"m"))/3)))),"") -> 1000 | V20: =IF(T20<>"",IF($AF20="Flat",IF(V$1<'All De-SCope'!$J21,'All De-SCope'!$G21,0),IF(V$1<'All De-SCope'!$I21,'All De-SCope'!$G21,U20*(1-((DATEDIF('All De-SCope'!$I21,V$1,"m"))/3)/((DATEDIF('All De-SCope'!$I21,'All De-SCope'!$J21,"m"))/3)))),"") -> 1000 | W20: =IF(U20<>"",IF($AF20="Flat",IF(W$1<'All De-SCope'!$J21,'All De-SCope'!$G21,0),IF(W$1<'All De-SCope'!$I21,'All De-SCope'!$G21,V20*(1-((DATEDIF('All De-SCope'!$I21,W$1,"m"))/3)/((DATEDIF('All De-SCope'!$I21,'All De-SCope'!$J21,"m"))/3)))),"") -> 1000 | X20: =IF(V20<>"",IF($AF20="Flat",IF(X$1<'All De-SCope'!$J21,'All De-SCope'!$G21,0),IF(X$1<'All De-SCope'!$I21,'All De-SCope'!$G21,W20*(1-((DATEDIF('All De-SCope'!$I21,X$1,"m"))/3)/((DATEDIF('All De-SCope'!$I21,'All De-SCope'!$J21,"m"))/3)))),"") -> 1000 | Y20: =IF(W20<>"",IF($AF20="Flat",IF(Y$1<'All De-SCope'!$J21,'All De-SCope'!$G21,0),IF(Y$1<'All De-SCope'!$I21,'All De-SCope'!$G21,X20*(1-((DATEDIF('All De-SCope'!$I21,Y$1,"m"))/3)/((DATEDIF('All De-SCope'!$I21,'All De-SCope'!$J21,"m"))/3)))),"") -> 0 | Z20: =IF(X20<>"",IF($AF20="Flat",IF(Z$1<'All De-SCope'!$J21,'All De-SCope'!$G21,0),IF(Z$1<'All De-SCope'!$I21,'All De-SCope'!$G21,Y20*(1-((DATEDIF('All De-SCope'!$I21,Z$1,"m"))/3)/((DATEDIF('All De-SCope'!$I21,'All De-SCope'!$J21,"m"))/3)))),"") -> 0 | AF20: =IF(B20<>"",'All De-SCope'!H21,"") -> Flat
B21: =IF('All De-SCope'!A22<>"",'All De-SCope'!A22,"") -> DM18 | C21: =IF(B21<>"",IF($AF21="Flat",IF(C$1<'All De-SCope'!$N22,'All De-SCope'!$G22,0),IF(C$1<'All De-SCope'!$N22,'All De-SCope'!$G22,0)),"") -> 1500 | D21: =IF(B21<>"",IF($AF21="Flat",IF(D$1<'All De-SCope'!$N22,'All De-SCope'!$G22,0),IF(D$1<'All De-SCope'!$M22,'All De-SCope'!$G22,C21*(1-('All De-SCope'!$M22-D$1)/('All De-SCope'!$M22-'All De-SCope'!$N22)))),"") -> 1500 | E21: =IF(C21<>"",IF($AF21="Flat",IF(E$1<'All De-SCope'!$N22,'All De-SCope'!$G22,0),IF(E$1<'All De-SCope'!$M22,'All De-SCope'!$G22,D21*(1-('All De-SCope'!$M22-E$1)/('All De-SCope'!$M22-'All De-SCope'!$N22)))),"") -> 1500 | F21: =IF(D21<>"",IF($AF21="Flat",IF(F$1<'All De-SCope'!$J22,'All De-SCope'!$G22,0),IF(F$1<'All De-SCope'!$I22,'All De-SCope'!$G22,E21*(1-((DATEDIF('All De-SCope'!$I22,F$1,"m"))/3)/((DATEDIF('All De-SCope'!$I22,'All De-SCope'!$J22,"m"))/3)))),"") -> 1500 | G21: =IF(E21<>"",IF($AF21="Flat",IF(G$1<'All De-SCope'!$J22,'All De-SCope'!$G22,0),IF(G$1<'All De-SCope'!$I22,'All De-SCope'!$G22,F21*(1-((DATEDIF('All De-SCope'!$I22,G$1,"m"))/3)/((DATEDIF('All De-SCope'!$I22,'All De-SCope'!$J22,"m"))/3)))),"") -> 1500 | H21: =IF(F21<>"",IF($AF21="Flat",IF(H$1<'All De-SCope'!$J22,'All De-SCope'!$G22,0),IF(H$1<'All De-SCope'!$I22,'All De-SCope'!$G22,G21*(1-((DATEDIF('All De-SCope'!$I22,H$1,"m"))/3)/((DATEDIF('All De-SCope'!$I22,'All De-SCope'!$J22,"m"))/3)))),"") -> 1500 | I21: =IF(G21<>"",IF($AF21="Flat",IF(I$1<'All De-SCope'!$J22,'All De-SCope'!$G22,0),IF(I$1<'All De-SCope'!$I22,'All De-SCope'!$G22,H21*(1-((DATEDIF('All De-SCope'!$I22,I$1,"m"))/3)/((DATEDIF('All De-SCope'!$I22,'All De-SCope'!$J22,"m"))/3)))),"") -> 1500 | J21: =IF(H21<>"",IF($AF21="Flat",IF(J$1<'All De-SCope'!$J22,'All De-SCope'!$G22,0),IF(J$1<'All De-SCope'!$I22,'All De-SCope'!$G22,I21*(1-((DATEDIF('All De-SCope'!$I22,J$1,"m"))/3)/((DATEDIF('All De-SCope'!$I22,'All De-SCope'!$J22,"m"))/3)))),"") -> 1500 | K21: =IF(I21<>"",IF($AF21="Flat",IF(K$1<'All De-SCope'!$J22,'All De-SCope'!$G22,0),IF(K$1<'All De-SCope'!$I22,'All De-SCope'!$G22,J21*(1-((DATEDIF('All De-SCope'!$I22,K$1,"m"))/3)/((DATEDIF('All De-SCope'!$I22,'All De-SCope'!$J22,"m"))/3)))),"") -> 1500 | L21: =IF(J21<>"",IF($AF21="Flat",IF(L$1<'All De-SCope'!$J22,'All De-SCope'!$G22,0),IF(L$1<'All De-SCope'!$I22,'All De-SCope'!$G22,K21*(1-((DATEDIF('All De-SCope'!$I22,L$1,"m"))/3)/((DATEDIF('All De-SCope'!$I22,'All De-SCope'!$J22,"m"))/3)))),"") -> 1500 | M21: =IF(K21<>"",IF($AF21="Flat",IF(M$1<'All De-SCope'!$J22,'All De-SCope'!$G22,0),IF(M$1<'All De-SCope'!$I22,'All De-SCope'!$G22,L21*(1-((DATEDIF('All De-SCope'!$I22,M$1,"m"))/3)/((DATEDIF('All De-SCope'!$I22,'All De-SCope'!$J22,"m"))/3)))),"") -> 1500 | N21: =IF(L21<>"",IF($AF21="Flat",IF(N$1<'All De-SCope'!$J22,'All De-SCope'!$G22,0),IF(N$1<'All De-SCope'!$I22,'All De-SCope'!$G22,M21*(1-((DATEDIF('All De-SCope'!$I22,N$1,"m"))/3)/((DATEDIF('All De-SCope'!$I22,'All De-SCope'!$J22,"m"))/3)))),"") -> 1500 | O21: =IF(M21<>"",IF($AF21="Flat",IF(O$1<'All De-SCope'!$J22,'All De-SCope'!$G22,0),IF(O$1<'All De-SCope'!$I22,'All De-SCope'!$G22,N21*(1-((DATEDIF('All De-SCope'!$I22,O$1,"m"))/3)/((DATEDIF('All De-SCope'!$I22,'All De-SCope'!$J22,"m"))/3)))),"") -> 1500 | P21: =IF(N21<>"",IF($AF21="Flat",IF(P$1<'All De-SCope'!$J22,'All De-SCope'!$G22,0),IF(P$1<'All De-SCope'!$I22,'All De-SCope'!$G22,O21*(1-((DATEDIF('All De-SCope'!$I22,P$1,"m"))/3)/((DATEDIF('All De-SCope'!$I22,'All De-SCope'!$J22,"m"))/3)))),"") -> 1500 | Q21: =IF(O21<>"",IF($AF21="Flat",IF(Q$1<'All De-SCope'!$J22,'All De-SCope'!$G22,0),IF(Q$1<'All De-SCope'!$I22,'All De-SCope'!$G22,P21*(1-((DATEDIF('All De-SCope'!$I22,Q$1,"m"))/3)/((DATEDIF('All De-SCope'!$I22,'All De-SCope'!$J22,"m"))/3)))),"") -> 1500 | R21: =IF(P21<>"",IF($AF21="Flat",IF(R$1<'All De-SCope'!$J22,'All De-SCope'!$G22,0),IF(R$1<'All De-SCope'!$I22,'All De-SCope'!$G22,Q21*(1-((DATEDIF('All De-SCope'!$I22,R$1,"m"))/3)/((DATEDIF('All De-SCope'!$I22,'All De-SCope'!$J22,"m"))/3)))),"") -> 1500 | S21: =IF(Q21<>"",IF($AF21="Flat",IF(S$1<'All De-SCope'!$J22,'All De-SCope'!$G22,0),IF(S$1<'All De-SCope'!$I22,'All De-SCope'!$G22,R21*(1-((DATEDIF('All De-SCope'!$I22,S$1,"m"))/3)/((DATEDIF('All De-SCope'!$I22,'All De-SCope'!$J22,"m"))/3)))),"") -> 1500 | T21: =IF(R21<>"",IF($AF21="Flat",IF(T$1<'All De-SCope'!$J22,'All De-SCope'!$G22,0),IF(T$1<'All De-SCope'!$I22,'All De-SCope'!$G22,S21*(1-((DATEDIF('All De-SCope'!$I22,T$1,"m"))/3)/((DATEDIF('All De-SCope'!$I22,'All De-SCope'!$J22,"m"))/3)))),"") -> 1500 | U21: =IF(S21<>"",IF($AF21="Flat",IF(U$1<'All De-SCope'!$J22,'All De-SCope'!$G22,0),IF(U$1<'All De-SCope'!$I22,'All De-SCope'!$G22,T21*(1-((DATEDIF('All De-SCope'!$I22,U$1,"m"))/3)/((DATEDIF('All De-SCope'!$I22,'All De-SCope'!$J22,"m"))/3)))),"") -> 1500 | V21: =IF(T21<>"",IF($AF21="Flat",IF(V$1<'All De-SCope'!$J22,'All De-SCope'!$G22,0),IF(V$1<'All De-SCope'!$I22,'All De-SCope'!$G22,U21*(1-((DATEDIF('All De-SCope'!$I22,V$1,"m"))/3)/((DATEDIF('All De-SCope'!$I22,'All De-SCope'!$J22,"m"))/3)))),"") -> 1500 | W21: =IF(U21<>"",IF($AF21="Flat",IF(W$1<'All De-SCope'!$J22,'All De-SCope'!$G22,0),IF(W$1<'All De-SCope'!$I22,'All De-SCope'!$G22,V21*(1-((DATEDIF('All De-SCope'!$I22,W$1,"m"))/3)/((DATEDIF('All De-SCope'!$I22,'All De-SCope'!$J22,"m"))/3)))),"") -> 1500 | X21: =IF(V21<>"",IF($AF21="Flat",IF(X$1<'All De-SCope'!$J22,'All De-SCope'!$G22,0),IF(X$1<'All De-SCope'!$I22,'All De-SCope'!$G22,W21*(1-((DATEDIF('All De-SCope'!$I22,X$1,"m"))/3)/((DATEDIF('All De-SCope'!$I22,'All De-SCope'!$J22,"m"))/3)))),"") -> 1500 | Y21: =IF(W21<>"",IF($AF21="Flat",IF(Y$1<'All De-SCope'!$J22,'All De-SCope'!$G22,0),IF(Y$1<'All De-SCope'!$I22,'All De-SCope'!$G22,X21*(1-((DATEDIF('All De-SCope'!$I22,Y$1,"m"))/3)/((DATEDIF('All De-SCope'!$I22,'All De-SCope'!$J22,"m"))/3)))),"") -> 0 | Z21: =IF(X21<>"",IF($AF21="Flat",IF(Z$1<'All De-SCope'!$J22,'All De-SCope'!$G22,0),IF(Z$1<'All De-SCope'!$I22,'All De-SCope'!$G22,Y21*(1-((DATEDIF('All De-SCope'!$I22,Z$1,"m"))/3)/((DATEDIF('All De-SCope'!$I22,'All De-SCope'!$J22,"m"))/3)))),"") -> 0 | AF21: =IF(B21<>"",'All De-SCope'!H22,"") -> Flat
B22: =IF('All De-SCope'!A23<>"",'All De-SCope'!A23,"") -> TS2 | C22: =IF(B22<>"",IF($AF22="Flat",IF(C$1<'All De-SCope'!$N23,'All De-SCope'!$G23,0),IF(C$1<'All De-SCope'!$N23,'All De-SCope'!$G23,0)),"") -> 100 | D22: =IF(B22<>"",IF($AF22="Flat",IF(D$1<'All De-SCope'!$N23,'All De-SCope'!$G23,0),IF(D$1<'All De-SCope'!$M23,'All De-SCope'!$G23,C22*(1-('All De-SCope'!$M23-D$1)/('All De-SCope'!$M23-'All De-SCope'!$N23)))),"") -> 100 | E22: =IF(C22<>"",IF($AF22="Flat",IF(E$1<'All De-SCope'!$N23,'All De-SCope'!$G23,0),IF(E$1<'All De-SCope'!$M23,'All De-SCope'!$G23,D22*(1-('All De-SCope'!$M23-E$1)/('All De-SCope'!$M23-'All De-SCope'!$N23)))),"") -> 100 | F22: =IF(D22<>"",IF($AF22="Flat",IF(F$1<'All De-SCope'!$J23,'All De-SCope'!$G23,0),IF(F$1<'All De-SCope'!$I23,'All De-SCope'!$G23,E22*(1-((DATEDIF('All De-SCope'!$I23,F$1,"m"))/3)/((DATEDIF('All De-SCope'!$I23,'All De-SCope'!$J23,"m"))/3)))),"") -> 100 | G22: =IF(E22<>"",IF($AF22="Flat",IF(G$1<'All De-SCope'!$J23,'All De-SCope'!$G23,0),IF(G$1<'All De-SCope'!$I23,'All De-SCope'!$G23,F22*(1-((DATEDIF('All De-SCope'!$I23,G$1,"m"))/3)/((DATEDIF('All De-SCope'!$I23,'All De-SCope'!$J23,"m"))/3)))),"") -> 91.66666667 | H22: =IF(F22<>"",IF($AF22="Flat",IF(H$1<'All De-SCope'!$J23,'All De-SCope'!$G23,0),IF(H$1<'All De-SCope'!$I23,'All De-SCope'!$G23,G22*(1-((DATEDIF('All De-SCope'!$I23,H$1,"m"))/3)/((DATEDIF('All De-SCope'!$I23,'All De-SCope'!$J23,"m"))/3)))),"") -> 76.38888889 | I22: =IF(G22<>"",IF($AF22="Flat",IF(I$1<'All De-SCope'!$J23,'All De-SCope'!$G23,0),IF(I$1<'All De-SCope'!$I23,'All De-SCope'!$G23,H22*(1-((DATEDIF('All De-SCope'!$I23,I$1,"m"))/3)/((DATEDIF('All De-SCope'!$I23,'All De-SCope'!$J23,"m"))/3)))),"") -> 57.29166667 | J22: =IF(H22<>"",IF($AF22="Flat",IF(J$1<'All De-SCope'!$J23,'All De-SCope'!$G23,0),IF(J$1<'All De-SCope'!$I23,'All De-SCope'!$G23,I22*(1-((DATEDIF('All De-SCope'!$I23,J$1,"m"))/3)/((DATEDIF('All De-SCope'!$I23,'All De-SCope'!$J23,"m"))/3)))),"") -> 38.19444444 | K22: =IF(I22<>"",IF($AF22="Flat",IF(K$1<'All De-SCope'!$J23,'All De-SCope'!$G23,0),IF(K$1<'All De-SCope'!$I23,'All De-SCope'!$G23,J22*(1-((DATEDIF('All De-SCope'!$I23,K$1,"m"))/3)/((DATEDIF('All De-SCope'!$I23,'All De-SCope'!$J23,"m"))/3)))),"") -> 22.28009259 | L22: =IF(J22<>"",IF($AF22="Flat",IF(L$1<'All De-SCope'!$J23,'All De-SCope'!$G23,0),IF(L$1<'All De-SCope'!$I23,'All De-SCope'!$G23,K22*(1-((DATEDIF('All De-SCope'!$I23,L$1,"m"))/3)/((DATEDIF('All De-SCope'!$I23,'All De-SCope'!$J23,"m"))/3)))),"") -> 11.1400463 | M22: =IF(K22<>"",IF($AF22="Flat",IF(M$1<'All De-SCope'!$J23,'All De-SCope'!$G23,0),IF(M$1<'All De-SCope'!$I23,'All De-SCope'!$G23,L22*(1-((DATEDIF('All De-SCope'!$I23,M$1,"m"))/3)/((DATEDIF('All De-SCope'!$I23,'All De-SCope'!$J23,"m"))/3)))),"") -> 4.641685957 | N22: =IF(L22<>"",IF($AF22="Flat",IF(N$1<'All De-SCope'!$J23,'All De-SCope'!$G23,0),IF(N$1<'All De-SCope'!$I23,'All De-SCope'!$G23,M22*(1-((DATEDIF('All De-SCope'!$I23,N$1,"m"))/3)/((DATEDIF('All De-SCope'!$I23,'All De-SCope'!$J23,"m"))/3)))),"") -> 1.547228652 | O22: =IF(M22<>"",IF($AF22="Flat",IF(O$1<'All De-SCope'!$J23,'All De-SCope'!$G23,0),IF(O$1<'All De-SCope'!$I23,'All De-SCope'!$G23,N22*(1-((DATEDIF('All De-SCope'!$I23,O$1,"m"))/3)/((DATEDIF('All De-SCope'!$I23,'All De-SCope'!$J23,"m"))/3)))),"") -> 0.3868071631 | P22: =IF(N22<>"",IF($AF22="Flat",IF(P$1<'All De-SCope'!$J23,'All De-SCope'!$G23,0),IF(P$1<'All De-SCope'!$I23,'All De-SCope'!$G23,O22*(1-((DATEDIF('All De-SCope'!$I23,P$1,"m"))/3)/((DATEDIF('All De-SCope'!$I23,'All De-SCope'!$J23,"m"))/3)))),"") -> 0.06446786051 | Q22: =IF(O22<>"",IF($AF22="Flat",IF(Q$1<'All De-SCope'!$J23,'All De-SCope'!$G23,0),IF(Q$1<'All De-SCope'!$I23,'All De-SCope'!$G23,P22*(1-((DATEDIF('All De-SCope'!$I23,Q$1,"m"))/3)/((DATEDIF('All De-SCope'!$I23,'All De-SCope'!$J23,"m"))/3)))),"") -> 0.005372321709 | R22: =IF(P22<>"",IF($AF22="Flat",IF(R$1<'All De-SCope'!$J23,'All De-SCope'!$G23,0),IF(R$1<'All De-SCope'!$I23,'All De-SCope'!$G23,Q22*(1-((DATEDIF('All De-SCope'!$I23,R$1,"m"))/3)/((DATEDIF('All De-SCope'!$I23,'All De-SCope'!$J23,"m"))/3)))),"") -> 0 | S22: =IF(Q22<>"",IF($AF22="Flat",IF(S$1<'All De-SCope'!$J23,'All De-SCope'!$G23,0),IF(S$1<'All De-SCope'!$I23,'All De-SCope'!$G23,R22*(1-((DATEDIF('All De-SCope'!$I23,S$1,"m"))/3)/((DATEDIF('All De-SCope'!$I23,'All De-SCope'!$J23,"m"))/3)))),"") -> 0 | T22: =IF(R22<>"",IF($AF22="Flat",IF(T$1<'All De-SCope'!$J23,'All De-SCope'!$G23,0),IF(T$1<'All De-SCope'!$I23,'All De-SCope'!$G23,S22*(1-((DATEDIF('All De-SCope'!$I23,T$1,"m"))/3)/((DATEDIF('All De-SCope'!$I23,'All De-SCope'!$J23,"m"))/3)))),"") -> 0 | U22: =IF(S22<>"",IF($AF22="Flat",IF(U$1<'All De-SCope'!$J23,'All De-SCope'!$G23,0),IF(U$1<'All De-SCope'!$I23,'All De-SCope'!$G23,T22*(1-((DATEDIF('All De-SCope'!$I23,U$1,"m"))/3)/((DATEDIF('All De-SCope'!$I23,'All De-SCope'!$J23,"m"))/3)))),"") -> 0 | V22: =IF(T22<>"",IF($AF22="Flat",IF(V$1<'All De-SCope'!$J23,'All De-SCope'!$G23,0),IF(V$1<'All De-SCope'!$I23,'All De-SCope'!$G23,U22*(1-((DATEDIF('All De-SCope'!$I23,V$1,"m"))/3)/((DATEDIF('All De-SCope'!$I23,'All De-SCope'!$J23,"m"))/3)))),"") -> 0 | W22: =IF(U22<>"",IF($AF22="Flat",IF(W$1<'All De-SCope'!$J23,'All De-SCope'!$G23,0),IF(W$1<'All De-SCope'!$I23,'All De-SCope'!$G23,V22*(1-((DATEDIF('All De-SCope'!$I23,W$1,"m"))/3)/((DATEDIF('All De-SCope'!$I23,'All De-SCope'!$J23,"m"))/3)))),"") -> 0 | X22: =IF(V22<>"",IF($AF22="Flat",IF(X$1<'All De-SCope'!$J23,'All De-SCope'!$G23,0),IF(X$1<'All De-SCope'!$I23,'All De-SCope'!$G23,W22*(1-((DATEDIF('All De-SCope'!$I23,X$1,"m"))/3)/((DATEDIF('All De-SCope'!$I23,'All De-SCope'!$J23,"m"))/3)))),"") -> 0 | Y22: =IF(W22<>"",IF($AF22="Flat",IF(Y$1<'All De-SCope'!$J23,'All De-SCope'!$G23,0),IF(Y$1<'All De-SCope'!$I23,'All De-SCope'!$G23,X22*(1-((DATEDIF('All De-SCope'!$I23,Y$1,"m"))/3)/((DATEDIF('All De-SCope'!$I23,'All De-SCope'!$J23,"m"))/3)))),"") -> 0 | Z22: =IF(X22<>"",IF($AF22="Flat",IF(Z$1<'All De-SCope'!$J23,'All De-SCope'!$G23,0),IF(Z$1<'All De-SCope'!$I23,'All De-SCope'!$G23,Y22*(1-((DATEDIF('All De-SCope'!$I23,Z$1,"m"))/3)/((DATEDIF('All De-SCope'!$I23,'All De-SCope'!$J23,"m"))/3)))),"") -> 0 | AF22: =IF(B22<>"",'All De-SCope'!H23,"") -> Taper
B23: =IF('All De-SCope'!A24<>"",'All De-SCope'!A24,"") -> TS6 | C23: =IF(B23<>"",IF($AF23="Flat",IF(C$1<'All De-SCope'!$N24,'All De-SCope'!$G24,0),IF(C$1<'All De-SCope'!$N24,'All De-SCope'!$G24,0)),"") -> 120 | D23: =IF(B23<>"",IF($AF23="Flat",IF(D$1<'All De-SCope'!$N24,'All De-SCope'!$G24,0),IF(D$1<'All De-SCope'!$M24,'All De-SCope'!$G24,C23*(1-('All De-SCope'!$M24-D$1)/('All De-SCope'!$M24-'All De-SCope'!$N24)))),"") -> 120 | E23: =IF(C23<>"",IF($AF23="Flat",IF(E$1<'All De-SCope'!$N24,'All De-SCope'!$G24,0),IF(E$1<'All De-SCope'!$M24,'All De-SCope'!$G24,D23*(1-('All De-SCope'!$M24-E$1)/('All De-SCope'!$M24-'All De-SCope'!$N24)))),"") -> 120 | F23: =IF(D23<>"",IF($AF23="Flat",IF(F$1<'All De-SCope'!$J24,'All De-SCope'!$G24,0),IF(F$1<'All De-SCope'!$I24,'All De-SCope'!$G24,E23*(1-((DATEDIF('All De-SCope'!$I24,F$1,"m"))/3)/((DATEDIF('All De-SCope'!$I24,'All De-SCope'!$J24,"m"))/3)))),"") -> 120 | G23: =IF(E23<>"",IF($AF23="Flat",IF(G$1<'All De-SCope'!$J24,'All De-SCope'!$G24,0),IF(G$1<'All De-SCope'!$I24,'All De-SCope'!$G24,F23*(1-((DATEDIF('All De-SCope'!$I24,G$1,"m"))/3)/((DATEDIF('All De-SCope'!$I24,'All De-SCope'!$J24,"m"))/3)))),"") -> 120 | H23: =IF(F23<>"",IF($AF23="Flat",IF(H$1<'All De-SCope'!$J24,'All De-SCope'!$G24,0),IF(H$1<'All De-SCope'!$I24,'All De-SCope'!$G24,G23*(1-((DATEDIF('All De-SCope'!$I24,H$1,"m"))/3)/((DATEDIF('All De-SCope'!$I24,'All De-SCope'!$J24,"m"))/3)))),"") -> 120 | I23: =IF(G23<>"",IF($AF23="Flat",IF(I$1<'All De-SCope'!$J24,'All De-SCope'!$G24,0),IF(I$1<'All De-SCope'!$I24,'All De-SCope'!$G24,H23*(1-((DATEDIF('All De-SCope'!$I24,I$1,"m"))/3)/((DATEDIF('All De-SCope'!$I24,'All De-SCope'!$J24,"m"))/3)))),"") -> 120 | J23: =IF(H23<>"",IF($AF23="Flat",IF(J$1<'All De-SCope'!$J24,'All De-SCope'!$G24,0),IF(J$1<'All De-SCope'!$I24,'All De-SCope'!$G24,I23*(1-((DATEDIF('All De-SCope'!$I24,J$1,"m"))/3)/((DATEDIF('All De-SCope'!$I24,'All De-SCope'!$J24,"m"))/3)))),"") -> 120 | K23: =IF(I23<>"",IF($AF23="Flat",IF(K$1<'All De-SCope'!$J24,'All De-SCope'!$G24,0),IF(K$1<'All De-SCope'!$I24,'All De-SCope'!$G24,J23*(1-((DATEDIF('All De-SCope'!$I24,K$1,"m"))/3)/((DATEDIF('All De-SCope'!$I24,'All De-SCope'!$J24,"m"))/3)))),"") -> 120 | L23: =IF(J23<>"",IF($AF23="Flat",IF(L$1<'All De-SCope'!$J24,'All De-SCope'!$G24,0),IF(L$1<'All De-SCope'!$I24,'All De-SCope'!$G24,K23*(1-((DATEDIF('All De-SCope'!$I24,L$1,"m"))/3)/((DATEDIF('All De-SCope'!$I24,'All De-SCope'!$J24,"m"))/3)))),"") -> 120 | M23: =IF(K23<>"",IF($AF23="Flat",IF(M$1<'All De-SCope'!$J24,'All De-SCope'!$G24,0),IF(M$1<'All De-SCope'!$I24,'All De-SCope'!$G24,L23*(1-((DATEDIF('All De-SCope'!$I24,M$1,"m"))/3)/((DATEDIF('All De-SCope'!$I24,'All De-SCope'!$J24,"m"))/3)))),"") -> 120 | N23: =IF(L23<>"",IF($AF23="Flat",IF(N$1<'All De-SCope'!$J24,'All De-SCope'!$G24,0),IF(N$1<'All De-SCope'!$I24,'All De-SCope'!$G24,M23*(1-((DATEDIF('All De-SCope'!$I24,N$1,"m"))/3)/((DATEDIF('All De-SCope'!$I24,'All De-SCope'!$J24,"m"))/3)))),"") -> 120 | O23: =IF(M23<>"",IF($AF23="Flat",IF(O$1<'All De-SCope'!$J24,'All De-SCope'!$G24,0),IF(O$1<'All De-SCope'!$I24,'All De-SCope'!$G24,N23*(1-((DATEDIF('All De-SCope'!$I24,O$1,"m"))/3)/((DATEDIF('All De-SCope'!$I24,'All De-SCope'!$J24,"m"))/3)))),"") -> 120 | P23: =IF(N23<>"",IF($AF23="Flat",IF(P$1<'All De-SCope'!$J24,'All De-SCope'!$G24,0),IF(P$1<'All De-SCope'!$I24,'All De-SCope'!$G24,O23*(1-((DATEDIF('All De-SCope'!$I24,P$1,"m"))/3)/((DATEDIF('All De-SCope'!$I24,'All De-SCope'!$J24,"m"))/3)))),"") -> 120 | Q23: =IF(O23<>"",IF($AF23="Flat",IF(Q$1<'All De-SCope'!$J24,'All De-SCope'!$G24,0),IF(Q$1<'All De-SCope'!$I24,'All De-SCope'!$G24,P23*(1-((DATEDIF('All De-SCope'!$I24,Q$1,"m"))/3)/((DATEDIF('All De-SCope'!$I24,'All De-SCope'!$J24,"m"))/3)))),"") -> 120 | R23: =IF(P23<>"",IF($AF23="Flat",IF(R$1<'All De-SCope'!$J24,'All De-SCope'!$G24,0),IF(R$1<'All De-SCope'!$I24,'All De-SCope'!$G24,Q23*(1-((DATEDIF('All De-SCope'!$I24,R$1,"m"))/3)/((DATEDIF('All De-SCope'!$I24,'All De-SCope'!$J24,"m"))/3)))),"") -> 0 | S23: =IF(Q23<>"",IF($AF23="Flat",IF(S$1<'All De-SCope'!$J24,'All De-SCope'!$G24,0),IF(S$1<'All De-SCope'!$I24,'All De-SCope'!$G24,R23*(1-((DATEDIF('All De-SCope'!$I24,S$1,"m"))/3)/((DATEDIF('All De-SCope'!$I24,'All De-SCope'!$J24,"m"))/3)))),"") -> 0 | T23: =IF(R23<>"",IF($AF23="Flat",IF(T$1<'All De-SCope'!$J24,'All De-SCope'!$G24,0),IF(T$1<'All De-SCope'!$I24,'All De-SCope'!$G24,S23*(1-((DATEDIF('All De-SCope'!$I24,T$1,"m"))/3)/((DATEDIF('All De-SCope'!$I24,'All De-SCope'!$J24,"m"))/3)))),"") -> 0 | U23: =IF(S23<>"",IF($AF23="Flat",IF(U$1<'All De-SCope'!$J24,'All De-SCope'!$G24,0),IF(U$1<'All De-SCope'!$I24,'All De-SCope'!$G24,T23*(1-((DATEDIF('All De-SCope'!$I24,U$1,"m"))/3)/((DATEDIF('All De-SCope'!$I24,'All De-SCope'!$J24,"m"))/3)))),"") -> 0 | V23: =IF(T23<>"",IF($AF23="Flat",IF(V$1<'All De-SCope'!$J24,'All De-SCope'!$G24,0),IF(V$1<'All De-SCope'!$I24,'All De-SCope'!$G24,U23*(1-((DATEDIF('All De-SCope'!$I24,V$1,"m"))/3)/((DATEDIF('All De-SCope'!$I24,'All De-SCope'!$J24,"m"))/3)))),"") -> 0 | W23: =IF(U23<>"",IF($AF23="Flat",IF(W$1<'All De-SCope'!$J24,'All De-SCope'!$G24,0),IF(W$1<'All De-SCope'!$I24,'All De-SCope'!$G24,V23*(1-((DATEDIF('All De-SCope'!$I24,W$1,"m"))/3)/((DATEDIF('All De-SCope'!$I24,'All De-SCope'!$J24,"m"))/3)))),"") -> 0 | X23: =IF(V23<>"",IF($AF23="Flat",IF(X$1<'All De-SCope'!$J24,'All De-SCope'!$G24,0),IF(X$1<'All De-SCope'!$I24,'All De-SCope'!$G24,W23*(1-((DATEDIF('All De-SCope'!$I24,X$1,"m"))/3)/((DATEDIF('All De-SCope'!$I24,'All De-SCope'!$J24,"m"))/3)))),"") -> 0 | Y23: =IF(W23<>"",IF($AF23="Flat",IF(Y$1<'All De-SCope'!$J24,'All De-SCope'!$G24,0),IF(Y$1<'All De-SCope'!$I24,'All De-SCope'!$G24,X23*(1-((DATEDIF('All De-SCope'!$I24,Y$1,"m"))/3)/((DATEDIF('All De-SCope'!$I24,'All De-SCope'!$J24,"m"))/3)))),"") -> 0 | Z23: =IF(X23<>"",IF($AF23="Flat",IF(Z$1<'All De-SCope'!$J24,'All De-SCope'!$G24,0),IF(Z$1<'All De-SCope'!$I24,'All De-SCope'!$G24,Y23*(1-((DATEDIF('All De-SCope'!$I24,Z$1,"m"))/3)/((DATEDIF('All De-SCope'!$I24,'All De-SCope'!$J24,"m"))/3)))),"") -> 0 | AF23: =IF(B23<>"",'All De-SCope'!H24,"") -> Flat
B24: =IF('All De-SCope'!A25<>"",'All De-SCope'!A25,"") -> TS10 | C24: =IF(B24<>"",IF($AF24="Flat",IF(C$1<'All De-SCope'!$N25,'All De-SCope'!$G25,0),IF(C$1<'All De-SCope'!$N25,'All De-SCope'!$G25,0)),"") -> 100 | D24: =IF(B24<>"",IF($AF24="Flat",IF(D$1<'All De-SCope'!$N25,'All De-SCope'!$G25,0),IF(D$1<'All De-SCope'!$M25,'All De-SCope'!$G25,C24*(1-('All De-SCope'!$M25-D$1)/('All De-SCope'!$M25-'All De-SCope'!$N25)))),"") -> 100 | E24: =IF(C24<>"",IF($AF24="Flat",IF(E$1<'All De-SCope'!$N25,'All De-SCope'!$G25,0),IF(E$1<'All De-SCope'!$M25,'All De-SCope'!$G25,D24*(1-('All De-SCope'!$M25-E$1)/('All De-SCope'!$M25-'All De-SCope'!$N25)))),"") -> 100 | F24: =IF(D24<>"",IF($AF24="Flat",IF(F$1<'All De-SCope'!$J25,'All De-SCope'!$G25,0),IF(F$1<'All De-SCope'!$I25,'All De-SCope'!$G25,E24*(1-((DATEDIF('All De-SCope'!$I25,F$1,"m"))/3)/((DATEDIF('All De-SCope'!$I25,'All De-SCope'!$J25,"m"))/3)))),"") -> 85.71428571 | G24: =IF(E24<>"",IF($AF24="Flat",IF(G$1<'All De-SCope'!$J25,'All De-SCope'!$G25,0),IF(G$1<'All De-SCope'!$I25,'All De-SCope'!$G25,F24*(1-((DATEDIF('All De-SCope'!$I25,G$1,"m"))/3)/((DATEDIF('All De-SCope'!$I25,'All De-SCope'!$J25,"m"))/3)))),"") -> 67.34693878 | H24: =IF(F24<>"",IF($AF24="Flat",IF(H$1<'All De-SCope'!$J25,'All De-SCope'!$G25,0),IF(H$1<'All De-SCope'!$I25,'All De-SCope'!$G25,G24*(1-((DATEDIF('All De-SCope'!$I25,H$1,"m"))/3)/((DATEDIF('All De-SCope'!$I25,'All De-SCope'!$J25,"m"))/3)))),"") -> 48.10495627 | I24: =IF(G24<>"",IF($AF24="Flat",IF(I$1<'All De-SCope'!$J25,'All De-SCope'!$G25,0),IF(I$1<'All De-SCope'!$I25,'All De-SCope'!$G25,H24*(1-((DATEDIF('All De-SCope'!$I25,I$1,"m"))/3)/((DATEDIF('All De-SCope'!$I25,'All De-SCope'!$J25,"m"))/3)))),"") -> 30.92461474 | J24: =IF(H24<>"",IF($AF24="Flat",IF(J$1<'All De-SCope'!$J25,'All De-SCope'!$G25,0),IF(J$1<'All De-SCope'!$I25,'All De-SCope'!$G25,I24*(1-((DATEDIF('All De-SCope'!$I25,J$1,"m"))/3)/((DATEDIF('All De-SCope'!$I25,'All De-SCope'!$J25,"m"))/3)))),"") -> 17.67120843 | K24: =IF(I24<>"",IF($AF24="Flat",IF(K$1<'All De-SCope'!$J25,'All De-SCope'!$G25,0),IF(K$1<'All De-SCope'!$I25,'All De-SCope'!$G25,J24*(1-((DATEDIF('All De-SCope'!$I25,K$1,"m"))/3)/((DATEDIF('All De-SCope'!$I25,'All De-SCope'!$J25,"m"))/3)))),"") -> 8.835604213 | L24: =IF(J24<>"",IF($AF24="Flat",IF(L$1<'All De-SCope'!$J25,'All De-SCope'!$G25,0),IF(L$1<'All De-SCope'!$I25,'All De-SCope'!$G25,K24*(1-((DATEDIF('All De-SCope'!$I25,L$1,"m"))/3)/((DATEDIF('All De-SCope'!$I25,'All De-SCope'!$J25,"m"))/3)))),"") -> 3.78668752 | M24: =IF(K24<>"",IF($AF24="Flat",IF(M$1<'All De-SCope'!$J25,'All De-SCope'!$G25,0),IF(M$1<'All De-SCope'!$I25,'All De-SCope'!$G25,L24*(1-((DATEDIF('All De-SCope'!$I25,M$1,"m"))/3)/((DATEDIF('All De-SCope'!$I25,'All De-SCope'!$J25,"m"))/3)))),"") -> 1.3523884 | N24: =IF(L24<>"",IF($AF24="Flat",IF(N$1<'All De-SCope'!$J25,'All De-SCope'!$G25,0),IF(N$1<'All De-SCope'!$I25,'All De-SCope'!$G25,M24*(1-((DATEDIF('All De-SCope'!$I25,N$1,"m"))/3)/((DATEDIF('All De-SCope'!$I25,'All De-SCope'!$J25,"m"))/3)))),"") -> 0.3863966857 | O24: =IF(M24<>"",IF($AF24="Flat",IF(O$1<'All De-SCope'!$J25,'All De-SCope'!$G25,0),IF(O$1<'All De-SCope'!$I25,'All De-SCope'!$G25,N24*(1-((DATEDIF('All De-SCope'!$I25,O$1,"m"))/3)/((DATEDIF('All De-SCope'!$I25,'All De-SCope'!$J25,"m"))/3)))),"") -> 0.08279928979 | P24: =IF(N24<>"",IF($AF24="Flat",IF(P$1<'All De-SCope'!$J25,'All De-SCope'!$G25,0),IF(P$1<'All De-SCope'!$I25,'All De-SCope'!$G25,O24*(1-((DATEDIF('All De-SCope'!$I25,P$1,"m"))/3)/((DATEDIF('All De-SCope'!$I25,'All De-SCope'!$J25,"m"))/3)))),"") -> 0.01182846997 | Q24: =IF(O24<>"",IF($AF24="Flat",IF(Q$1<'All De-SCope'!$J25,'All De-SCope'!$G25,0),IF(Q$1<'All De-SCope'!$I25,'All De-SCope'!$G25,P24*(1-((DATEDIF('All De-SCope'!$I25,Q$1,"m"))/3)/((DATEDIF('All De-SCope'!$I25,'All De-SCope'!$J25,"m"))/3)))),"") -> 0.0008448907121 | R24: =IF(P24<>"",IF($AF24="Flat",IF(R$1<'All De-SCope'!$J25,'All De-SCope'!$G25,0),IF(R$1<'All De-SCope'!$I25,'All De-SCope'!$G25,Q24*(1-((DATEDIF('All De-SCope'!$I25,R$1,"m"))/3)/((DATEDIF('All De-SCope'!$I25,'All De-SCope'!$J25,"m"))/3)))),"") -> 0 | S24: =IF(Q24<>"",IF($AF24="Flat",IF(S$1<'All De-SCope'!$J25,'All De-SCope'!$G25,0),IF(S$1<'All De-SCope'!$I25,'All De-SCope'!$G25,R24*(1-((DATEDIF('All De-SCope'!$I25,S$1,"m"))/3)/((DATEDIF('All De-SCope'!$I25,'All De-SCope'!$J25,"m"))/3)))),"") -> 0 | T24: =IF(R24<>"",IF($AF24="Flat",IF(T$1<'All De-SCope'!$J25,'All De-SCope'!$G25,0),IF(T$1<'All De-SCope'!$I25,'All De-SCope'!$G25,S24*(1-((DATEDIF('All De-SCope'!$I25,T$1,"m"))/3)/((DATEDIF('All De-SCope'!$I25,'All De-SCope'!$J25,"m"))/3)))),"") -> 0 | U24: =IF(S24<>"",IF($AF24="Flat",IF(U$1<'All De-SCope'!$J25,'All De-SCope'!$G25,0),IF(U$1<'All De-SCope'!$I25,'All De-SCope'!$G25,T24*(1-((DATEDIF('All De-SCope'!$I25,U$1,"m"))/3)/((DATEDIF('All De-SCope'!$I25,'All De-SCope'!$J25,"m"))/3)))),"") -> 0 | V24: =IF(T24<>"",IF($AF24="Flat",IF(V$1<'All De-SCope'!$J25,'All De-SCope'!$G25,0),IF(V$1<'All De-SCope'!$I25,'All De-SCope'!$G25,U24*(1-((DATEDIF('All De-SCope'!$I25,V$1,"m"))/3)/((DATEDIF('All De-SCope'!$I25,'All De-SCope'!$J25,"m"))/3)))),"") -> 0 | W24: =IF(U24<>"",IF($AF24="Flat",IF(W$1<'All De-SCope'!$J25,'All De-SCope'!$G25,0),IF(W$1<'All De-SCope'!$I25,'All De-SCope'!$G25,V24*(1-((DATEDIF('All De-SCope'!$I25,W$1,"m"))/3)/((DATEDIF('All De-SCope'!$I25,'All De-SCope'!$J25,"m"))/3)))),"") -> 0 | X24: =IF(V24<>"",IF($AF24="Flat",IF(X$1<'All De-SCope'!$J25,'All De-SCope'!$G25,0),IF(X$1<'All De-SCope'!$I25,'All De-SCope'!$G25,W24*(1-((DATEDIF('All De-SCope'!$I25,X$1,"m"))/3)/((DATEDIF('All De-SCope'!$I25,'All De-SCope'!$J25,"m"))/3)))),"") -> 0 | Y24: =IF(W24<>"",IF($AF24="Flat",IF(Y$1<'All De-SCope'!$J25,'All De-SCope'!$G25,0),IF(Y$1<'All De-SCope'!$I25,'All De-SCope'!$G25,X24*(1-((DATEDIF('All De-SCope'!$I25,Y$1,"m"))/3)/((DATEDIF('All De-SCope'!$I25,'All De-SCope'!$J25,"m"))/3)))),"") -> 0 | Z24: =IF(X24<>"",IF($AF24="Flat",IF(Z$1<'All De-SCope'!$J25,'All De-SCope'!$G25,0),IF(Z$1<'All De-SCope'!$I25,'All De-SCope'!$G25,Y24*(1-((DATEDIF('All De-SCope'!$I25,Z$1,"m"))/3)/((DATEDIF('All De-SCope'!$I25,'All De-SCope'!$J25,"m"))/3)))),"") -> 0 | AF24: =IF(B24<>"",'All De-SCope'!H25,"") -> Taper
